Workbook

Sheet Undergraduate Program
A2: Program Financial Projection
A3: Undergraduate level degree
A4: Program name: XXXX
A8: Program Incremental Revenues
C9: Year #1 | E9: Year #2 | G9: Year #3 | I9: Year #4 | K9: Year #5
C10: FY 2026 (Fall 2025) | E10: FY 2027 | G10: FY 2028 | I10: FY 2029 | K10: FY 2030
A11: 1. Projected # of New Students (1)
A12: a. Resident | C12: 0 | E12: 0 | G12: 0 | I12: 0 | K12: 0
A13: b. Non-Resident | C13: 0 | E13: 0 | G13: 0 | I13: 0 | K13: 0 | M13: UG On-Campus Traditional Program: using Fee Schedule approved pricing
A14: b. Foreign | C14: 0 | E14: 0 | G14: 0 | I14: 0 | K14: 0
A15: Total New Student Enrollment | C15: =SUM(C12:C14) -> 0 | E15: =SUM(E12:E14) -> 0 | G15: =SUM(G12:G14) -> 0 | I15: =SUM(I12:I14) -> 0 | K15: =SUM(K12:K14) -> 0
A17: 2. General Tuition & Fees (2) | N17: Resident | O17: Non-Resident | P17: International
A18: a. General Service (2 Semesters) | C18: =($N18*C$12)+($O18*C$13)+($P18*C$14) -> 0 | E18: =($N18*E$12)+($O18*E$13)+($P18*E$14) -> 0 | G18: =($N18*G$12)+($O18*G$13)+($P18*G$14) -> 0 | I18: =($N18*I$12)+($O18*I$13)+($P18*I$14) -> 0 | K18: =($N18*K$12)+($O18*K$13)+($P18*K$14) -> 0 | M18: a. General Service (2 Semesters) | N18: =4859*2 -> 9718 | O18: =(4859+9401)*2 -> 28520 | P18: =(4859+9401+1655)*2 -> 31830
A19: b. Student Fitness & Wellness Fee | C19: =($N19*C$12)+($O19*C$13)+($P19*C$14) -> 0 | E19: =($N19*E$12)+($O19*E$13)+($P19*E$14) -> 0 | G19: =($N19*G$12)+($O19*G$13)+($P19*G$14) -> 0 | I19: =($N19*I$12)+($O19*I$13)+($P19*I$14) -> 0 | K19: =($N19*K$12)+($O19*K$13)+($P19*K$14) -> 0 | M19: b. Student Fitness & Wellness Fee | N19: =117*2 -> 234 | O19: =117*2 -> 234 | P19: =117*2 -> 234
A20: c. Student Activity Fee | C20: =($N20*C$12)+($O20*C$13)+($P20*C$14) -> 0 | E20: =($N20*E$12)+($O20*E$13)+($P20*E$14) -> 0 | G20: =($N20*G$12)+($O20*G$13)+($P20*G$14) -> 0 | I20: =($N20*I$12)+($O20*I$13)+($P20*I$14) -> 0 | K20: =($N20*K$12)+($O20*K$13)+($P20*K$14) -> 0 | M20: c. Student Activity Fee | N20: =20*2 -> 40 | O20: =20*2 -> 40 | P20: =20*2 -> 40
A21: Total General Service T&F | C21: =SUM(C18:C20) -> 0 | E21: =SUM(E18:E20) -> 0 | G21: =SUM(G18:G20) -> 0 | I21: =SUM(I18:I20) -> 0 | K21: =SUM(K18:K20) -> 0 | M21: Total General Service T&F | N21: =SUM(N18:N20) -> 9992 | O21: =SUM(O18:O20) -> 28794 | P21: =SUM(P18:P20) -> 32104
A23: 2. Additional Fees - if applicable (3) | M23: Additional Fees
A24: a. Differential Fees | C24: =($N24*C$12)+($O24*C$13)+($P24*C$14) -> 0 | E24: =($N24*E$12)+($O24*E$13)+($P24*E$14) -> 0 | G24: =($N24*G$12)+($O24*G$13)+($P24*G$14) -> 0 | I24: =($N24*I$12)+($O24*I$13)+($P24*I$14) -> 0 | K24: =($N24*K$12)+($O24*K$13)+($P24*K$14) -> 0 | M24: a. Differential Fees | N24: 0 | O24: 0 | P24: 0
A25: b. Course Fees | C25: =($N25*C$12)+($O25*C$13)+($P25*C$14) -> 0 | E25: =($N25*E$12)+($O25*E$13)+($P25*E$14) -> 0 | G25: =($N25*G$12)+($O25*G$13)+($P25*G$14) -> 0 | I25: =($N25*I$12)+($O25*I$13)+($P25*I$14) -> 0 | K25: =($N25*K$12)+($O25*K$13)+($P25*K$14) -> 0 | M25: b. Course Fees | N25: 0 | O25: 0 | P25: 0
A26: c. Other Fees | C26: =($N26*C$12)+($O26*C$13)+($P26*C$14) -> 0 | E26: =($N26*E$12)+($O26*E$13)+($P26*E$14) -> 0 | G26: =($N26*G$12)+($O26*G$13)+($P26*G$14) -> 0 | I26: =($N26*I$12)+($O26*I$13)+($P26*I$14) -> 0 | K26: =($N26*K$12)+($O26*K$13)+($P26*K$14) -> 0 | M26: c. Other Fees | N26: 0 | O26: 0 | P26: 0
A27: Total Additional Fees | C27: =SUM(C24:C26) -> 0 | E27: =SUM(E24:E26) -> 0 | G27: =SUM(G24:G26) -> 0 | I27: =SUM(I24:I26) -> 0 | K27: =SUM(K24:K26) -> 0 | M27: Total Additional Fees | N27: =SUM(N24:N26) -> 0 | O27: =SUM(O24:O26) -> 0 | P27: =SUM(P24:P26) -> 0
A29: Total Incremental Revenue | C29: =C21+C27 -> 0 | E29: =E21+E27 -> 0 | G29: =G21+G27 -> 0 | I29: =I21+I27 -> 0 | K29: =K21+K27 -> 0
B32: Year #1 | D32: Year #2 | F32: Year #3 | H32: Year #4 | J32: Year #5
C33: =C10 -> FY 2026 (Fall 2025) | E33: =E10 -> FY 2027 | G33: =G10 -> FY 2028 | I33: =I10 -> FY 2029 | K33: =K10 -> FY 2030
A34: III. EXPENDITURES
A35: 1. Salary and Wages | B35: FTE | C35: Cost | D35: FTE | E35: Cost | F35: FTE | G35: Cost | H35: FTE | I35: Cost | J35: FTE | K35: Cost
A36: a. Faculty | B36: 0 | C36: 0 | D36: 0 | E36: =C36*1.03 -> 0 | F36: 0 | G36: =E36*1.03 -> 0 | H36: 0 | I36: =G36*1.03 -> 0 | J36: 0 | K36: =I36*1.03 -> 0 | L36: <-- | M36: Enter all data for each Year; For assistance with expenditure projections, contact your Business Office.
A37: b. Limited Term Lecturers | B37: 0 | C37: 0 | D37: 0 | E37: 0 | F37: 0 | G37: 0 | H37: 0 | I37: 0 | J37: 0 | K37: 0
A38: c. Graduate Students | B38: 0 | C38: 0 | D38: 0 | E38: 0 | F38: 0 | G38: 0 | H38: 0 | I38: 0 | J38: 0 | K38: 0
A39: d. Other (Post Doc/Staff) | B39: 0 | C39: 0 | D39: 0 | E39: 0 | F39: 0 | G39: 0 | H39: 0 | I39: 0 | J39: 0 | K39: 0
A40: Total S&W | B40: =SUM(B36:B39) -> 0 | C40: 0 | D40: 0 | E40: 0 | F40: 0 | G40: 0 | H40: 0 | I40: 0 | J40: 0 | K40: 0
A42: 2. Fringes and Fee Remissions
A43: a. Fringe Benefits | C43: =((C36*0.24)+(C37*0.1)+(C38*0.07)+(C39*0.3)) -> 0 | E43: =((E36*0.24)+(E37*0.1)+(E38*0.07)+(E39*0.3)) -> 0 | G43: =((G36*0.24)+(G37*0.1)+(G38*0.07)+(G39*0.3)) -> 0 | I43: =((I36*0.24)+(I37*0.1)+(I38*0.07)+(I39*0.3)) -> 0 | K43: =((K36*0.24)+(K37*0.1)+(K38*0.07)+(K39*0.3)) -> 0 | M43: Utilizes avg fringe rate by employee group
A44: b. Fee Remissions | C44: =C38*0.38 -> 0 | E44: =E38*0.38 -> 0 | G44: =G38*0.38 -> 0 | I44: =I38*0.38 -> 0 | K44: =K38*0.38 -> 0 | M44: Utilizes avg Grad fee remission %
A45: Total FB & FR | C45: =SUM(C41:C44) -> 0 | E45: =SUM(E41:E44) -> 0 | G45: =SUM(G41:G44) -> 0 | I45: =SUM(I41:I44) -> 0 | K45: =SUM(K41:K44) -> 0
A47: 3. Supplies and Expenses
A48: a. General Supplies & Expenses | C48: 0 | E48: 0 | G48: 0 | I48: 0 | K48: 0
A49: b. Minor Equipment | C49: 0 | E49: 0 | G49: 0 | I49: 0 | K49: 0
A50: c. Recruiting & Marketing | C50: 0 | E50: 0 | G50: 0 | I50: 0 | K50: 0
A51: d. Travel & Entertainment | C51: 0 | E51: 0 | G51: 0 | I51: 0 | K51: 0
A52: e. Other (Library, subscriptions, IT) | C52: 0 | E52: 0 | G52: 0 | I52: 0 | K52: 0
A53: Total S&E | C53: =SUM(C48:C52) -> 0 | E53: =SUM(E48:E52) -> 0 | G53: =SUM(G48:G52) -> 0 | I53: =SUM(I48:I52) -> 0 | K53: =SUM(K48:K52) -> 0
A55: 4. Capital
A56: a. Capitalized Equipment | C56: 0 | E56: 0 | G56: 0 | I56: 0 | K56: 0
A57: b. Repair & Replacement | C57: 0 | E57: 0 | G57: 0 | I57: 0 | K57: 0
A58: Total Equipment | C58: =SUM(C56:C57) -> 0 | E58: =SUM(E56:E57) -> 0 | G58: =SUM(G56:G57) -> 0 | I58: =SUM(I56:I57) -> 0 | K58: =SUM(K56:K57) -> 0
A61: Total Expenditures | C61: =SUM(C40,C45,C53,C58) -> 0 | E61: =SUM(E40,E45,E53,E58) -> 0 | G61: =SUM(G40,G45,G53,G58) -> 0 | I61: =SUM(I40,I45,I53,I58) -> 0 | K61: =SUM(K40,K45,K53,K58) -> 0
A64: Projected Program Surplus/(Deficit)* | C64: =C29-C61 -> 0 | E64: =E29-E61 -> 0 | G64: =G29-G61 -> 0 | I64: =I29-I61 -> 0 | K64: =K29-K61 -> 0
A67: Notes
A68: (1) New Students represents the anticipated number of new students to campus; transfers or existing students are not to be included. Assumes students are Full-time students paying the banded tuition cost
A70: (2) T&F must match approved Bursar rates (refer to Bursar website). The calculation should be based on the Full-Time Student T&F. If the new degree program is primarily Part-Time students, then the T&F needs to be adjusted appropriately for this type of expected enrollment.
A72: (3) If additional fees are applicable, then each fee must be individually listed above and match approved Bursar rates (refer to Bursar website).
A73: Bursar T&F Website: | B73: https://www.purdue.edu/bursar/tuition/index.html
A74: ^ Enter footnotes in the last section of this table for to provide additional details (required for 'other' categories) and projection and/or calculation logic.
A75: *Sheet is protected from editing non-editable cells. To unlock: right click on the tab, selected unlock sheet, enter password FPA123.

Sheet Graduate - Start Here
E2: Self-Supported Professional Graduate Programs (SSPGP)
H4: Guidance | Q4: Rationale
B75: *Last updated 8.20.25
B76: *Sheet is protected from editing non-editable cells. To unlock: right click on the tab, selected unlock sheet, enter password FPA123.

Sheet Graduate- Trad Program
A2: Program Financial Projection
A3: Graduate level degree
A4: Program name: XXXX
A8: Program Incremental Revenues
C9: Year #1 | E9: Year #2 | G9: Year #3 | I9: Year #4 | K9: Year #5
C10: FY 2026 (Fall 2025) | E10: FY 2027 | G10: FY 2028 | I10: FY 2029 | K10: FY 2030
A11: 1. Projected # of New Students (1)
A12: a. Resident | C12: 0 | E12: 0 | G12: 0 | I12: 0 | K12: 0
A13: b. Non-Resident | C13: 0 | E13: 0 | G13: 0 | I13: 0 | K13: 0 | M13: Graduate On-Campus Traditional Program: using Fee Schedule approved pricing
A14: b. Foreign | C14: 0 | E14: 0 | G14: 0 | I14: 0 | K14: 0
A15: Total New Student Enrollment | C15: =SUM(C12:C14) -> 0 | E15: =SUM(E12:E14) -> 0 | G15: =SUM(G12:G14) -> 0 | I15: =SUM(I12:I14) -> 0 | K15: =SUM(K12:K14) -> 0
A17: 2. General Tuition & Fees (2) | N17: Resident | O17: Non-Resident | P17: International
A18: a. General Service (2 Semesters) | C18: =($N18*C$12)+($O18*C$13)+($P18*C$14) -> 0 | E18: =($N18*E$12)+($O18*E$13)+($P18*E$14) -> 0 | G18: =($N18*G$12)+($O18*G$13)+($P18*G$14) -> 0 | I18: =($N18*I$12)+($O18*I$13)+($P18*I$14) -> 0 | K18: =($N18*K$12)+($O18*K$13)+($P18*K$14) -> 0 | M18: a. General Service (2 Semesters) | N18: =4859*2 -> 9718 | O18: =(4859+9401)*2 -> 28520 | P18: =(4859+9401+200)*2 -> 28920
A19: b. Student Fitness & Wellness Fee | C19: =($N19*C$12)+($O19*C$13)+($P19*C$14) -> 0 | E19: =($N19*E$12)+($O19*E$13)+($P19*E$14) -> 0 | G19: =($N19*G$12)+($O19*G$13)+($P19*G$14) -> 0 | I19: =($N19*I$12)+($O19*I$13)+($P19*I$14) -> 0 | K19: =($N19*K$12)+($O19*K$13)+($P19*K$14) -> 0 | M19: b. Student Fitness & Wellness Fee | N19: =117*2 -> 234 | O19: =117*2 -> 234 | P19: =117*2 -> 234
A20: c. Student Activity Fee | C20: =($N20*C$12)+($O20*C$13)+($P20*C$14) -> 0 | E20: =($N20*E$12)+($O20*E$13)+($P20*E$14) -> 0 | G20: =($N20*G$12)+($O20*G$13)+($P20*G$14) -> 0 | I20: =($N20*I$12)+($O20*I$13)+($P20*I$14) -> 0 | K20: =($N20*K$12)+($O20*K$13)+($P20*K$14) -> 0 | M20: c. Student Activity Fee | N20: =20*2 -> 40 | O20: =20*2 -> 40 | P20: =20*2 -> 40
A21: Total General Service T&F | C21: =SUM(C18:C20) -> 0 | E21: =SUM(E18:E20) -> 0 | G21: =SUM(G18:G20) -> 0 | I21: =SUM(I18:I20) -> 0 | K21: =SUM(K18:K20) -> 0 | M21: Total General Service T&F | N21: =SUM(N18:N20) -> 9992 | O21: =SUM(O18:O20) -> 28794 | P21: =SUM(P18:P20) -> 29194
A23: 2. Additional Fees - if applicable (3) | M23: Additional Fees
A24: a. Differential Fees | C24: =($N24*C$12)+($O24*C$13)+($P24*C$14) -> 0 | E24: =($N24*E$12)+($O24*E$13)+($P24*E$14) -> 0 | G24: =($N24*G$12)+($O24*G$13)+($P24*G$14) -> 0 | I24: =($N24*I$12)+($O24*I$13)+($P24*I$14) -> 0 | K24: =($N24*K$12)+($O24*K$13)+($P24*K$14) -> 0 | M24: a. Differential Fees | N24: 0 | O24: 0 | P24: 0
A25: b. Course Fees | C25: =($N25*C$12)+($O25*C$13)+($P25*C$14) -> 0 | E25: =($N25*E$12)+($O25*E$13)+($P25*E$14) -> 0 | G25: =($N25*G$12)+($O25*G$13)+($P25*G$14) -> 0 | I25: =($N25*I$12)+($O25*I$13)+($P25*I$14) -> 0 | K25: =($N25*K$12)+($O25*K$13)+($P25*K$14) -> 0 | M25: b. Course Fees | N25: 0 | O25: 0 | P25: 0
A26: c. Other Fees | C26: =($N26*C$12)+($O26*C$13)+($P26*C$14) -> 0 | E26: =($N26*E$12)+($O26*E$13)+($P26*E$14) -> 0 | G26: =($N26*G$12)+($O26*G$13)+($P26*G$14) -> 0 | I26: =($N26*I$12)+($O26*I$13)+($P26*I$14) -> 0 | K26: =($N26*K$12)+($O26*K$13)+($P26*K$14) -> 0 | M26: c. Other Fees | N26: 0 | O26: 0 | P26: 0
A27: Total Additional Fees | C27: =SUM(C24:C26) -> 0 | E27: =SUM(E24:E26) -> 0 | G27: =SUM(G24:G26) -> 0 | I27: =SUM(I24:I26) -> 0 | K27: =SUM(K24:K26) -> 0 | M27: Total Additional Fees | N27: =SUM(N24:N26) -> 0 | O27: =SUM(O24:O26) -> 0 | P27: =SUM(P24:P26) -> 0
A29: Total Incremental Revenue | C29: =C21+C27 -> 0 | E29: =E21+E27 -> 0 | G29: =G21+G27 -> 0 | I29: =I21+I27 -> 0 | K29: =K21+K27 -> 0
B32: Year #1 | D32: Year #2 | F32: Year #3 | H32: Year #4 | J32: Year #5
C33: =C10 -> FY 2026 (Fall 2025) | E33: =E10 -> FY 2027 | G33: =G10 -> FY 2028 | I33: =I10 -> FY 2029 | K33: =K10 -> FY 2030
A34: III. EXPENDITURES
A35: 1. Salary and Wages | B35: FTE | C35: Cost | D35: FTE | E35: Cost | F35: FTE | G35: Cost | H35: FTE | I35: Cost | J35: FTE | K35: Cost
A36: a. Faculty | B36: 0 | C36: 0 | D36: 0 | E36: =C36*1.03 -> 0 | F36: 0 | G36: =E36*1.03 -> 0 | H36: 0 | I36: =G36*1.03 -> 0 | J36: 0 | K36: =I36*1.03 -> 0 | L36: <-- | M36: Enter all data for each Year; For assistance with expenditure projections, contact your Business Office.
A37: b. Limited Term Lecturers | B37: 0 | C37: 0 | D37: 0 | E37: 0 | F37: 0 | G37: 0 | H37: 0 | I37: 0 | J37: 0 | K37: 0
A38: c. Graduate Students | B38: 0 | C38: 0 | D38: 0 | E38: 0 | F38: 0 | G38: 0 | H38: 0 | I38: 0 | J38: 0 | K38: 0
A39: d. Other (Post Doc/Staff) | B39: 0 | C39: 0 | D39: 0 | E39: 0 | F39: 0 | G39: 0 | H39: 0 | I39: 0 | J39: 0 | K39: 0
A40: Total S&W | B40: =SUM(B36:B39) -> 0 | C40: 0 | D40: 0 | E40: 0 | F40: 0 | G40: 0 | H40: 0 | I40: 0 | J40: 0 | K40: 0
A42: 2. Fringes and Fee Remissions
A43: a. Fringe Benefits | C43: =((C36*0.24)+(C37*0.1)+(C38*0.07)+(C39*0.3)) -> 0 | E43: =((E36*0.24)+(E37*0.1)+(E38*0.07)+(E39*0.3)) -> 0 | G43: =((G36*0.24)+(G37*0.1)+(G38*0.07)+(G39*0.3)) -> 0 | I43: =((I36*0.24)+(I37*0.1)+(I38*0.07)+(I39*0.3)) -> 0 | K43: =((K36*0.24)+(K37*0.1)+(K38*0.07)+(K39*0.3)) -> 0 | M43: Utilizes avg fringe rate by employee group
A44: b. Fee Remissions | C44: =C38*0.38 -> 0 | E44: =E38*0.38 -> 0 | G44: =G38*0.38 -> 0 | I44: =I38*0.38 -> 0 | K44: =K38*0.38 -> 0 | M44: Utilizes avg Grad fee remission %
A45: Total FB & FR | C45: =SUM(C43:C44) -> 0 | E45: =SUM(E43:E44) -> 0 | G45: =SUM(G43:G44) -> 0 | I45: =SUM(I43:I44) -> 0 | K45: =SUM(K43:K44) -> 0
A47: 3. Supplies and Expenses
A48: a. General Supplies & Expenses | C48: 0 | E48: 0 | G48: 0 | I48: 0 | K48: 0
A49: b. Minor Equipment | C49: 0 | E49: 0 | G49: 0 | I49: 0 | K49: 0
A50: c. Recruiting & Marketing | C50: 0 | E50: 0 | G50: 0 | I50: 0 | K50: 0
A51: d. Travel & Entertainment | C51: 0 | E51: 0 | G51: 0 | I51: 0 | K51: 0
A52: e. Other (Library, subscriptions, IT) | C52: 0 | E52: 0 | G52: 0 | I52: 0 | K52: 0
A53: Total S&E | C53: =SUM(C48:C52) -> 0 | E53: =SUM(E48:E52) -> 0 | G53: =SUM(G48:G52) -> 0 | I53: =SUM(I48:I52) -> 0 | K53: =SUM(K48:K52) -> 0
A55: 4. Capital
A56: a. Capitalized Equipment | C56: 0 | E56: 0 | G56: 0 | I56: 0 | K56: 0
A57: b. Repair & Replacement | C57: 0 | E57: 0 | G57: 0 | I57: 0 | K57: 0
A58: Total Equipment | C58: =SUM(C56:C57) -> 0 | E58: =SUM(E56:E57) -> 0 | G58: =SUM(G56:G57) -> 0 | I58: =SUM(I56:I57) -> 0 | K58: =SUM(K56:K57) -> 0
A61: Total Expenditures | C61: =SUM(C40,C45,C53,C58) -> 0 | E61: =SUM(E40,E45,E53,E58) -> 0 | G61: =SUM(G40,G45,G53,G58) -> 0 | I61: =SUM(I40,I45,I53,I58) -> 0 | K61: =SUM(K40,K45,K53,K58) -> 0
A64: Projected Program Surplus/(Deficit)* | C64: =C29-C61 -> 0 | E64: =E29-E61 -> 0 | G64: =G29-G61 -> 0 | I64: =I29-I61 -> 0 | K64: =K29-K61 -> 0
A67: Notes
A68: (1) New Students represents the anticipated number of new students to campus; transfers or existing students are not to be included. Assumes students are Full-time students paying the banded tuition cost
A70: (2) T&F must match approved Bursar rates (refer to Bursar website). The calculation should be based on the Full-Time Student T&F. If the new degree program is primarily Part-Time students, then the T&F needs to be adjusted appropriately for this type of expected enrollment.
A72: (3) If additional fees are applicable, then each fee must be individually listed above and match approved Bursar rates (refer to Bursar website).
A73: Bursar T&F Website: | B73: https://www.purdue.edu/bursar/tuition/index.html
A74: ^ Enter footnotes in the last section of this table for to provide additional details (required for 'other' categories) and projection and/or calculation logic.
A75: *Sheet is protected from editing non-editable cells. To unlock: right click on the tab, selected unlock sheet, enter password FPA123.

Sheet Graduate-SSPGP
A2: Program Financial Projection
A3: Self-Supported Professional Graduate Programs (SSPGP)
A4: Program name: XXXX
A7: Cost of Program Calculation (Market Rate)(1)
A9: Total Program Enrollment (cap)>>> | E9: Residency % | F9: Rate per CH(1)
A10: Blended Tuition | B10: =B11*F13 -> 19436 | D10: Resident | E10: 1 | F10: =9718/B12 -> 404.9166667
A11: Program Credit hours | B11: 48 | D11: Non-Resident | E11: 0 | F11: =28508/B12 -> 1187.833333
A12: Program Credit hours per year | B12: 24 | D12: International | E12: 0 | F12: =28508/B12 -> 1187.833333
D13: Blended Rate >>>> | F13: =((F10*E10)+(F11*E11)+(F12*E12)) -> 404.9166667
A16: Program Incremental Revenues | L16: Other Comments/Notes
C17: Year #1 | E17: Year #2 | G17: Year #3 | I17: Year #4 | K17: Year #5
A18: 1. Enrollment/Revenue Projection | C18: FY 2026 (Fall 2025) | E18: FY 2027 | G18: FY 2028 | I18: FY 2029 | K18: FY 2030
A19: Beginning Cohort- New Students (2) | C19: 0 | E19: 0 | G19: 0 | I19: 0 | K19: 0
A20: Second Year Cohort | C20: 0 | E20: =ROUNDDOWN(C19,0) -> 0 | G20: =ROUNDDOWN(E19,0) -> 0 | I20: =ROUNDDOWN(G19,0) -> 0 | K20: =ROUNDDOWN(I19,0) -> 0
A21: Total Enrollment Count | C21: =C19+C20 -> 0 | E21: =E19+E20 -> 0 | G21: =G19+G20 -> 0 | I21: =I19+I20 -> 0 | K21: =K19+K20 -> 0
A23: Total Incremental Revenue | C23: =C21*$F$13*$B$12 -> 0 | E23: =E21*$F$13*$B$12 -> 0 | G23: =G21*$F$13*$B$12 -> 0 | I23: =I21*$F$13*$B$12 -> 0 | K23: =K21*$F$13*$B$12 -> 0
A24: Program Revenue held in College (70%) | C24: =C23*70% -> 0 | E24: =E23*70% -> 0 | G24: =G23*70% -> 0 | I24: =I23*70% -> 0 | K24: =K23*70% -> 0
A26: Program Expenditures
C27: Year #1 | E27: Year #2 | G27: Year #3 | I27: Year #4 | K27: Year #5
C28: =C18 -> FY 2026 (Fall 2025) | E28: =E18 -> FY 2027 | G28: =G18 -> FY 2028 | I28: =I18 -> FY 2029 | K28: =K18 -> FY 2030
A29: 1. Salary and Wages | B29: FTE | C29: Cost | D29: FTE | E29: Cost | F29: FTE | G29: Cost | H29: FTE | I29: Cost | J29: FTE | K29: Cost
A30: a. Faculty | B30: 0 | C30: 0 | D30: 0 | E30: =(C30*1.03) -> 0 | F30: 0 | G30: =E30*1.03 -> 0 | H30: 0 | I30: =G30*1.03 -> 0 | J30: 0 | K30: =I30*1.03 -> 0
A31: b. Limited Term Lecturers | B31: 0 | C31: 0 | D31: 0 | E31: =C31*1.03 -> 0 | F31: 0 | G31: =E31*1.03 -> 0 | H31: 0 | I31: =G31*1.03 -> 0 | J31: 0 | K31: =I31*1.03 -> 0
A32: c. Graduate Students | B32: 0 | C32: 0 | D32: 0 | E32: 0 | F32: 0 | G32: 0 | H32: 0 | I32: 0 | J32: 0 | K32: 0
A33: d. Other (Post Doc/Staff) | B33: 0 | C33: 0 | D33: 0 | E33: =C33*1.03 -> 0 | F33: 0 | G33: =E33*1.03 -> 0 | H33: 0 | I33: =G33*1.03 -> 0 | J33: 0 | K33: =I33*1.03 -> 0
A34: Total S&W | B34: =SUM(B30:B33) -> 0 | C34: 0 | D34: 0 | E34: 0 | F34: 0 | G34: 0 | H34: 0 | I34: 0 | J34: 0 | K34: 0
A36: 2. Fringes and Fee Remissions
A37: a. Fringe Benefits | C37: =((C30*0.24)+(C31*0.1)+(C32*0.07)+(C33*0.3)) -> 0 | E37: =((E30*0.24)+(E31*0.1)+(E32*0.07)+(E33*0.3)) -> 0 | G37: =((G30*0.24)+(G31*0.1)+(G32*0.07)+(G33*0.3)) -> 0 | I37: =((I30*0.24)+(I31*0.1)+(I32*0.07)+(I33*0.3)) -> 0 | K37: =((K30*0.24)+(K31*0.1)+(K32*0.07)+(K33*0.3)) -> 0 | L37: Utilizes avg fringe rate by employee group
A38: b. Fee Remissions | C38: =C32*0.38 -> 0 | E38: =E32*0.38 -> 0 | G38: =G32*0.38 -> 0 | I38: =I32*0.38 -> 0 | K38: =K32*0.38 -> 0 | L38: Utilizes avg Grad fee remission %
A39: Total FB & FR | C39: =SUM(C35:C38) -> 0 | E39: =SUM(E35:E38) -> 0 | G39: =SUM(G35:G38) -> 0 | I39: =SUM(I35:I38) -> 0 | K39: =SUM(K35:K38) -> 0
A41: 3. Supplies and Expenses
A42: a. General Supplies & Expenses | C42: 0 | E42: 0 | G42: 0 | I42: 0 | K42: 0
A43: b. Minor Equipment | C43: 0 | E43: 0 | G43: 0 | I43: 0 | K43: 0
A44: c. Recruiting & Marketing | C44: 0 | E44: 0 | G44: 0 | I44: 0 | K44: 0
A45: d. Travel & Entertainment | C45: 0 | E45: 0 | G45: 0 | I45: 0 | K45: 0
A46: e. Other (Library, subscriptions, IT) | C46: 0 | E46: 0 | G46: 0 | I46: 0 | K46: 0
A47: f. Space Rental (Indianapolis only) | C47: 0 | E47: 0 | G47: 0 | I47: 0 | K47: 0 | L47: Space Rental will be covered by Central University- excluded from Program Surplus/Deficit in College
A48: Total S&E | C48: =SUM(C42:C47) -> 0 | E48: =SUM(E42:E47) -> 0 | G48: =SUM(G42:G47) -> 0 | I48: =SUM(I42:I47) -> 0 | K48: =SUM(K42:K47) -> 0
A50: 4. Capital
A51: a. Capitalized Equipment | C51: 0 | E51: 0 | G51: 0 | I51: 0 | K51: 0
A52: b. Repair & Replacement | C52: 0 | E52: 0 | G52: 0 | I52: 0 | K52: 0
A53: Total Equipment | C53: =SUM(C51:C52) -> 0 | E53: =SUM(E51:E52) -> 0 | G53: =SUM(G51:G52) -> 0 | I53: =SUM(I51:I52) -> 0 | K53: =SUM(K51:K52) -> 0
A56: Total Expenditures | C56: =SUM(C34,C39,C48,C53) -> 0 | E56: =SUM(E34,E39,E48,E53) -> 0 | G56: =SUM(G34,G39,G48,G53) -> 0 | I56: =SUM(I34,I39,I48,I53) -> 0 | K56: =SUM(K34,K39,K48,K53) -> 0
A59: Projected Program Surplus/(Deficit)* | C59: =C23-C56 -> 0 | E59: =E23-E56 -> 0 | G59: =G23-G56 -> 0 | I59: =I23-I56 -> 0 | K59: =K23-K56 -> 0
A60: Program Surplus/(Deficit) in College | C60: =C24-(C56-C47) -> 0 | E60: =E24-(E56-E47) -> 0 | G60: =G24-(G56-G47) -> 0 | I60: =I24-(I56-I47) -> 0 | K60: =K24-(K56-K47) -> 0
Q61: )
A63: Notes
A64: (1) Market Rate analysis can be done per each program through the iData office. If additional assistance is needed, please work through your Business Office to complete the market rate analysis. See Appendix A for minimum's.
A66: (2) New Students represents the anticipated number of new students to campus; transfers or existing students are not to be included. The Total is set equal to the 'New-to-Campus FTEs' completed in the Enrollment section (I2d).
A68: *Sheet is protected from editing non-editable cells. To unlock: right click on the tab, selected unlock sheet, enter password FPA123.
A70: Appendix A
A72: Supplemental pricing data: Credit Hour Pricing
A73: Residency | B73: Minimum per CH - per Fee Schedule (< 8 CH's/sem) | C73: Minimum per CH - per Fee Schedule (CH 8+/sem) | D73: Market Based per CH - per Purdue Online or iData
A74: Resident | B74: 348 | C74: =9718/15 -> 647.8666667 | D74: Variable by program
A75: Non-Resident | B75: 948 | C75: =28520/15 -> 1901.333333
A76: International | B76: 948 | C76: =28520/15 -> 1901.333333
A79: Appendix A
A81: Supplemental pricing data: Credit Hour Pricing
A82: Residency | B82: Minimum per CH - per Fee Schedule (< 8 CH's/sem) | C82: Minimum per CH - per Fee Schedule (CH 8+/sem) | D82: Market Based per CH - per Purdue Online or iData
A83: Resident | B83: 348 | C83: =9718/15 -> 647.8666667 | D83: Variable by program
A84: Non-Resident | B84: 948 | C84: =28520/15 -> 1901.333333
A85: International | B85: 948 | C85: =28520/15 -> 1901.333333

Sheet Additional Resources>>
A2: The following tabs are additional resources.
A4: - Average Salaries is based on Spring 2025 data. This is a resource for calculating Salary costs into the financial tables.
A5: - Table 2 - Rev & Exp Summary is required for submission into curriculog. It must align with the amounts listed in the financial summaries.
A6: - Table 3 - Enrollment projection is required for submission into curriculog. It must align with headcount enrollment projections listed in the financial summaries.

Sheet Average Salaries
A1: data is based on Spring 2025 actuals. Last updated 8/1/2025
A4: Business Area Display | B4: (All) | C4: << Select Business Area
A5: Financial Unit Display | B5: (All)
C7: Values
A8: Employee Class2 | B8: Career Stream Code | C8: Sum of FTE | D8: Average of Annual Base Salary 100 Pct Full Time
A9: Faculty | C9: 1895.59 | D9: 154202.2856
A10: Clinical/Research | C10: 517.57 | D10: 115949.1605
A11: Limited Term Lecturer | C11: 154.32 | D11: 54034.41257
A12: Visiting Faculty | C12: 79.19 | D12: 78978.23427
A13: Continuing Lecturer | C13: 314.4 | D13: 78127.50297
A14: Post Doc/Intern/Res | C14: 628 | D14: 52221.45906
A15: Exec/Mgmt/Prof | C15: 5115.01 | D15: 86513.63236
A16: Support | C16: 1014.5 | D16: 43853.00404
A17: Service | C17: 1845.83 | D17: 45223.8979
A18: Grand Total | C18: 11564.41 | D18: 87481.90026

Sheet Table 2 - Rev & Exp Summary
A1: Table 2
A2: Program Revenue and Expenditure Summary
A3: Board of Trustees Table
A4: Purdue West Lafayette Campus
A5: Undergraduate | L5: <-- | M5: Select Degree Level
A6: =IF($A$5="Undergraduate",'Undergraduate Program'!A4,IF('Table 2 - Rev & Exp Summary'!$A$5="Graduate",'Graduate- Trad Program'!A4,IF('Table 2 - Rev & Exp Summary'!$A$5="Graduate - SSPGP",'Graduate-SSPGP'!A4,0))) -> Program name: XXXX
C8: Year #1 | E8: Year #2 | G8: Year #3 | I8: Year #4 | K8: Year #5
C9: FY 2026 | E9: FY 2027 | G9: FY 2028 | I9: FY 2029 | K9: FY 2030
A11: Total Incremental Revenue* | C11: =IF($A$5="Undergraduate",'Undergraduate Program'!C29,IF('Table 2 - Rev & Exp Summary'!$A$5="Graduate",'Graduate- Trad Program'!C29,IF('Table 2 - Rev & Exp Summary'!$A$5="Graduate - SSPGP",'Graduate-SSPGP'!C23,0))) -> 0 | E11: =IF($A$5="Undergraduate",'Undergraduate Program'!E29,IF('Table 2 - Rev & Exp Summary'!$A$5="Graduate",'Graduate- Trad Program'!E29,IF('Table 2 - Rev & Exp Summary'!$A$5="Graduate - SSPGP",'Graduate-SSPGP'!E23,0))) -> 0 | G11: =IF($A$5="Undergraduate",'Undergraduate Program'!G29,IF('Table 2 - Rev & Exp Summary'!$A$5="Graduate",'Graduate- Trad Program'!G29,IF('Table 2 - Rev & Exp Summary'!$A$5="Graduate - SSPGP",'Graduate-SSPGP'!G23,0))) -> 0 | I11: =IF($A$5="Undergraduate",'Undergraduate Program'!I29,IF('Table 2 - Rev & Exp Summary'!$A$5="Graduate",'Graduate- Trad Program'!I29,IF('Table 2 - Rev & Exp Summary'!$A$5="Graduate - SSPGP",'Graduate-SSPGP'!I23,0))) -> 0 | K11: =IF($A$5="Undergraduate",'Undergraduate Program'!K29,IF('Table 2 - Rev & Exp Summary'!$A$5="Graduate",'Graduate- Trad Program'!K29,IF('Table 2 - Rev & Exp Summary'!$A$5="Graduate - SSPGP",'Graduate-SSPGP'!K23,0))) -> 0 | L11: <-- | M11: Totals should align with Financial Revenue models
A13: Total Expenditures | C13: =IF($A$5="Undergraduate",'Undergraduate Program'!C61,IF('Table 2 - Rev & Exp Summary'!$A$5="Graduate",'Graduate- Trad Program'!C61,IF('Table 2 - Rev & Exp Summary'!$A$5="Graduate - SSPGP",'Graduate-SSPGP'!C56,0))) -> 0 | E13: =IF($A$5="Undergraduate",'Undergraduate Program'!E61,IF('Table 2 - Rev & Exp Summary'!$A$5="Graduate",'Graduate- Trad Program'!E61,IF('Table 2 - Rev & Exp Summary'!$A$5="Graduate - SSPGP",'Graduate-SSPGP'!E56,0))) -> 0 | G13: =IF($A$5="Undergraduate",'Undergraduate Program'!G61,IF('Table 2 - Rev & Exp Summary'!$A$5="Graduate",'Graduate- Trad Program'!G61,IF('Table 2 - Rev & Exp Summary'!$A$5="Graduate - SSPGP",'Graduate-SSPGP'!G56,0))) -> 0 | I13: =IF($A$5="Undergraduate",'Undergraduate Program'!I61,IF('Table 2 - Rev & Exp Summary'!$A$5="Graduate",'Graduate- Trad Program'!I61,IF('Table 2 - Rev & Exp Summary'!$A$5="Graduate - SSPGP",'Graduate-SSPGP'!I56,0))) -> 0 | K13: =IF($A$5="Undergraduate",'Undergraduate Program'!K61,IF('Table 2 - Rev & Exp Summary'!$A$5="Graduate",'Graduate- Trad Program'!K61,IF('Table 2 - Rev & Exp Summary'!$A$5="Graduate - SSPGP",'Graduate-SSPGP'!K56,0))) -> 0 | L13: <-- | M13: Totals should align with Financial Revenue models
A15: Projected Program Surplus/(Deficit)** | C15: =C11-C13 -> 0 | E15: =E11-E13 -> 0 | G15: =G11-G13 -> 0 | I15: =I11-I13 -> 0 | K15: =K11-K13 -> 0
A18: *Based on the anticipated number of new students to campus; transfers or existing students are not included. Projected incremental revenue is based on the current full-time tuition and fees approved by the Bursar.
A21: **Projected surplus/deficit is an aid to identify potential new University revenue, anticipated program costs, and degree substantiality. This does not represent any type of funding request.
A25: Additional Departmental Footnotes: | L25: <-- | M25: Add any necessary footnotes to explain total incremental revenue, expenditures, and/or surplus/deficit.

Sheet Table 3 - Enrollment Projection
A1: Table 3
A2: Projected Headcount and FTE Enrollment and Degrees Conferred
A3: Board of Trustees & ICHE Table
A4: Purdue West Lafayette Campus
A5: Graduate | X5: <-- | Y5: Select Degree Level
A6: Bachelor Degree | X6: <-- | Y6: Select Degree Level 2
A7: =IF($A$5="Undergraduate",'Undergraduate Program'!A4,IF($A$5="Graduate",'Graduate- Trad Program'!A4,IF($A$5="Graduate - SSPGP",'Graduate-SSPGP'!A4,0))) -> Program name: XXXX
C10: Year #1 | E10: Year # 2 | G10: Year # 3 | I10: Year # 4 | K10: Year # 5 | M10: Year # 6 | O10: Year # 7 | Q10: Year # 8
C11: FY 2026 | E11: FY 2027 | G11: FY 2028 | I11: FY 2029 | K11: FY 2030 | M11: FY 2031 | O11: FY 2032 | Q11: FY 2033
A13: Part-Time
A14: Full-Time
A15: Enrollment Projections (Headcount) | C15: =C13+C14 -> 0 | E15: =E13+E14 -> 0 | G15: =G13+G14 -> 0 | I15: =I13+I14 -> 0 | K15: =K13+K14 -> 0 | M15: =M13+M14 -> 0 | O15: =O13+O14 -> 0 | Q15: =Q13+Q14 -> 0 | X15: <-- | Y15: Should align with financial revenue models- Revenue models due assume Full-Time enrollment
A17: Part-Time
A18: Full-Time
A19: Enrollment Projections (FTE) | C19: =C17+C18 -> 0 | E19: =E17+E18 -> 0 | G19: =G17+G18 -> 0 | I19: =I17+I18 -> 0 | K19: =K17+K18 -> 0 | M19: =M17+M18 -> 0 | O19: =O17+O18 -> 0 | Q19: =Q17+Q18 -> 0 | X19: <-- | Y19: Enter data for each Year
A22: Degree Completions Projection | C22: 0 | E22: 0 | G22: 0 | I22: 0 | K22: 0 | M22: 0 | O22: 0 | Q22: 0 | X22: <-- | Y22: Enter data for each Year
M24: Three-Year Average
M25: =AVERAGE(M22+O22+Q22) -> 0
A26: Projected Completion Rate:
A27: CIP Code:
C31: Year #1 | E31: Year # 2 | G31: Year # 3 | I31: Year # 4 | K31: Year # 5 | M31: Year # 6 | O31: Year # 7 | Q31: Year # 8 | S31: Year # 9 | U31: Year # 10 | W31: Year # 11
C32: FY 2026 | E32: FY 2027 | G32: FY 2028 | I32: FY 2029 | K32: FY 2030 | M32: FY 2031 | O32: FY 2032 | Q32: FY 2033 | S32: FY 2034 | U32: FY 2035 | W32: FY 2036
A34: Part-Time
A35: Full-Time
A36: Enrollment Projections (Headcount) | C36: =C34+C35 -> 0 | E36: =E34+E35 -> 0 | G36: =G34+G35 -> 0 | I36: =I34+I35 -> 0 | K36: =K34+K35 -> 0 | M36: =M34+M35 -> 0 | O36: =O34+O35 -> 0 | Q36: =Q34+Q35 -> 0 | S36: =S34+S35 -> 0 | U36: =U34+U35 -> 0 | W36: =W34+W35 -> 0 | X36: <-- | Y36: Should align with financial revenue models- Revenue models due assume Full-Time enrollment
A38: Part-Time
A39: Full-Time
A40: Enrollment Projections (FTE) | C40: =C38+C39 -> 0 | E40: =E38+E39 -> 0 | G40: =G38+G39 -> 0 | I40: =I38+I39 -> 0 | K40: =K38+K39 -> 0 | M40: =M38+M39 -> 0 | O40: =O38+O39 -> 0 | Q40: =Q38+Q39 -> 0 | S40: =S38+S39 -> 0 | U40: =U38+U39 -> 0 | W40: =W38+W39 -> 0 | X40: <-- | Y40: Enter data for each Year
A43: Degree Completions Projection | C43: 0 | E43: 0 | G43: 0 | I43: 0 | K43: 0 | M43: 0 | O43: 0 | Q43: 0 | S43: 0 | U43: 0 | W43: 0 | X43: <-- | Y43: Enter data for each Year
S45: Three-Year Average
S46: =AVERAGE(S43+U43+W43) -> 0
A47: Projected Completion Rate:
A48: CIP Code:

Sheet page (hidden)
A1: Campus | B1: Master Cost Center Business Area Code | C1: Master Cost Center Business Area | D1: Business Area Display | E1: Division | F1: Division Code | G1: Department Name | H1: Department Code | I1: Financial Unit | J1: Financial Unit Code | K1: Financial Unit Display | L1: Career Stream Code | M1: Career Stream Name | N1: OIE Org | O1: OIE Org Code | P1: Position ID | Q1: Position Title | R1: Job ID | S1: Job Title | T1: Job Family | U1: Job Sub Family | V1: Employee Class | W1: Employment Type | X1: Pay Grade | Y1: Pay Grade Code | Z1: Pay Range Min | AA1: Pay Range Mid | AB1: Pay Range Max | AC1: Pay Frequency | AD1: Pay Group | AE1: Pay Group Code | AF1: Time Profile | AG1: Time Recording Profile | AH1: Work Schedule | AI1: Work Schedule Code | AJ1: Primary Appointment Flag | AK1: Concurrent Employment Flag | AL1: FERAP Flag | AM1: Reference Position | AN1: FTE | AO1: Months in Position | AP1: Essential Worker | AQ1: Benefits Eligible Flag | AR1: Grandfather/Accrual | AS1: Payroll Area Code | AT1: Payroll Area | AU1: Hourly Rate | AV1: Period Base Pay | AW1: Annual Base Salary | AX1: Annual Base Salary 100 Pct Full Time | AY1: Annual Base Salary 100 Pct Full Time FY Equivalent | AZ1: Annual Base Salary 100 Pct Full Time AY Equivalent | BA1: Annual Base Salary AY Equivalent | BB1: Annual Base Salary FY Equivalent | BC1: Administrative Adjustment Annual Amount | BD1: Administrative Adjustment Period Amount | BE1: Shift Differential Code | BF1: Shift Differential | BG1: Shift Differential Rate | BH1: Faculty Rank | BI1: Years in Rank | BJ1: Faculty Joined Date | BK1: Tenure Date | BL1: Employment Status | BM1: Employment Contract Start Date | BN1: Employment Contract End Date | BO1: Courtesy Appt 1 Flag | BP1: Courtesy Appt 1 Department Code | BQ1: Courtesy Appt 1 Title | BR1: Courtesy Appt 2 Flag | BS1: Courtesy Appt 2 Department Code | BT1: Courtesy Appt 2 Title | BU1: Head Count | BV1: Appointment Count | BW1: Snapshot Calendar Year-Month (YYYY-MM) | BX1: Snapshot Fiscal Year-Month (YYYY-MM) | BY1: Person Annual Base Salary | BZ1: Cross-Company Concurrent Flag | CA1: PUR Person Annual Base Salary | CB1: PUR Person FTE | CC1: PUR PersonFull Time/Part Time | CD1: PGU Person Annual Base Salary | CE1: PGU Person FTE | CF1: PGU Person Full Time/Part Time | CG1: ARI Person Annual Base Salary | CH1: ARI Person FTE | CI1: ARI Person Full Time/Part Time
A2: West Lafayette | B2: 4000 | C2: WL Central | D2: =B2&" - "&C2 -> 4000 - WL Central | E2: 4000 - West Lafayette - Central | F2: 4000 | G2: Student Aid - West Lafayette | H2: 99040300 | I2: Student Aid | J2: 99040300 | K2: =J2&" - "&I2 -> 99040300 - Student Aid | L2: U1 | M2: Undergraduate | N2: KXX - Affiliated Organizations | O2: KXX | P2: 40012651 | Q2: Student Service - Off Campus Math Tutor | R2: 20003261 | S2: Student (1) | T2: Non Staff | U2: Undergraduate Students | V2: Student | W2: ZA - Student Hourly | X2: Student | Y2: U005 | Z2: 7.25 | AA2: 9.28 | AB2: 11.3 | AC2: HOURLY | AD2: Bi-Weekly | AE2: Z1 | AF2: DUR - Temp/Student | AG2: NonEx-Student/Temp-Pos-Dur | AH2: Ad Hoc | AI2: AdHoc | AJ2: Y | AK2: Y | AL2: N | AN2: 0 | AO2: 4 | AP2: Non-Essential Worker | AQ2: N | AU2: 13 | AV2: 1040 | AW2: 0 | AX2: 0 | AY2: 0 | AZ2: 0 | BA2: 0 | BB2: 0 | BC2: 0 | BD2: 0 | BF2: No differential | BG2: 0 | BL2: Active | BO2: N | BR2: N | BU2: 1 | BV2: 1 | BW2: 2025-04 | BX2: 2025-10 | BY2: 0 | BZ2: N | CA2: 0 | CB2: 0 | CD2: 0 | CE2: 0 | CG2: 0 | CH2: 0
A3: West Lafayette | B3: 4000 | C3: WL Central | D3: 4000 - WL Central | E3: 4000 - West Lafayette - Central | F3: 4000 | G3: Student Aid - West Lafayette | H3: 99040300 | I3: Student Aid | J3: 99040300 | K3: 99040300 - Student Aid | L3: U1 | M3: Undergraduate | N3: KXX - Affiliated Organizations | O3: KXX | P3: 40012651 | Q3: Student Service - Off Campus Math Tutor | R3: 20003261 | S3: Student (1) | T3: Non Staff | U3: Undergraduate Students | V3: Student | W3: ZA - Student Hourly | X3: Student | Y3: U005 | Z3: 7.25 | AA3: 9.28 | AB3: 11.3 | AC3: HOURLY | AD3: Bi-Weekly | AE3: Z1 | AF3: DUR - Temp/Student | AG3: NonEx-Student/Temp-Pos-Dur | AH3: Ad Hoc | AI3: AdHoc | AJ3: Y | AK3: Y | AL3: N | AN3: 0 | AO3: 22 | AP3: Non-Essential Worker | AQ3: N | AU3: 13 | AV3: 1040 | AW3: 0 | AX3: 0 | AY3: 0 | AZ3: 0 | BA3: 0 | BB3: 0 | BC3: 0 | BD3: 0 | BF3: No differential | BG3: 0 | BL3: Active | BO3: N | BR3: N | BU3: 1 | BV3: 1 | BW3: 2025-04 | BX3: 2025-10 | BY3: 0 | BZ3: N | CA3: 0 | CB3: 0 | CD3: 0 | CE3: 0 | CG3: 0 | CH3: 0
A4: West Lafayette | B4: 4000 | C4: WL Central | D4: 4000 - WL Central | E4: 4000 - West Lafayette - Central | F4: 4000 | G4: Student Aid - West Lafayette | H4: 99040300 | I4: Student Aid | J4: 99040300 | K4: 99040300 - Student Aid | L4: U1 | M4: Undergraduate | N4: KXX - Affiliated Organizations | O4: KXX | P4: 40012651 | Q4: Student Service - Off Campus Math Tutor | R4: 20003261 | S4: Student (1) | T4: Non Staff | U4: Undergraduate Students | V4: Student | W4: ZA - Student Hourly | X4: Student | Y4: U005 | Z4: 7.25 | AA4: 9.28 | AB4: 11.3 | AC4: HOURLY | AD4: Bi-Weekly | AE4: Z1 | AF4: DUR - Temp/Student | AG4: NonEx-Student/Temp-Pos-Dur | AH4: Ad Hoc | AI4: AdHoc | AJ4: Y | AK4: Y | AL4: N | AN4: 0 | AO4: 10 | AP4: Non-Essential Worker | AQ4: N | AU4: 16 | AV4: 1280 | AW4: 0 | AX4: 0 | AY4: 0 | AZ4: 0 | BA4: 0 | BB4: 0 | BC4: 0 | BD4: 0 | BF4: No differential | BG4: 0 | BL4: Active | BO4: N | BR4: N | BU4: 1 | BV4: 1 | BW4: 2025-04 | BX4: 2025-10 | BY4: 0 | BZ4: N | CA4: 0 | CB4: 0 | CD4: 0 | CE4: 0 | CG4: 0 | CH4: 0
A5: West Lafayette | B5: 4000 | C5: WL Central | D5: 4000 - WL Central | E5: 4000 - West Lafayette - Central | F5: 4000 | G5: Student Aid - West Lafayette | H5: 99040300 | I5: Student Aid | J5: 99040300 | K5: 99040300 - Student Aid | L5: U1 | M5: Undergraduate | N5: KXX - Affiliated Organizations | O5: KXX | P5: 40012651 | Q5: Student Service - Off Campus Math Tutor | R5: 20003261 | S5: Student (1) | T5: Non Staff | U5: Undergraduate Students | V5: Student | W5: ZA - Student Hourly | X5: Student | Y5: U005 | Z5: 7.25 | AA5: 9.28 | AB5: 11.3 | AC5: HOURLY | AD5: Bi-Weekly | AE5: Z1 | AF5: DUR - Temp/Student | AG5: NonEx-Student/Temp-Pos-Dur | AH5: Ad Hoc | AI5: AdHoc | AJ5: Y | AK5: Y | AL5: N | AN5: 0 | AO5: 10 | AP5: Non-Essential Worker | AQ5: N | AU5: 15.5 | AV5: 1240 | AW5: 0 | AX5: 0 | AY5: 0 | AZ5: 0 | BA5: 0 | BB5: 0 | BC5: 0 | BD5: 0 | BF5: No differential | BG5: 0 | BL5: Active | BO5: N | BR5: N | BU5: 1 | BV5: 1 | BW5: 2025-04 | BX5: 2025-10 | BY5: 0 | BZ5: N | CA5: 0 | CB5: 0 | CD5: 0 | CE5: 0 | CG5: 0 | CH5: 0
A6: West Lafayette | B6: 4000 | C6: WL Central | D6: 4000 - WL Central | E6: 4000 - West Lafayette - Central | F6: 4000 | G6: Student Aid - West Lafayette | H6: 99040300 | I6: Student Aid | J6: 99040300 | K6: 99040300 - Student Aid | L6: U1 | M6: Undergraduate | N6: KXX - Affiliated Organizations | O6: KXX | P6: 40012651 | Q6: Student Service - Off Campus Math Tutor | R6: 20003261 | S6: Student (1) | T6: Non Staff | U6: Undergraduate Students | V6: Student | W6: ZA - Student Hourly | X6: Student | Y6: U005 | Z6: 7.25 | AA6: 9.28 | AB6: 11.3 | AC6: HOURLY | AD6: Bi-Weekly | AE6: Z1 | AF6: DUR - Temp/Student | AG6: NonEx-Student/Temp-Pos-Dur | AH6: Ad Hoc | AI6: AdHoc | AJ6: Y | AK6: Y | AL6: N | AN6: 0 | AO6: 8 | AP6: Non-Essential Worker | AQ6: N | AU6: 12.5 | AV6: 1000 | AW6: 0 | AX6: 0 | AY6: 0 | AZ6: 0 | BA6: 0 | BB6: 0 | BC6: 0 | BD6: 0 | BF6: No differential | BG6: 0 | BL6: Active | BO6: N | BR6: N | BU6: 1 | BV6: 1 | BW6: 2025-04 | BX6: 2025-10 | BY6: 0 | BZ6: N | CA6: 0 | CB6: 0 | CD6: 0 | CE6: 0 | CG6: 0 | CH6: 0
A7: West Lafayette | B7: 4000 | C7: WL Central | D7: 4000 - WL Central | E7: 4000 - West Lafayette - Central | F7: 4000 | G7: Student Aid - West Lafayette | H7: 99040300 | I7: Student Aid | J7: 99040300 | K7: 99040300 - Student Aid | L7: U1 | M7: Undergraduate | N7: KXX - Affiliated Organizations | O7: KXX | P7: 40012651 | Q7: Student Service - Off Campus Math Tutor | R7: 20003261 | S7: Student (1) | T7: Non Staff | U7: Undergraduate Students | V7: Student | W7: ZA - Student Hourly | X7: Student | Y7: U005 | Z7: 7.25 | AA7: 9.28 | AB7: 11.3 | AC7: HOURLY | AD7: Bi-Weekly | AE7: Z1 | AF7: DUR - Temp/Student | AG7: NonEx-Student/Temp-Pos-Dur | AH7: Ad Hoc | AI7: AdHoc | AJ7: Y | AK7: Y | AL7: N | AN7: 0 | AO7: 10 | AP7: Non-Essential Worker | AQ7: N | AU7: 12.5 | AV7: 1000 | AW7: 0 | AX7: 0 | AY7: 0 | AZ7: 0 | BA7: 0 | BB7: 0 | BC7: 0 | BD7: 0 | BF7: No differential | BG7: 0 | BL7: Active | BO7: N | BR7: N | BU7: 1 | BV7: 1 | BW7: 2025-04 | BX7: 2025-10 | BY7: 0 | BZ7: N | CA7: 0 | CB7: 0 | CD7: 0 | CE7: 0 | CG7: 0 | CH7: 0
A8: West Lafayette | B8: 4000 | C8: WL Central | D8: 4000 - WL Central | E8: 4000 - West Lafayette - Central | F8: 4000 | G8: Student Aid - West Lafayette | H8: 99040300 | I8: Student Aid | J8: 99040300 | K8: 99040300 - Student Aid | L8: U1 | M8: Undergraduate | N8: KXX - Affiliated Organizations | O8: KXX | P8: 40012651 | Q8: Student Service - Off Campus Math Tutor | R8: 20003261 | S8: Student (1) | T8: Non Staff | U8: Undergraduate Students | V8: Student | W8: ZA - Student Hourly | X8: Student | Y8: U005 | Z8: 7.25 | AA8: 9.28 | AB8: 11.3 | AC8: HOURLY | AD8: Bi-Weekly | AE8: Z1 | AF8: DUR - Temp/Student | AG8: NonEx-Student/Temp-Pos-Dur | AH8: Ad Hoc | AI8: AdHoc | AJ8: Y | AK8: N | AL8: N | AN8: 0 | AO8: 10 | AP8: Non-Essential Worker | AQ8: N | AU8: 15 | AV8: 1200 | AW8: 0 | AX8: 0 | AY8: 0 | AZ8: 0 | BA8: 0 | BB8: 0 | BC8: 0 | BD8: 0 | BF8: No differential | BG8: 0 | BL8: Active | BO8: N | BR8: N | BU8: 1 | BV8: 1 | BW8: 2025-04 | BX8: 2025-10 | BY8: 0 | BZ8: N | CA8: 0 | CB8: 0 | CD8: 0 | CE8: 0 | CG8: 0 | CH8: 0
A9: West Lafayette | B9: 4000 | C9: WL Central | D9: 4000 - WL Central | E9: 4000 - West Lafayette - Central | F9: 4000 | G9: Student Aid - West Lafayette | H9: 99040300 | I9: Student Aid | J9: 99040300 | K9: 99040300 - Student Aid | L9: U1 | M9: Undergraduate | N9: KXX - Affiliated Organizations | O9: KXX | P9: 40012651 | Q9: Student Service - Off Campus Math Tutor | R9: 20003261 | S9: Student (1) | T9: Non Staff | U9: Undergraduate Students | V9: Student | W9: ZA - Student Hourly | X9: Student | Y9: U005 | Z9: 7.25 | AA9: 9.28 | AB9: 11.3 | AC9: HOURLY | AD9: Bi-Weekly | AE9: Z1 | AF9: DUR - Temp/Student | AG9: NonEx-Student/Temp-Pos-Dur | AH9: Ad Hoc | AI9: AdHoc | AJ9: Y | AK9: Y | AL9: N | AN9: 0 | AO9: 7 | AP9: Non-Essential Worker | AQ9: N | AU9: 12.5 | AV9: 1000 | AW9: 0 | AX9: 0 | AY9: 0 | AZ9: 0 | BA9: 0 | BB9: 0 | BC9: 0 | BD9: 0 | BF9: No differential | BG9: 0 | BL9: Active | BO9: N | BR9: N | BU9: 1 | BV9: 1 | BW9: 2025-04 | BX9: 2025-10 | BY9: 0 | BZ9: N | CA9: 0 | CB9: 0 | CD9: 0 | CE9: 0 | CG9: 0 | CH9: 0
A10: West Lafayette | B10: 4000 | C10: WL Central | D10: 4000 - WL Central | E10: 4000 - West Lafayette - Central | F10: 4000 | G10: Student Aid - West Lafayette | H10: 99040300 | I10: Student Aid | J10: 99040300 | K10: 99040300 - Student Aid | L10: U1 | M10: Undergraduate | N10: KXX - Affiliated Organizations | O10: KXX | P10: 40012651 | Q10: Student Service - Off Campus Math Tutor | R10: 20003261 | S10: Student (1) | T10: Non Staff | U10: Undergraduate Students | V10: Student | W10: ZA - Student Hourly | X10: Student | Y10: U005 | Z10: 7.25 | AA10: 9.28 | AB10: 11.3 | AC10: HOURLY | AD10: Bi-Weekly | AE10: Z1 | AF10: DUR - Temp/Student | AG10: NonEx-Student/Temp-Pos-Dur | AH10: Ad Hoc | AI10: AdHoc | AJ10: Y | AK10: N | AL10: N | AN10: 0 | AO10: 7 | AP10: Non-Essential Worker | AQ10: N | AU10: 15 | AV10: 1200 | AW10: 0 | AX10: 0 | AY10: 0 | AZ10: 0 | BA10: 0 | BB10: 0 | BC10: 0 | BD10: 0 | BF10: No differential | BG10: 0 | BL10: Active | BO10: N | BR10: N | BU10: 1 | BV10: 1 | BW10: 2025-04 | BX10: 2025-10 | BY10: 0 | BZ10: N | CA10: 0 | CB10: 0 | CD10: 0 | CE10: 0 | CG10: 0 | CH10: 0
A11: West Lafayette | B11: 4000 | C11: WL Central | D11: 4000 - WL Central | E11: 4000 - West Lafayette - Central | F11: 4000 | G11: Student Aid - West Lafayette | H11: 99040300 | I11: Student Aid | J11: 99040300 | K11: 99040300 - Student Aid | L11: U1 | M11: Undergraduate | N11: KXX - Affiliated Organizations | O11: KXX | P11: 40012651 | Q11: Student Service - Off Campus Math Tutor | R11: 20003261 | S11: Student (1) | T11: Non Staff | U11: Undergraduate Students | V11: Student | W11: ZA - Student Hourly | X11: Student | Y11: U005 | Z11: 7.25 | AA11: 9.28 | AB11: 11.3 | AC11: HOURLY | AD11: Bi-Weekly | AE11: Z1 | AF11: DUR - Temp/Student | AG11: NonEx-Student/Temp-Pos-Dur | AH11: Ad Hoc | AI11: AdHoc | AJ11: Y | AK11: Y | AL11: N | AN11: 0 | AO11: 9 | AP11: Non-Essential Worker | AQ11: N | AU11: 12.5 | AV11: 1000 | AW11: 0 | AX11: 0 | AY11: 0 | AZ11: 0 | BA11: 0 | BB11: 0 | BC11: 0 | BD11: 0 | BF11: No differential | BG11: 0 | BL11: Active | BO11: N | BR11: N | BU11: 1 | BV11: 1 | BW11: 2025-04 | BX11: 2025-10 | BY11: 0 | BZ11: N | CA11: 0 | CB11: 0 | CD11: 0 | CE11: 0 | CG11: 0 | CH11: 0
A12: West Lafayette | B12: 4000 | C12: WL Central | D12: 4000 - WL Central | E12: 4000 - West Lafayette - Central | F12: 4000 | G12: Student Aid - West Lafayette | H12: 99040300 | I12: Student Aid | J12: 99040300 | K12: 99040300 - Student Aid | L12: U1 | M12: Undergraduate | N12: KXX - Affiliated Organizations | O12: KXX | P12: 40012651 | Q12: Student Service - Off Campus Math Tutor | R12: 20003261 | S12: Student (1) | T12: Non Staff | U12: Undergraduate Students | V12: Student | W12: ZA - Student Hourly | X12: Student | Y12: U005 | Z12: 7.25 | AA12: 9.28 | AB12: 11.3 | AC12: HOURLY | AD12: Bi-Weekly | AE12: Z1 | AF12: DUR - Temp/Student | AG12: NonEx-Student/Temp-Pos-Dur | AH12: Ad Hoc | AI12: AdHoc | AJ12: Y | AK12: Y | AL12: N | AN12: 0 | AO12: 10 | AP12: Non-Essential Worker | AQ12: N | AU12: 12.5 | AV12: 1000 | AW12: 0 | AX12: 0 | AY12: 0 | AZ12: 0 | BA12: 0 | BB12: 0 | BC12: 0 | BD12: 0 | BF12: No differential | BG12: 0 | BL12: Active | BO12: N | BR12: N | BU12: 1 | BV12: 1 | BW12: 2025-04 | BX12: 2025-10 | BY12: 0 | BZ12: N | CA12: 0 | CB12: 0 | CD12: 0 | CE12: 0 | CG12: 0 | CH12: 0
A13: West Lafayette | B13: 4000 | C13: WL Central | D13: 4000 - WL Central | E13: 4000 - West Lafayette - Central | F13: 4000 | G13: Student Aid - West Lafayette | H13: 99040300 | I13: Student Aid | J13: 99040300 | K13: 99040300 - Student Aid | L13: U1 | M13: Undergraduate | N13: KXX - Affiliated Organizations | O13: KXX | P13: 40012651 | Q13: Student Service - Off Campus Math Tutor | R13: 20003261 | S13: Student (1) | T13: Non Staff | U13: Undergraduate Students | V13: Student | W13: ZA - Student Hourly | X13: Student | Y13: U005 | Z13: 7.25 | AA13: 9.28 | AB13: 11.3 | AC13: HOURLY | AD13: Bi-Weekly | AE13: Z1 | AF13: DUR - Temp/Student | AG13: NonEx-Student/Temp-Pos-Dur | AH13: Ad Hoc | AI13: AdHoc | AJ13: Y | AK13: N | AL13: N | AN13: 0 | AO13: 7 | AP13: Non-Essential Worker | AQ13: N | AU13: 15 | AV13: 1200 | AW13: 0 | AX13: 0 | AY13: 0 | AZ13: 0 | BA13: 0 | BB13: 0 | BC13: 0 | BD13: 0 | BF13: No differential | BG13: 0 | BL13: Active | BO13: N | BR13: N | BU13: 1 | BV13: 1 | BW13: 2025-04 | BX13: 2025-10 | BY13: 0 | BZ13: N | CA13: 0 | CB13: 0 | CD13: 0 | CE13: 0 | CG13: 0 | CH13: 0
A14: West Lafayette | B14: 4000 | C14: WL Central | D14: 4000 - WL Central | E14: 4000 - West Lafayette - Central | F14: 4000 | G14: Student Aid - West Lafayette | H14: 99040300 | I14: Student Aid | J14: 99040300 | K14: 99040300 - Student Aid | L14: U1 | M14: Undergraduate | N14: KXX - Affiliated Organizations | O14: KXX | P14: 40012651 | Q14: Student Service - Off Campus Math Tutor | R14: 20003261 | S14: Student (1) | T14: Non Staff | U14: Undergraduate Students | V14: Student | W14: ZA - Student Hourly | X14: Student | Y14: U005 | Z14: 7.25 | AA14: 9.28 | AB14: 11.3 | AC14: HOURLY | AD14: Bi-Weekly | AE14: Z1 | AF14: DUR - Temp/Student | AG14: NonEx-Student/Temp-Pos-Dur | AH14: Ad Hoc | AI14: AdHoc | AJ14: Y | AK14: N | AL14: N | AN14: 0 | AO14: 9 | AP14: Non-Essential Worker | AQ14: N | AU14: 15 | AV14: 1200 | AW14: 0 | AX14: 0 | AY14: 0 | AZ14: 0 | BA14: 0 | BB14: 0 | BC14: 0 | BD14: 0 | BF14: No differential | BG14: 0 | BL14: Active | BO14: N | BR14: N | BU14: 1 | BV14: 1 | BW14: 2025-04 | BX14: 2025-10 | BY14: 0 | BZ14: N | CA14: 0 | CB14: 0 | CD14: 0 | CE14: 0 | CG14: 0 | CH14: 0
A15: West Lafayette | B15: 4000 | C15: WL Central | D15: 4000 - WL Central | E15: 4000 - West Lafayette - Central | F15: 4000 | G15: Student Aid - West Lafayette | H15: 99040300 | I15: Student Aid | J15: 99040300 | K15: 99040300 - Student Aid | L15: U1 | M15: Undergraduate | N15: KXX - Affiliated Organizations | O15: KXX | P15: 40012651 | Q15: Student Service - Off Campus Math Tutor | R15: 20003261 | S15: Student (1) | T15: Non Staff | U15: Undergraduate Students | V15: Student | W15: ZA - Student Hourly | X15: Student | Y15: U005 | Z15: 7.25 | AA15: 9.28 | AB15: 11.3 | AC15: HOURLY | AD15: Bi-Weekly | AE15: Z1 | AF15: DUR - Temp/Student | AG15: NonEx-Student/Temp-Pos-Dur | AH15: Ad Hoc | AI15: AdHoc | AJ15: Y | AK15: Y | AL15: N | AN15: 0 | AO15: 8 | AP15: Non-Essential Worker | AQ15: N | AU15: 15 | AV15: 1200 | AW15: 0 | AX15: 0 | AY15: 0 | AZ15: 0 | BA15: 0 | BB15: 0 | BC15: 0 | BD15: 0 | BF15: No differential | BG15: 0 | BL15: Active | BO15: N | BR15: N | BU15: 1 | BV15: 1 | BW15: 2025-04 | BX15: 2025-10 | BY15: 0 | BZ15: N | CA15: 0 | CB15: 0 | CD15: 0 | CE15: 0 | CG15: 0 | CH15: 0
A16: West Lafayette | B16: 4000 | C16: WL Central | D16: 4000 - WL Central | E16: 4000 - West Lafayette - Central | F16: 4000 | G16: Student Aid - West Lafayette | H16: 99040300 | I16: Student Aid | J16: 99040300 | K16: 99040300 - Student Aid | L16: U1 | M16: Undergraduate | N16: KXX - Affiliated Organizations | O16: KXX | P16: 40012651 | Q16: Student Service - Off Campus Math Tutor | R16: 20003261 | S16: Student (1) | T16: Non Staff | U16: Undergraduate Students | V16: Student | W16: ZA - Student Hourly | X16: Student | Y16: U005 | Z16: 7.25 | AA16: 9.28 | AB16: 11.3 | AC16: HOURLY | AD16: Bi-Weekly | AE16: Z1 | AF16: DUR - Temp/Student | AG16: NonEx-Student/Temp-Pos-Dur | AH16: Ad Hoc | AI16: AdHoc | AJ16: Y | AK16: Y | AL16: N | AN16: 0 | AO16: 8 | AP16: Non-Essential Worker | AQ16: N | AU16: 15.5 | AV16: 1240 | AW16: 0 | AX16: 0 | AY16: 0 | AZ16: 0 | BA16: 0 | BB16: 0 | BC16: 0 | BD16: 0 | BF16: No differential | BG16: 0 | BL16: Active | BO16: N | BR16: N | BU16: 1 | BV16: 1 | BW16: 2025-04 | BX16: 2025-10 | BY16: 0 | BZ16: N | CA16: 0 | CB16: 0 | CD16: 0 | CE16: 0 | CG16: 0 | CH16: 0
A17: West Lafayette | B17: 4000 | C17: WL Central | D17: 4000 - WL Central | E17: 4000 - West Lafayette - Central | F17: 4000 | G17: Student Aid - West Lafayette | H17: 99040300 | I17: Student Aid | J17: 99040300 | K17: 99040300 - Student Aid | L17: U1 | M17: Undergraduate | N17: KXX - Affiliated Organizations | O17: KXX | P17: 40012651 | Q17: Student Service - Off Campus Math Tutor | R17: 20003261 | S17: Student (1) | T17: Non Staff | U17: Undergraduate Students | V17: Student | W17: ZA - Student Hourly | X17: Student | Y17: U005 | Z17: 7.25 | AA17: 9.28 | AB17: 11.3 | AC17: HOURLY | AD17: Bi-Weekly | AE17: Z1 | AF17: DUR - Temp/Student | AG17: NonEx-Student/Temp-Pos-Dur | AH17: Ad Hoc | AI17: AdHoc | AJ17: Y | AK17: Y | AL17: N | AN17: 0 | AO17: 5 | AP17: Non-Essential Worker | AQ17: N | AU17: 13 | AV17: 1040 | AW17: 0 | AX17: 0 | AY17: 0 | AZ17: 0 | BA17: 0 | BB17: 0 | BC17: 0 | BD17: 0 | BF17: No differential | BG17: 0 | BL17: Active | BO17: N | BR17: N | BU17: 1 | BV17: 1 | BW17: 2025-04 | BX17: 2025-10 | BY17: 0 | BZ17: N | CA17: 0 | CB17: 0 | CD17: 0 | CE17: 0 | CG17: 0 | CH17: 0
A18: West Lafayette | B18: 4000 | C18: WL Central | D18: 4000 - WL Central | E18: 4000 - West Lafayette - Central | F18: 4000 | G18: Student Aid - West Lafayette | H18: 99040300 | I18: Student Aid | J18: 99040300 | K18: 99040300 - Student Aid | L18: U1 | M18: Undergraduate | N18: KXX - Affiliated Organizations | O18: KXX | P18: 40001409 | Q18: Student Service - Off Camp Reading Tutor | R18: 20003261 | S18: Student (1) | T18: Non Staff | U18: Undergraduate Students | V18: Student | W18: ZA - Student Hourly | X18: Student | Y18: U005 | Z18: 7.25 | AA18: 9.28 | AB18: 11.3 | AC18: HOURLY | AD18: Bi-Weekly | AE18: Z1 | AF18: DUR - Temp/Student | AG18: NonEx-Student/Temp-Pos-Dur | AH18: Ad Hoc | AI18: AdHoc | AJ18: Y | AK18: N | AL18: N | AN18: 0 | AO18: 6 | AP18: Non-Essential Worker | AQ18: N | AU18: 15 | AV18: 1200 | AW18: 0 | AX18: 0 | AY18: 0 | AZ18: 0 | BA18: 0 | BB18: 0 | BC18: 0 | BD18: 0 | BF18: No differential | BG18: 0 | BL18: Active | BO18: N | BR18: N | BU18: 1 | BV18: 1 | BW18: 2025-04 | BX18: 2025-10 | BY18: 0 | BZ18: N | CA18: 0 | CB18: 0 | CD18: 0 | CE18: 0 | CG18: 0 | CH18: 0
A19: West Lafayette | B19: 4000 | C19: WL Central | D19: 4000 - WL Central | E19: 4000 - West Lafayette - Central | F19: 4000 | G19: Student Aid - West Lafayette | H19: 99040300 | I19: Student Aid | J19: 99040300 | K19: 99040300 - Student Aid | L19: U1 | M19: Undergraduate | N19: KXX - Affiliated Organizations | O19: KXX | P19: 40001409 | Q19: Student Service - Off Camp Reading Tutor | R19: 20003261 | S19: Student (1) | T19: Non Staff | U19: Undergraduate Students | V19: Student | W19: ZA - Student Hourly | X19: Student | Y19: U005 | Z19: 7.25 | AA19: 9.28 | AB19: 11.3 | AC19: HOURLY | AD19: Bi-Weekly | AE19: Z1 | AF19: DUR - Temp/Student | AG19: NonEx-Student/Temp-Pos-Dur | AH19: Ad Hoc | AI19: AdHoc | AJ19: Y | AK19: N | AL19: N | AN19: 0 | AO19: 5 | AP19: Non-Essential Worker | AQ19: N | AU19: 16 | AV19: 1280 | AW19: 0 | AX19: 0 | AY19: 0 | AZ19: 0 | BA19: 0 | BB19: 0 | BC19: 0 | BD19: 0 | BF19: No differential | BG19: 0 | BL19: Active | BO19: N | BR19: N | BU19: 1 | BV19: 1 | BW19: 2025-04 | BX19: 2025-10 | BY19: 0 | BZ19: N | CA19: 0 | CB19: 0 | CD19: 0 | CE19: 0 | CG19: 0 | CH19: 0
A20: West Lafayette | B20: 4000 | C20: WL Central | D20: 4000 - WL Central | E20: 4000 - West Lafayette - Central | F20: 4000 | G20: Student Aid - West Lafayette | H20: 99040300 | I20: Student Aid | J20: 99040300 | K20: 99040300 - Student Aid | L20: U1 | M20: Undergraduate | N20: KXX - Affiliated Organizations | O20: KXX | P20: 40012651 | Q20: Student Service - Off Campus Math Tutor | R20: 20003261 | S20: Student (1) | T20: Non Staff | U20: Undergraduate Students | V20: Student | W20: ZA - Student Hourly | X20: Student | Y20: U005 | Z20: 7.25 | AA20: 9.28 | AB20: 11.3 | AC20: HOURLY | AD20: Bi-Weekly | AE20: Z1 | AF20: DUR - Temp/Student | AG20: NonEx-Student/Temp-Pos-Dur | AH20: Ad Hoc | AI20: AdHoc | AJ20: Y | AK20: Y | AL20: N | AN20: 0 | AO20: 5 | AP20: Non-Essential Worker | AQ20: N | AU20: 12.5 | AV20: 1000 | AW20: 0 | AX20: 0 | AY20: 0 | AZ20: 0 | BA20: 0 | BB20: 0 | BC20: 0 | BD20: 0 | BF20: No differential | BG20: 0 | BL20: Active | BO20: N | BR20: N | BU20: 1 | BV20: 1 | BW20: 2025-04 | BX20: 2025-10 | BY20: 0 | BZ20: N | CA20: 0 | CB20: 0 | CD20: 0 | CE20: 0 | CG20: 0 | CH20: 0
A21: West Lafayette | B21: 4000 | C21: WL Central | D21: 4000 - WL Central | E21: 4000 - West Lafayette - Central | F21: 4000 | G21: Student Aid - West Lafayette | H21: 99040300 | I21: Student Aid | J21: 99040300 | K21: 99040300 - Student Aid | L21: U1 | M21: Undergraduate | N21: KXX - Affiliated Organizations | O21: KXX | P21: 40001409 | Q21: Student Service - Off Camp Reading Tutor | R21: 20003261 | S21: Student (1) | T21: Non Staff | U21: Undergraduate Students | V21: Student | W21: ZA - Student Hourly | X21: Student | Y21: U005 | Z21: 7.25 | AA21: 9.28 | AB21: 11.3 | AC21: HOURLY | AD21: Bi-Weekly | AE21: Z1 | AF21: DUR - Temp/Student | AG21: NonEx-Student/Temp-Pos-Dur | AH21: Ad Hoc | AI21: AdHoc | AJ21: Y | AK21: N | AL21: N | AN21: 0 | AO21: 5 | AP21: Non-Essential Worker | AQ21: N | AU21: 15 | AV21: 1200 | AW21: 0 | AX21: 0 | AY21: 0 | AZ21: 0 | BA21: 0 | BB21: 0 | BC21: 0 | BD21: 0 | BF21: No differential | BG21: 0 | BL21: Active | BO21: N | BR21: N | BU21: 1 | BV21: 1 | BW21: 2025-04 | BX21: 2025-10 | BY21: 0 | BZ21: N | CA21: 0 | CB21: 0 | CD21: 0 | CE21: 0 | CG21: 0 | CH21: 0
A22: West Lafayette | B22: 4000 | C22: WL Central | D22: 4000 - WL Central | E22: 4000 - West Lafayette - Central | F22: 4000 | G22: Student Aid - West Lafayette | H22: 99040300 | I22: Student Aid | J22: 99040300 | K22: 99040300 - Student Aid | L22: U1 | M22: Undergraduate | N22: KXX - Affiliated Organizations | O22: KXX | P22: 40012651 | Q22: Student Service - Off Campus Math Tutor | R22: 20003261 | S22: Student (1) | T22: Non Staff | U22: Undergraduate Students | V22: Student | W22: ZA - Student Hourly | X22: Student | Y22: U005 | Z22: 7.25 | AA22: 9.28 | AB22: 11.3 | AC22: HOURLY | AD22: Bi-Weekly | AE22: Z1 | AF22: DUR - Temp/Student | AG22: NonEx-Student/Temp-Pos-Dur | AH22: Ad Hoc | AI22: AdHoc | AJ22: Y | AK22: Y | AL22: N | AN22: 0 | AO22: 3 | AP22: Non-Essential Worker | AQ22: N | AU22: 13 | AV22: 1040 | AW22: 0 | AX22: 0 | AY22: 0 | AZ22: 0 | BA22: 0 | BB22: 0 | BC22: 0 | BD22: 0 | BF22: No differential | BG22: 0 | BL22: Active | BO22: N | BR22: N | BU22: 1 | BV22: 1 | BW22: 2025-04 | BX22: 2025-10 | BY22: 0 | BZ22: N | CA22: 0 | CB22: 0 | CD22: 0 | CE22: 0 | CG22: 0 | CH22: 0
A23: West Lafayette | B23: 4000 | C23: WL Central | D23: 4000 - WL Central | E23: 4000 - West Lafayette - Central | F23: 4000 | G23: Student Aid - West Lafayette | H23: 99040300 | I23: Student Aid | J23: 99040300 | K23: 99040300 - Student Aid | L23: U1 | M23: Undergraduate | N23: KXX - Affiliated Organizations | O23: KXX | P23: 40012651 | Q23: Student Service - Off Campus Math Tutor | R23: 20003261 | S23: Student (1) | T23: Non Staff | U23: Undergraduate Students | V23: Student | W23: ZA - Student Hourly | X23: Student | Y23: U005 | Z23: 7.25 | AA23: 9.28 | AB23: 11.3 | AC23: HOURLY | AD23: Bi-Weekly | AE23: Z1 | AF23: DUR - Temp/Student | AG23: NonEx-Student/Temp-Pos-Dur | AH23: Ad Hoc | AI23: AdHoc | AJ23: Y | AK23: Y | AL23: N | AN23: 0 | AO23: 4 | AP23: Non-Essential Worker | AQ23: N | AU23: 13 | AV23: 1040 | AW23: 0 | AX23: 0 | AY23: 0 | AZ23: 0 | BA23: 0 | BB23: 0 | BC23: 0 | BD23: 0 | BF23: No differential | BG23: 0 | BL23: Active | BO23: N | BR23: N | BU23: 1 | BV23: 1 | BW23: 2025-04 | BX23: 2025-10 | BY23: 0 | BZ23: N | CA23: 0 | CB23: 0 | CD23: 0 | CE23: 0 | CG23: 0 | CH23: 0
A24: West Lafayette | B24: 4000 | C24: WL Central | D24: 4000 - WL Central | E24: 4000 - West Lafayette - Central | F24: 4000 | G24: Student Aid - West Lafayette | H24: 99040300 | I24: Student Aid | J24: 99040300 | K24: 99040300 - Student Aid | L24: U1 | M24: Undergraduate | N24: KXX - Affiliated Organizations | O24: KXX | P24: 40001409 | Q24: Student Service - Off Camp Reading Tutor | R24: 20003261 | S24: Student (1) | T24: Non Staff | U24: Undergraduate Students | V24: Student | W24: ZA - Student Hourly | X24: Student | Y24: U005 | Z24: 7.25 | AA24: 9.28 | AB24: 11.3 | AC24: HOURLY | AD24: Bi-Weekly | AE24: Z1 | AF24: DUR - Temp/Student | AG24: NonEx-Student/Temp-Pos-Dur | AH24: Ad Hoc | AI24: AdHoc | AJ24: N | AK24: Y | AL24: N | AN24: 0 | AO24: 22 | AP24: Non-Essential Worker | AQ24: N | AU24: 13 | AV24: 1040 | AW24: 0 | AX24: 0 | AY24: 0 | AZ24: 0 | BA24: 0 | BB24: 0 | BC24: 0 | BD24: 0 | BF24: No differential | BG24: 0 | BL24: Active | BO24: N | BR24: N | BU24: 0 | BV24: 1 | BW24: 2025-04 | BX24: 2025-10 | BY24: 0 | BZ24: N | CA24: 0 | CB24: 0 | CD24: 0 | CE24: 0 | CG24: 0 | CH24: 0
A25: West Lafayette | B25: 4000 | C25: WL Central | D25: 4000 - WL Central | E25: 4000 - West Lafayette - Central | F25: 4000 | G25: Student Aid - West Lafayette | H25: 99040300 | I25: Student Aid | J25: 99040300 | K25: 99040300 - Student Aid | L25: U1 | M25: Undergraduate | N25: KXX - Affiliated Organizations | O25: KXX | P25: 40012651 | Q25: Student Service - Off Campus Math Tutor | R25: 20003261 | S25: Student (1) | T25: Non Staff | U25: Undergraduate Students | V25: Student | W25: ZA - Student Hourly | X25: Student | Y25: U005 | Z25: 7.25 | AA25: 9.28 | AB25: 11.3 | AC25: HOURLY | AD25: Bi-Weekly | AE25: Z1 | AF25: DUR - Temp/Student | AG25: NonEx-Student/Temp-Pos-Dur | AH25: Ad Hoc | AI25: AdHoc | AJ25: Y | AK25: Y | AL25: N | AN25: 0 | AO25: 4 | AP25: Non-Essential Worker | AQ25: N | AU25: 13 | AV25: 1040 | AW25: 0 | AX25: 0 | AY25: 0 | AZ25: 0 | BA25: 0 | BB25: 0 | BC25: 0 | BD25: 0 | BF25: No differential | BG25: 0 | BL25: Active | BO25: N | BR25: N | BU25: 1 | BV25: 1 | BW25: 2025-04 | BX25: 2025-10 | BY25: 0 | BZ25: N | CA25: 0 | CB25: 0 | CD25: 0 | CE25: 0 | CG25: 0 | CH25: 0
A26: West Lafayette | B26: 4000 | C26: WL Central | D26: 4000 - WL Central | E26: 4000 - West Lafayette - Central | F26: 4000 | G26: Student Aid - West Lafayette | H26: 99040300 | I26: Student Aid | J26: 99040300 | K26: 99040300 - Student Aid | L26: U1 | M26: Undergraduate | N26: KXX - Affiliated Organizations | O26: KXX | P26: 40001409 | Q26: Student Service - Off Camp Reading Tutor | R26: 20003261 | S26: Student (1) | T26: Non Staff | U26: Undergraduate Students | V26: Student | W26: ZA - Student Hourly | X26: Student | Y26: U005 | Z26: 7.25 | AA26: 9.28 | AB26: 11.3 | AC26: HOURLY | AD26: Bi-Weekly | AE26: Z1 | AF26: DUR - Temp/Student | AG26: NonEx-Student/Temp-Pos-Dur | AH26: Ad Hoc | AI26: AdHoc | AJ26: N | AK26: Y | AL26: N | AN26: 0 | AO26: 10 | AP26: Non-Essential Worker | AQ26: N | AU26: 16 | AV26: 1280 | AW26: 0 | AX26: 0 | AY26: 0 | AZ26: 0 | BA26: 0 | BB26: 0 | BC26: 0 | BD26: 0 | BF26: No differential | BG26: 0 | BL26: Active | BO26: N | BR26: N | BU26: 0 | BV26: 1 | BW26: 2025-04 | BX26: 2025-10 | BY26: 0 | BZ26: N | CA26: 0 | CB26: 0 | CD26: 0 | CE26: 0 | CG26: 0 | CH26: 0
A27: West Lafayette | B27: 4000 | C27: WL Central | D27: 4000 - WL Central | E27: 4000 - West Lafayette - Central | F27: 4000 | G27: Student Aid - West Lafayette | H27: 99040300 | I27: Student Aid | J27: 99040300 | K27: 99040300 - Student Aid | L27: U1 | M27: Undergraduate | N27: KXX - Affiliated Organizations | O27: KXX | P27: 40001409 | Q27: Student Service - Off Camp Reading Tutor | R27: 20003261 | S27: Student (1) | T27: Non Staff | U27: Undergraduate Students | V27: Student | W27: ZA - Student Hourly | X27: Student | Y27: U005 | Z27: 7.25 | AA27: 9.28 | AB27: 11.3 | AC27: HOURLY | AD27: Bi-Weekly | AE27: Z1 | AF27: DUR - Temp/Student | AG27: NonEx-Student/Temp-Pos-Dur | AH27: Ad Hoc | AI27: AdHoc | AJ27: N | AK27: Y | AL27: N | AN27: 0 | AO27: 10 | AP27: Non-Essential Worker | AQ27: N | AU27: 13 | AV27: 1040 | AW27: 0 | AX27: 0 | AY27: 0 | AZ27: 0 | BA27: 0 | BB27: 0 | BC27: 0 | BD27: 0 | BF27: No differential | BG27: 0 | BL27: Active | BO27: N | BR27: N | BU27: 0 | BV27: 1 | BW27: 2025-04 | BX27: 2025-10 | BY27: 0 | BZ27: N | CA27: 0 | CB27: 0 | CD27: 0 | CE27: 0 | CG27: 0 | CH27: 0
A28: West Lafayette | B28: 4000 | C28: WL Central | D28: 4000 - WL Central | E28: 4000 - West Lafayette - Central | F28: 4000 | G28: Student Aid - West Lafayette | H28: 99040300 | I28: Student Aid | J28: 99040300 | K28: 99040300 - Student Aid | L28: U1 | M28: Undergraduate | N28: KXX - Affiliated Organizations | O28: KXX | P28: 40012651 | Q28: Student Service - Off Campus Math Tutor | R28: 20003261 | S28: Student (1) | T28: Non Staff | U28: Undergraduate Students | V28: Student | W28: ZA - Student Hourly | X28: Student | Y28: U005 | Z28: 7.25 | AA28: 9.28 | AB28: 11.3 | AC28: HOURLY | AD28: Bi-Weekly | AE28: Z1 | AF28: DUR - Temp/Student | AG28: NonEx-Student/Temp-Pos-Dur | AH28: Ad Hoc | AI28: AdHoc | AJ28: N | AK28: Y | AL28: N | AN28: 0 | AO28: 10 | AP28: Non-Essential Worker | AQ28: N | AU28: 13 | AV28: 1040 | AW28: 0 | AX28: 0 | AY28: 0 | AZ28: 0 | BA28: 0 | BB28: 0 | BC28: 0 | BD28: 0 | BF28: No differential | BG28: 0 | BL28: Active | BO28: N | BR28: N | BU28: 0 | BV28: 1 | BW28: 2025-04 | BX28: 2025-10 | BY28: 0 | BZ28: N | CA28: 0 | CB28: 0 | CD28: 0 | CE28: 0 | CG28: 0 | CH28: 0
A29: West Lafayette | B29: 4000 | C29: WL Central | D29: 4000 - WL Central | E29: 4000 - West Lafayette - Central | F29: 4000 | G29: Student Aid - West Lafayette | H29: 99040300 | I29: Student Aid | J29: 99040300 | K29: 99040300 - Student Aid | L29: U1 | M29: Undergraduate | N29: KXX - Affiliated Organizations | O29: KXX | P29: 40001409 | Q29: Student Service - Off Camp Reading Tutor | R29: 20003261 | S29: Student (1) | T29: Non Staff | U29: Undergraduate Students | V29: Student | W29: ZA - Student Hourly | X29: Student | Y29: U005 | Z29: 7.25 | AA29: 9.28 | AB29: 11.3 | AC29: HOURLY | AD29: Bi-Weekly | AE29: Z1 | AF29: DUR - Temp/Student | AG29: NonEx-Student/Temp-Pos-Dur | AH29: Ad Hoc | AI29: AdHoc | AJ29: N | AK29: Y | AL29: N | AN29: 0 | AO29: 8 | AP29: Non-Essential Worker | AQ29: N | AU29: 12.5 | AV29: 1000 | AW29: 0 | AX29: 0 | AY29: 0 | AZ29: 0 | BA29: 0 | BB29: 0 | BC29: 0 | BD29: 0 | BF29: No differential | BG29: 0 | BL29: Active | BO29: N | BR29: N | BU29: 0 | BV29: 1 | BW29: 2025-04 | BX29: 2025-10 | BY29: 0 | BZ29: N | CA29: 0 | CB29: 0 | CD29: 0 | CE29: 0 | CG29: 0 | CH29: 0
A30: West Lafayette | B30: 4000 | C30: WL Central | D30: 4000 - WL Central | E30: 4000 - West Lafayette - Central | F30: 4000 | G30: Student Aid - West Lafayette | H30: 99040300 | I30: Student Aid | J30: 99040300 | K30: 99040300 - Student Aid | L30: U1 | M30: Undergraduate | N30: KXX - Affiliated Organizations | O30: KXX | P30: 40001409 | Q30: Student Service - Off Camp Reading Tutor | R30: 20003261 | S30: Student (1) | T30: Non Staff | U30: Undergraduate Students | V30: Student | W30: ZA - Student Hourly | X30: Student | Y30: U005 | Z30: 7.25 | AA30: 9.28 | AB30: 11.3 | AC30: HOURLY | AD30: Bi-Weekly | AE30: Z1 | AF30: DUR - Temp/Student | AG30: NonEx-Student/Temp-Pos-Dur | AH30: Ad Hoc | AI30: AdHoc | AJ30: N | AK30: Y | AL30: N | AN30: 0 | AO30: 10 | AP30: Non-Essential Worker | AQ30: N | AU30: 12.5 | AV30: 1000 | AW30: 0 | AX30: 0 | AY30: 0 | AZ30: 0 | BA30: 0 | BB30: 0 | BC30: 0 | BD30: 0 | BF30: No differential | BG30: 0 | BL30: Active | BO30: N | BR30: N | BU30: 0 | BV30: 1 | BW30: 2025-04 | BX30: 2025-10 | BY30: 0 | BZ30: N | CA30: 0 | CB30: 0 | CD30: 0 | CE30: 0 | CG30: 0 | CH30: 0
A31: West Lafayette | B31: 4000 | C31: WL Central | D31: 4000 - WL Central | E31: 4000 - West Lafayette - Central | F31: 4000 | G31: Student Aid - West Lafayette | H31: 99040300 | I31: Student Aid | J31: 99040300 | K31: 99040300 - Student Aid | L31: U1 | M31: Undergraduate | N31: KXX - Affiliated Organizations | O31: KXX | P31: 40001409 | Q31: Student Service - Off Camp Reading Tutor | R31: 20003261 | S31: Student (1) | T31: Non Staff | U31: Undergraduate Students | V31: Student | W31: ZA - Student Hourly | X31: Student | Y31: U005 | Z31: 7.25 | AA31: 9.28 | AB31: 11.3 | AC31: HOURLY | AD31: Bi-Weekly | AE31: Z1 | AF31: DUR - Temp/Student | AG31: NonEx-Student/Temp-Pos-Dur | AH31: Ad Hoc | AI31: AdHoc | AJ31: N | AK31: Y | AL31: N | AN31: 0 | AO31: 10 | AP31: Non-Essential Worker | AQ31: N | AU31: 12.5 | AV31: 1000 | AW31: 0 | AX31: 0 | AY31: 0 | AZ31: 0 | BA31: 0 | BB31: 0 | BC31: 0 | BD31: 0 | BF31: No differential | BG31: 0 | BL31: Active | BO31: N | BR31: N | BU31: 0 | BV31: 1 | BW31: 2025-04 | BX31: 2025-10 | BY31: 0 | BZ31: N | CA31: 0 | CB31: 0 | CD31: 0 | CE31: 0 | CG31: 0 | CH31: 0
A32: West Lafayette | B32: 4000 | C32: WL Central | D32: 4000 - WL Central | E32: 4000 - West Lafayette - Central | F32: 4000 | G32: Student Aid - West Lafayette | H32: 99040300 | I32: Student Aid | J32: 99040300 | K32: 99040300 - Student Aid | L32: U1 | M32: Undergraduate | N32: KXX - Affiliated Organizations | O32: KXX | P32: 40001409 | Q32: Student Service - Off Camp Reading Tutor | R32: 20003261 | S32: Student (1) | T32: Non Staff | U32: Undergraduate Students | V32: Student | W32: ZA - Student Hourly | X32: Student | Y32: U005 | Z32: 7.25 | AA32: 9.28 | AB32: 11.3 | AC32: HOURLY | AD32: Bi-Weekly | AE32: Z1 | AF32: DUR - Temp/Student | AG32: NonEx-Student/Temp-Pos-Dur | AH32: Ad Hoc | AI32: AdHoc | AJ32: N | AK32: Y | AL32: N | AN32: 0 | AO32: 9 | AP32: Non-Essential Worker | AQ32: N | AU32: 12.5 | AV32: 1000 | AW32: 0 | AX32: 0 | AY32: 0 | AZ32: 0 | BA32: 0 | BB32: 0 | BC32: 0 | BD32: 0 | BF32: No differential | BG32: 0 | BL32: Active | BO32: N | BR32: N | BU32: 0 | BV32: 1 | BW32: 2025-04 | BX32: 2025-10 | BY32: 0 | BZ32: N | CA32: 0 | CB32: 0 | CD32: 0 | CE32: 0 | CG32: 0 | CH32: 0
A33: West Lafayette | B33: 4000 | C33: WL Central | D33: 4000 - WL Central | E33: 4000 - West Lafayette - Central | F33: 4000 | G33: Student Aid - West Lafayette | H33: 99040300 | I33: Student Aid | J33: 99040300 | K33: 99040300 - Student Aid | L33: U1 | M33: Undergraduate | N33: KXX - Affiliated Organizations | O33: KXX | P33: 40001409 | Q33: Student Service - Off Camp Reading Tutor | R33: 20003261 | S33: Student (1) | T33: Non Staff | U33: Undergraduate Students | V33: Student | W33: ZA - Student Hourly | X33: Student | Y33: U005 | Z33: 7.25 | AA33: 9.28 | AB33: 11.3 | AC33: HOURLY | AD33: Bi-Weekly | AE33: Z1 | AF33: DUR - Temp/Student | AG33: NonEx-Student/Temp-Pos-Dur | AH33: Ad Hoc | AI33: AdHoc | AJ33: N | AK33: Y | AL33: N | AN33: 0 | AO33: 9 | AP33: Non-Essential Worker | AQ33: N | AU33: 15.5 | AV33: 1240 | AW33: 0 | AX33: 0 | AY33: 0 | AZ33: 0 | BA33: 0 | BB33: 0 | BC33: 0 | BD33: 0 | BF33: No differential | BG33: 0 | BL33: Active | BO33: N | BR33: N | BU33: 0 | BV33: 1 | BW33: 2025-04 | BX33: 2025-10 | BY33: 0 | BZ33: N | CA33: 0 | CB33: 0 | CD33: 0 | CE33: 0 | CG33: 0 | CH33: 0
A34: West Lafayette | B34: 4000 | C34: WL Central | D34: 4000 - WL Central | E34: 4000 - West Lafayette - Central | F34: 4000 | G34: Student Aid - West Lafayette | H34: 99040300 | I34: Student Aid | J34: 99040300 | K34: 99040300 - Student Aid | L34: U1 | M34: Undergraduate | N34: KXX - Affiliated Organizations | O34: KXX | P34: 40001409 | Q34: Student Service - Off Camp Reading Tutor | R34: 20003261 | S34: Student (1) | T34: Non Staff | U34: Undergraduate Students | V34: Student | W34: ZA - Student Hourly | X34: Student | Y34: U005 | Z34: 7.25 | AA34: 9.28 | AB34: 11.3 | AC34: HOURLY | AD34: Bi-Weekly | AE34: Z1 | AF34: DUR - Temp/Student | AG34: NonEx-Student/Temp-Pos-Dur | AH34: Ad Hoc | AI34: AdHoc | AJ34: N | AK34: Y | AL34: N | AN34: 0 | AO34: 7 | AP34: Non-Essential Worker | AQ34: N | AU34: 12.5 | AV34: 1000 | AW34: 0 | AX34: 0 | AY34: 0 | AZ34: 0 | BA34: 0 | BB34: 0 | BC34: 0 | BD34: 0 | BF34: No differential | BG34: 0 | BL34: Active | BO34: N | BR34: N | BU34: 0 | BV34: 1 | BW34: 2025-04 | BX34: 2025-10 | BY34: 0 | BZ34: N | CA34: 0 | CB34: 0 | CD34: 0 | CE34: 0 | CG34: 0 | CH34: 0
A35: West Lafayette | B35: 4000 | C35: WL Central | D35: 4000 - WL Central | E35: 4000 - West Lafayette - Central | F35: 4000 | G35: Student Aid - West Lafayette | H35: 99040300 | I35: Student Aid | J35: 99040300 | K35: 99040300 - Student Aid | L35: U1 | M35: Undergraduate | N35: KXX - Affiliated Organizations | O35: KXX | P35: 40001409 | Q35: Student Service - Off Camp Reading Tutor | R35: 20003261 | S35: Student (1) | T35: Non Staff | U35: Undergraduate Students | V35: Student | W35: ZA - Student Hourly | X35: Student | Y35: U005 | Z35: 7.25 | AA35: 9.28 | AB35: 11.3 | AC35: HOURLY | AD35: Bi-Weekly | AE35: Z1 | AF35: DUR - Temp/Student | AG35: NonEx-Student/Temp-Pos-Dur | AH35: Ad Hoc | AI35: AdHoc | AJ35: Y | AK35: N | AL35: N | AN35: 0 | AO35: 9 | AP35: Non-Essential Worker | AQ35: N | AU35: 15 | AV35: 1200 | AW35: 0 | AX35: 0 | AY35: 0 | AZ35: 0 | BA35: 0 | BB35: 0 | BC35: 0 | BD35: 0 | BF35: No differential | BG35: 0 | BL35: Active | BO35: N | BR35: N | BU35: 1 | BV35: 1 | BW35: 2025-04 | BX35: 2025-10 | BY35: 0 | BZ35: N | CA35: 0 | CB35: 0 | CD35: 0 | CE35: 0 | CG35: 0 | CH35: 0
A36: West Lafayette | B36: 4000 | C36: WL Central | D36: 4000 - WL Central | E36: 4000 - West Lafayette - Central | F36: 4000 | G36: Student Aid - West Lafayette | H36: 99040300 | I36: Student Aid | J36: 99040300 | K36: 99040300 - Student Aid | L36: U1 | M36: Undergraduate | N36: KXX - Affiliated Organizations | O36: KXX | P36: 40001409 | Q36: Student Service - Off Camp Reading Tutor | R36: 20003261 | S36: Student (1) | T36: Non Staff | U36: Undergraduate Students | V36: Student | W36: ZA - Student Hourly | X36: Student | Y36: U005 | Z36: 7.25 | AA36: 9.28 | AB36: 11.3 | AC36: HOURLY | AD36: Bi-Weekly | AE36: Z1 | AF36: DUR - Temp/Student | AG36: NonEx-Student/Temp-Pos-Dur | AH36: Ad Hoc | AI36: AdHoc | AJ36: Y | AK36: N | AL36: N | AN36: 0 | AO36: 8 | AP36: Non-Essential Worker | AQ36: N | AU36: 15 | AV36: 1200 | AW36: 0 | AX36: 0 | AY36: 0 | AZ36: 0 | BA36: 0 | BB36: 0 | BC36: 0 | BD36: 0 | BF36: No differential | BG36: 0 | BL36: Active | BO36: N | BR36: N | BU36: 1 | BV36: 1 | BW36: 2025-04 | BX36: 2025-10 | BY36: 0 | BZ36: N | CA36: 0 | CB36: 0 | CD36: 0 | CE36: 0 | CG36: 0 | CH36: 0
A37: West Lafayette | B37: 4000 | C37: WL Central | D37: 4000 - WL Central | E37: 4000 - West Lafayette - Central | F37: 4000 | G37: Student Aid - West Lafayette | H37: 99040300 | I37: Student Aid | J37: 99040300 | K37: 99040300 - Student Aid | L37: U1 | M37: Undergraduate | N37: KXX - Affiliated Organizations | O37: KXX | P37: 40001409 | Q37: Student Service - Off Camp Reading Tutor | R37: 20003261 | S37: Student (1) | T37: Non Staff | U37: Undergraduate Students | V37: Student | W37: ZA - Student Hourly | X37: Student | Y37: U005 | Z37: 7.25 | AA37: 9.28 | AB37: 11.3 | AC37: HOURLY | AD37: Bi-Weekly | AE37: Z1 | AF37: DUR - Temp/Student | AG37: NonEx-Student/Temp-Pos-Dur | AH37: Ad Hoc | AI37: AdHoc | AJ37: N | AK37: N | AL37: N | AN37: 0 | AO37: 7 | AP37: Non-Essential Worker | AQ37: N | AU37: 16 | AV37: 1280 | AW37: 0 | AX37: 0 | AY37: 0 | AZ37: 0 | BA37: 0 | BB37: 0 | BC37: 0 | BD37: 0 | BF37: No differential | BG37: 0 | BL37: Active | BO37: N | BR37: N | BU37: 0 | BV37: 1 | BW37: 2025-04 | BX37: 2025-10 | BY37: 0 | BZ37: N | CA37: 0 | CB37: 0 | CD37: 0 | CE37: 0 | CG37: 0 | CH37: 0
A38: West Lafayette | B38: 4000 | C38: WL Central | D38: 4000 - WL Central | E38: 4000 - West Lafayette - Central | F38: 4000 | G38: Student Aid - West Lafayette | H38: 99040300 | I38: Student Aid | J38: 99040300 | K38: 99040300 - Student Aid | L38: U1 | M38: Undergraduate | N38: KXX - Affiliated Organizations | O38: KXX | P38: 40001409 | Q38: Student Service - Off Camp Reading Tutor | R38: 20003261 | S38: Student (1) | T38: Non Staff | U38: Undergraduate Students | V38: Student | W38: ZA - Student Hourly | X38: Student | Y38: U005 | Z38: 7.25 | AA38: 9.28 | AB38: 11.3 | AC38: HOURLY | AD38: Bi-Weekly | AE38: Z1 | AF38: DUR - Temp/Student | AG38: NonEx-Student/Temp-Pos-Dur | AH38: Ad Hoc | AI38: AdHoc | AJ38: N | AK38: Y | AL38: N | AN38: 0 | AO38: 8 | AP38: Non-Essential Worker | AQ38: N | AU38: 15.5 | AV38: 1240 | AW38: 0 | AX38: 0 | AY38: 0 | AZ38: 0 | BA38: 0 | BB38: 0 | BC38: 0 | BD38: 0 | BF38: No differential | BG38: 0 | BL38: Active | BO38: N | BR38: N | BU38: 0 | BV38: 1 | BW38: 2025-04 | BX38: 2025-10 | BY38: 0 | BZ38: N | CA38: 0 | CB38: 0 | CD38: 0 | CE38: 0 | CG38: 0 | CH38: 0
A39: West Lafayette | B39: 4000 | C39: WL Central | D39: 4000 - WL Central | E39: 4000 - West Lafayette - Central | F39: 4000 | G39: Student Aid - West Lafayette | H39: 99040300 | I39: Student Aid | J39: 99040300 | K39: 99040300 - Student Aid | L39: U1 | M39: Undergraduate | N39: KXX - Affiliated Organizations | O39: KXX | P39: 40001409 | Q39: Student Service - Off Camp Reading Tutor | R39: 20003261 | S39: Student (1) | T39: Non Staff | U39: Undergraduate Students | V39: Student | W39: ZA - Student Hourly | X39: Student | Y39: U005 | Z39: 7.25 | AA39: 9.28 | AB39: 11.3 | AC39: HOURLY | AD39: Bi-Weekly | AE39: Z1 | AF39: DUR - Temp/Student | AG39: NonEx-Student/Temp-Pos-Dur | AH39: Ad Hoc | AI39: AdHoc | AJ39: N | AK39: Y | AL39: N | AN39: 0 | AO39: 7 | AP39: Non-Essential Worker | AQ39: N | AU39: 15 | AV39: 1200 | AW39: 0 | AX39: 0 | AY39: 0 | AZ39: 0 | BA39: 0 | BB39: 0 | BC39: 0 | BD39: 0 | BF39: No differential | BG39: 0 | BL39: Active | BO39: N | BR39: N | BU39: 0 | BV39: 1 | BW39: 2025-04 | BX39: 2025-10 | BY39: 0 | BZ39: N | CA39: 0 | CB39: 0 | CD39: 0 | CE39: 0 | CG39: 0 | CH39: 0
A40: West Lafayette | B40: 4000 | C40: WL Central | D40: 4000 - WL Central | E40: 4000 - West Lafayette - Central | F40: 4000 | G40: Student Aid - West Lafayette | H40: 99040300 | I40: Student Aid | J40: 99040300 | K40: 99040300 - Student Aid | L40: U1 | M40: Undergraduate | N40: KXX - Affiliated Organizations | O40: KXX | P40: 40001409 | Q40: Student Service - Off Camp Reading Tutor | R40: 20003261 | S40: Student (1) | T40: Non Staff | U40: Undergraduate Students | V40: Student | W40: ZA - Student Hourly | X40: Student | Y40: U005 | Z40: 7.25 | AA40: 9.28 | AB40: 11.3 | AC40: HOURLY | AD40: Bi-Weekly | AE40: Z1 | AF40: DUR - Temp/Student | AG40: NonEx-Student/Temp-Pos-Dur | AH40: Ad Hoc | AI40: AdHoc | AJ40: N | AK40: Y | AL40: N | AN40: 0 | AO40: 5 | AP40: Non-Essential Worker | AQ40: N | AU40: 13 | AV40: 1040 | AW40: 0 | AX40: 0 | AY40: 0 | AZ40: 0 | BA40: 0 | BB40: 0 | BC40: 0 | BD40: 0 | BF40: No differential | BG40: 0 | BL40: Active | BO40: N | BR40: N | BU40: 0 | BV40: 1 | BW40: 2025-04 | BX40: 2025-10 | BY40: 0 | BZ40: N | CA40: 0 | CB40: 0 | CD40: 0 | CE40: 0 | CG40: 0 | CH40: 0
A41: West Lafayette | B41: 4000 | C41: WL Central | D41: 4000 - WL Central | E41: 4000 - West Lafayette - Central | F41: 4000 | G41: Student Aid - West Lafayette | H41: 99040300 | I41: Student Aid | J41: 99040300 | K41: 99040300 - Student Aid | L41: U1 | M41: Undergraduate | N41: KXX - Affiliated Organizations | O41: KXX | P41: 40001409 | Q41: Student Service - Off Camp Reading Tutor | R41: 20003261 | S41: Student (1) | T41: Non Staff | U41: Undergraduate Students | V41: Student | W41: ZA - Student Hourly | X41: Student | Y41: U005 | Z41: 7.25 | AA41: 9.28 | AB41: 11.3 | AC41: HOURLY | AD41: Bi-Weekly | AE41: Z1 | AF41: DUR - Temp/Student | AG41: NonEx-Student/Temp-Pos-Dur | AH41: Ad Hoc | AI41: AdHoc | AJ41: N | AK41: Y | AL41: N | AN41: 0 | AO41: 5 | AP41: Non-Essential Worker | AQ41: N | AU41: 12.5 | AV41: 1000 | AW41: 0 | AX41: 0 | AY41: 0 | AZ41: 0 | BA41: 0 | BB41: 0 | BC41: 0 | BD41: 0 | BF41: No differential | BG41: 0 | BL41: Active | BO41: N | BR41: N | BU41: 0 | BV41: 1 | BW41: 2025-04 | BX41: 2025-10 | BY41: 0 | BZ41: N | CA41: 0 | CB41: 0 | CD41: 0 | CE41: 0 | CG41: 0 | CH41: 0
A42: West Lafayette | B42: 4000 | C42: WL Central | D42: 4000 - WL Central | E42: 4000 - West Lafayette - Central | F42: 4000 | G42: Student Aid - West Lafayette | H42: 99040300 | I42: Student Aid | J42: 99040300 | K42: 99040300 - Student Aid | L42: U1 | M42: Undergraduate | N42: KXX - Affiliated Organizations | O42: KXX | P42: 40001409 | Q42: Student Service - Off Camp Reading Tutor | R42: 20003261 | S42: Student (1) | T42: Non Staff | U42: Undergraduate Students | V42: Student | W42: ZA - Student Hourly | X42: Student | Y42: U005 | Z42: 7.25 | AA42: 9.28 | AB42: 11.3 | AC42: HOURLY | AD42: Bi-Weekly | AE42: Z1 | AF42: DUR - Temp/Student | AG42: NonEx-Student/Temp-Pos-Dur | AH42: Ad Hoc | AI42: AdHoc | AJ42: N | AK42: Y | AL42: N | AN42: 0 | AO42: 4 | AP42: Non-Essential Worker | AQ42: N | AU42: 13 | AV42: 1040 | AW42: 0 | AX42: 0 | AY42: 0 | AZ42: 0 | BA42: 0 | BB42: 0 | BC42: 0 | BD42: 0 | BF42: No differential | BG42: 0 | BL42: Active | BO42: N | BR42: N | BU42: 0 | BV42: 1 | BW42: 2025-04 | BX42: 2025-10 | BY42: 0 | BZ42: N | CA42: 0 | CB42: 0 | CD42: 0 | CE42: 0 | CG42: 0 | CH42: 0
A43: West Lafayette | B43: 4000 | C43: WL Central | D43: 4000 - WL Central | E43: 4000 - West Lafayette - Central | F43: 4000 | G43: Student Aid - West Lafayette | H43: 99040300 | I43: Student Aid | J43: 99040300 | K43: 99040300 - Student Aid | L43: U1 | M43: Undergraduate | N43: KXX - Affiliated Organizations | O43: KXX | P43: 40001409 | Q43: Student Service - Off Camp Reading Tutor | R43: 20003261 | S43: Student (1) | T43: Non Staff | U43: Undergraduate Students | V43: Student | W43: ZA - Student Hourly | X43: Student | Y43: U005 | Z43: 7.25 | AA43: 9.28 | AB43: 11.3 | AC43: HOURLY | AD43: Bi-Weekly | AE43: Z1 | AF43: DUR - Temp/Student | AG43: NonEx-Student/Temp-Pos-Dur | AH43: Ad Hoc | AI43: AdHoc | AJ43: N | AK43: Y | AL43: N | AN43: 0 | AO43: 4 | AP43: Non-Essential Worker | AQ43: N | AU43: 13 | AV43: 1040 | AW43: 0 | AX43: 0 | AY43: 0 | AZ43: 0 | BA43: 0 | BB43: 0 | BC43: 0 | BD43: 0 | BF43: No differential | BG43: 0 | BL43: Active | BO43: N | BR43: N | BU43: 0 | BV43: 1 | BW43: 2025-04 | BX43: 2025-10 | BY43: 0 | BZ43: N | CA43: 0 | CB43: 0 | CD43: 0 | CE43: 0 | CG43: 0 | CH43: 0
A44: West Lafayette | B44: 4000 | C44: WL Central | D44: 4000 - WL Central | E44: 4000 - West Lafayette - Central | F44: 4000 | G44: Student Aid - West Lafayette | H44: 99040300 | I44: Student Aid | J44: 99040300 | K44: 99040300 - Student Aid | L44: U1 | M44: Undergraduate | N44: KXX - Affiliated Organizations | O44: KXX | P44: 40001409 | Q44: Student Service - Off Camp Reading Tutor | R44: 20003261 | S44: Student (1) | T44: Non Staff | U44: Undergraduate Students | V44: Student | W44: ZA - Student Hourly | X44: Student | Y44: U005 | Z44: 7.25 | AA44: 9.28 | AB44: 11.3 | AC44: HOURLY | AD44: Bi-Weekly | AE44: Z1 | AF44: DUR - Temp/Student | AG44: NonEx-Student/Temp-Pos-Dur | AH44: Ad Hoc | AI44: AdHoc | AJ44: N | AK44: Y | AL44: N | AN44: 0 | AO44: 4 | AP44: Non-Essential Worker | AQ44: N | AU44: 13 | AV44: 1040 | AW44: 0 | AX44: 0 | AY44: 0 | AZ44: 0 | BA44: 0 | BB44: 0 | BC44: 0 | BD44: 0 | BF44: No differential | BG44: 0 | BL44: Active | BO44: N | BR44: N | BU44: 0 | BV44: 1 | BW44: 2025-04 | BX44: 2025-10 | BY44: 0 | BZ44: N | CA44: 0 | CB44: 0 | CD44: 0 | CE44: 0 | CG44: 0 | CH44: 0
A45: West Lafayette | B45: 4000 | C45: WL Central | D45: 4000 - WL Central | E45: 4000 - West Lafayette - Central | F45: 4000 | G45: Student Aid - West Lafayette | H45: 99040300 | I45: Student Aid | J45: 99040300 | K45: 99040300 - Student Aid | L45: U1 | M45: Undergraduate | N45: KXX - Affiliated Organizations | O45: KXX | P45: 40001409 | Q45: Student Service - Off Camp Reading Tutor | R45: 20003261 | S45: Student (1) | T45: Non Staff | U45: Undergraduate Students | V45: Student | W45: ZA - Student Hourly | X45: Student | Y45: U005 | Z45: 7.25 | AA45: 9.28 | AB45: 11.3 | AC45: HOURLY | AD45: Bi-Weekly | AE45: Z1 | AF45: DUR - Temp/Student | AG45: NonEx-Student/Temp-Pos-Dur | AH45: Ad Hoc | AI45: AdHoc | AJ45: N | AK45: Y | AL45: N | AN45: 0 | AO45: 3 | AP45: Non-Essential Worker | AQ45: N | AU45: 13 | AV45: 1040 | AW45: 0 | AX45: 0 | AY45: 0 | AZ45: 0 | BA45: 0 | BB45: 0 | BC45: 0 | BD45: 0 | BF45: No differential | BG45: 0 | BL45: Active | BO45: N | BR45: N | BU45: 0 | BV45: 1 | BW45: 2025-04 | BX45: 2025-10 | BY45: 0 | BZ45: N | CA45: 0 | CB45: 0 | CD45: 0 | CE45: 0 | CG45: 0 | CH45: 0
A46: West Lafayette | B46: 4001 | C46: Office of the Chief of Staff | D46: 4001 - Office of the Chief of Staff | E46: 4001 - President | F46: 4001 | G46: President Admin | H46: 33000000 | I46: President Operations | J46: 33000000 | K46: 33000000 - President Operations | L46: S3 | M46: Administrative and Operational Support | N46: A0A - President | O46: A0A | P46: 40004609 | Q46: Senior Housekeeper | R46: 20002741 | S46: Housekeeper, Senior | T46: Facilities | U46: Building and Facilities | V46: Service | W46: Z8 - 12 Month Hourly | X46: Staff | Y46: S040 | Z46: 32100 | AA46: 44600 | AB46: 57100 | AC46: HOURLY | AD46: Bi-Weekly | AE46: Z1 | AF46: DUR - Non-Exempt - Negative | AG46: Neg-NonExempt-Dur | AH46: Non-Exempt - Monday to Friday - 8Hrs | AI46: NEMF08 | AJ46: Y | AK46: N | AL46: N | AN46: 1 | AO46: 78 | AP46: Essential Worker | AQ46: Y | AU46: 21.99 | AV46: 1759.2 | AW46: 45739.2 | AX46: 45739.2 | AY46: 45739.2 | AZ46: 35795.5 | BA46: 35795.5 | BB46: 45739.2 | BC46: 0 | BD46: 0 | BF46: No differential | BG46: 0 | BL46: Active | BO46: N | BR46: N | BU46: 1 | BV46: 1 | BW46: 2025-04 | BX46: 2025-10 | BY46: 45739 | BZ46: N | CA46: 45739.2 | CB46: 1 | CC46: Full Time | CD46: 0 | CE46: 0 | CG46: 0 | CH46: 0
A47: West Lafayette | B47: 4001 | C47: Office of the Chief of Staff | D47: 4001 - Office of the Chief of Staff | E47: 4001 - President | F47: 4001 | G47: President Admin | H47: 33000000 | I47: President Operations | J47: 33000000 | K47: 33000000 - President Operations | L47: P3 | M47: Professional | N47: A0A - President | O47: A0A | P47: 40004794 | Q47: Logistics and Scheduling Specialist | R47: 20002359 | S47: Executive Assistant, Senior | T47: Administration | U47: Administrative Operations | V47: Professional | W47: Z4 - 12 Month Salaried | X47: Staff | Y47: S070 | Z47: 62000 | AA47: 86100 | AB47: 110200 | AC47: MON | AD47: Monthly | AE47: Z2 | AF47: DUR - Exempt - FY | AG47: Exempt-Neg-Dur | AH47: Exempt - Monday to Friday - 8hrs | AI47: NORM | AJ47: Y | AK47: N | AL47: N | AN47: 1 | AO47: 35 | AP47: Non-Essential Worker | AQ47: Y | AU47: 0 | AV47: 6642.55 | AW47: 79710.6 | AX47: 79710.6 | AY47: 79710.6 | AZ47: 62381.52 | BA47: 62381.52 | BB47: 79710.6 | BC47: 0 | BD47: 0 | BE47: Day_Shft | BF47: First Shift-no differential | BG47: 0 | BL47: Active | BO47: N | BR47: N | BU47: 1 | BV47: 1 | BW47: 2025-04 | BX47: 2025-10 | BY47: 79711 | BZ47: N | CA47: 79710.6 | CB47: 1 | CC47: Full Time | CD47: 0 | CE47: 0 | CG47: 0 | CH47: 0
A48: West Lafayette | B48: 4001 | C48: Office of the Chief of Staff | D48: 4001 - Office of the Chief of Staff | E48: 4001 - President | F48: 4001 | G48: President Admin | H48: 33000000 | I48: President Operations | J48: 33000000 | K48: 33000000 - President Operations | L48: E3 | M48: Executive | N48: A0A - President | O48: A0A | P48: 40007607 | Q48: President | R48: 20002958 | S48: President | T48: Administration | U48: Administrative Operations | V48: Executive | W48: Z4 - 12 Month Salaried | X48: Executive | Y48: E001 | Z48: 0 | AA48: 500000 | AB48: 1000000 | AC48: MON | AD48: Monthly | AE48: Z2 | AF48: DUR - Exempt - FY | AG48: Exempt-Neg-Dur | AH48: Exempt - Monday to Friday - 8hrs | AI48: NORM | AJ48: Y | AK48: N | AL48: N | AN48: 1 | AO48: 30 | AQ48: Y | AU48: 0 | AV48: 37492 | AW48: 449904 | AX48: 449904 | AY48: 449904 | AZ48: 352094.87 | BA48: 352094.87 | BB48: 449904 | BC48: 0 | BD48: 0 | BE48: Day_Shft | BF48: First Shift-no differential | BG48: 0 | BH48: Professor | BI48: 8 | BJ48: 2017-07-01 | BK48: 2017-07-01 | BL48: Active | BM48: 2017-07-01 | BO48: N | BR48: N | BU48: 1 | BV48: 1 | BW48: 2025-04 | BX48: 2025-10 | BY48: 449904 | BZ48: N | CA48: 449904 | CB48: 1 | CC48: Full Time | CD48: 0 | CE48: 0 | CG48: 0 | CH48: 0
A49: West Lafayette | B49: 4001 | C49: Office of the Chief of Staff | D49: 4001 - Office of the Chief of Staff | E49: 4001 - President | F49: 4001 | G49: President Admin | H49: 33000000 | I49: President Operations | J49: 33000000 | K49: 33000000 - President Operations | L49: S2 | M49: Administrative and Operational Support | N49: A0A - President | O49: A0A | P49: 40068237 | Q49: Housekeeper | R49: 20002740 | S49: Housekeeper | T49: Facilities | U49: Building and Facilities | V49: Service | W49: Z8 - 12 Month Hourly | X49: Staff | Y49: S035 | Z49: 29100 | AA49: 40500 | AB49: 51900 | AC49: HOURLY | AD49: Bi-Weekly | AE49: Z1 | AF49: DUR - Non-Exempt - Negative | AG49: Neg-NonExempt-Dur | AH49: Non-Exempt - Monday to Friday - 8Hrs | AI49: NEMF08 | AJ49: Y | AK49: N | AL49: N | AN49: 1 | AO49: 26 | AP49: Non-Essential Worker | AQ49: Y | AU49: 19.06 | AV49: 1524.8 | AW49: 39644.8 | AX49: 39644.8 | AY49: 39644.8 | AZ49: 31026.02 | BA49: 31026.02 | BB49: 39644.8 | BC49: 0 | BD49: 0 | BF49: No differential | BG49: 0 | BL49: Active | BO49: N | BR49: N | BU49: 1 | BV49: 1 | BW49: 2025-04 | BX49: 2025-10 | BY49: 39645 | BZ49: N | CA49: 39644.8 | CB49: 1 | CC49: Full Time | CD49: 0 | CE49: 0 | CG49: 0 | CH49: 0
A50: West Lafayette | B50: 4001 | C50: Office of the Chief of Staff | D50: 4001 - Office of the Chief of Staff | E50: 4001 - President | F50: 4001 | G50: President Admin | H50: 33000000 | I50: President Operations | J50: 33000000 | K50: 33000000 - President Operations | L50: S3 | M50: Administrative and Operational Support | N50: A0A - President | O50: A0A | P50: 40011238 | Q50: Senior Administrative Assistant | R50: 20002331 | S50: Administrative Assistant, Senior | T50: Administration | U50: Administrative Operations | V50: Support | W50: Z8 - 12 Month Hourly | X50: Staff | Y50: S045 | Z50: 35300 | AA50: 49000 | AB50: 62700 | AC50: HOURLY | AD50: Bi-Weekly | AE50: Z1 | AF50: DUR - Non-Exempt - Negative - GF | AG50: Neg-NonExempt-Dur | AH50: Non-Exempt - Monday to Friday - 8Hrs | AI50: NEMF08 | AJ50: Y | AK50: N | AL50: N | AN50: 1 | AO50: 78 | AP50: Non-Essential Worker | AQ50: Y | AR50: Prior Op Tech Group | AU50: 29.47 | AV50: 2357.6 | AW50: 61297.6 | AX50: 61297.6 | AY50: 61297.6 | AZ50: 47971.5 | BA50: 47971.5 | BB50: 61297.6 | BC50: 0 | BD50: 0 | BF50: No differential | BG50: 0 | BL50: Active | BO50: N | BR50: N | BU50: 1 | BV50: 1 | BW50: 2025-04 | BX50: 2025-10 | BY50: 61298 | BZ50: N | CA50: 61297.6 | CB50: 1 | CC50: Full Time | CD50: 0 | CE50: 0 | CG50: 0 | CH50: 0
A51: West Lafayette | B51: 4001 | C51: Office of the Chief of Staff | D51: 4001 - Office of the Chief of Staff | E51: 4001 - President | F51: 4001 | G51: President Admin | H51: 33000000 | I51: President Operations | J51: 33000000 | K51: 33000000 - President Operations | L51: P5 | M51: Professional | N51: A0A - President | O51: A0A | P51: 40063057 | Q51: Senior Executive Assistant to the President | R51: 20004133 | S51: Executive Assistant, Principal | T51: Administration | U51: Administrative Operations | V51: Professional | W51: Z4 - 12 Month Salaried | X51: Staff | Y51: S085 | Z51: 94200 | AA51: 131000 | AB51: 167800 | AC51: MON | AD51: Monthly | AE51: Z2 | AF51: DUR - Exempt - FY | AG51: Exempt-Neg-Dur | AH51: Exempt - Monday to Friday - 8hrs | AI51: NORM | AJ51: Y | AK51: N | AL51: N | AN51: 1 | AO51: 36 | AP51: Essential Worker | AQ51: Y | AU51: 0 | AV51: 9871.34 | AW51: 118456.08 | AX51: 118456.08 | AY51: 118456.08 | AZ51: 92703.73 | BA51: 92703.73 | BB51: 118456.08 | BC51: 0 | BD51: 0 | BE51: Day_Shft | BF51: First Shift-no differential | BG51: 0 | BL51: Active | BO51: N | BR51: N | BU51: 1 | BV51: 1 | BW51: 2025-04 | BX51: 2025-10 | BY51: 118456 | BZ51: N | CA51: 118456.08 | CB51: 1 | CC51: Full Time | CD51: 0 | CE51: 0 | CG51: 0 | CH51: 0
A52: West Lafayette | B52: 4001 | C52: Office of the Chief of Staff | D52: 4001 - Office of the Chief of Staff | E52: 4001 - President | F52: 4001 | G52: President Admin | H52: 33000000 | I52: President Operations | J52: 33000000 | K52: 33000000 - President Operations | L52: P6 | M52: Professional | N52: A0A - President | O52: A0A | P52: 40008521 | Q52: Westwood Event Coord/Instr Hosp/Tour Mg | R52: 20003693 | S52: Operations Administrator, Senior Principal | T52: Administration | U52: Operations Support | V52: M/P Professional | W52: Z4 - 12 Month Salaried | X52: Staff | Y52: S085 | Z52: 94200 | AA52: 131000 | AB52: 167800 | AC52: MON | AD52: Monthly | AE52: Z2 | AF52: DUR - Exempt - FY | AG52: Exempt-Neg-Dur | AH52: Exempt - Monday to Friday - 8hrs | AI52: NORM | AJ52: Y | AK52: N | AL52: N | AN52: 1 | AO52: 78 | AP52: Essential Worker | AQ52: Y | AU52: 0 | AV52: 13923.95 | AW52: 167087.4 | AX52: 167087.4 | AY52: 167087.4 | AZ52: 130762.6 | BA52: 130762.6 | BB52: 167087.4 | BC52: 0 | BD52: 0 | BE52: Day_Shft | BF52: First Shift-no differential | BG52: 0 | BL52: Active | BO52: Y | BP52: 13040000 | BR52: N | BU52: 1 | BV52: 1 | BW52: 2025-04 | BX52: 2025-10 | BY52: 167087 | BZ52: N | CA52: 167087.4 | CB52: 1 | CC52: Full Time | CD52: 0 | CE52: 0 | CG52: 0 | CH52: 0
A53: West Lafayette | B53: 4001 | C53: Office of the Chief of Staff | D53: 4001 - Office of the Chief of Staff | E53: 4001 - President | F53: 4001 | G53: Chief of Staff Administration | H53: 33020000 | I53: President Operations | J53: 33000000 | K53: 33000000 - President Operations | L53: M3 | M53: Management | N53: A0A - President | O53: A0A | P53: 40080413 | Q53: Executive Assistant to the Chief of Staff | R53: 20002794 | S53: Operations, Senior Manager | T53: Administration | U53: Operations Support | V53: M/P Management | W53: Z4 - 12 Month Salaried | X53: Staff | Y53: S070 | Z53: 62000 | AA53: 86100 | AB53: 110200 | AC53: MON | AD53: Monthly | AE53: Z2 | AF53: DUR - Exempt - FY | AG53: Exempt-Neg-Dur | AH53: Exempt - Monday to Friday - 8hrs | AI53: NORM | AJ53: Y | AK53: N | AL53: N | AN53: 1 | AO53: 12 | AP53: Non-Essential Worker | AQ53: Y | AU53: 0 | AV53: 6666.67 | AW53: 80000.04 | AX53: 80000.04 | AY53: 80000.04 | AZ53: 62608.03 | BA53: 62608.03 | BB53: 80000.04 | BC53: 0 | BD53: 0 | BE53: Day_Shft | BF53: First Shift-no differential | BG53: 0 | BL53: Active | BO53: N | BR53: N | BU53: 1 | BV53: 1 | BW53: 2025-04 | BX53: 2025-10 | BY53: 80000 | BZ53: N | CA53: 80000.04 | CB53: 1 | CC53: Full Time | CD53: 0 | CE53: 0 | CG53: 0 | CH53: 0
A54: West Lafayette | B54: 4001 | C54: Office of the Chief of Staff | D54: 4001 - Office of the Chief of Staff | E54: 4001 - President | F54: 4001 | G54: Chief of Staff Administration | H54: 33020000 | I54: President Operations | J54: 33000000 | K54: 33000000 - President Operations | L54: P4 | M54: Professional | N54: A0A - President | O54: A0A | P54: 40068167 | Q54: Lead Data Analyst | R54: 20002212 | S54: Data Analyst, Lead | T54: Administration | U54: Assessment and Analysis | V54: M/P Professional | W54: Z4 - 12 Month Salaried | X54: Staff | Y54: S075 | Z54: 71200 | AA54: 99000 | AB54: 126800 | AC54: MON | AD54: Monthly | AE54: Z2 | AF54: DUR - Exempt - FY | AG54: Exempt-Neg-Dur | AH54: Exempt - Monday to Friday - 8hrs | AI54: NORM | AJ54: Y | AK54: N | AL54: N | AN54: 1 | AO54: 28 | AP54: Non-Essential Worker | AQ54: Y | AU54: 0 | AV54: 7583.34 | AW54: 91000.08 | AX54: 91000.08 | AY54: 91000.08 | AZ54: 71216.66 | BA54: 71216.66 | BB54: 91000.08 | BC54: 0 | BD54: 0 | BE54: Day_Shft | BF54: First Shift-no differential | BG54: 0 | BL54: Active | BO54: N | BR54: N | BU54: 1 | BV54: 1 | BW54: 2025-04 | BX54: 2025-10 | BY54: 91000 | BZ54: N | CA54: 91000.08 | CB54: 1 | CC54: Full Time | CD54: 0 | CE54: 0 | CG54: 0 | CH54: 0
A55: West Lafayette | B55: 4001 | C55: Office of the Chief of Staff | D55: 4001 - Office of the Chief of Staff | E55: 4001 - President | F55: 4001 | G55: Chief of Staff Administration | H55: 33020000 | I55: President Operations | J55: 33000000 | K55: 33000000 - President Operations | L55: P3 | M55: Professional | N55: A0A - President | O55: A0A | P55: 40078084 | Q55: Senior Data Analyst | R55: 20002211 | S55: Data Analyst, Senior | T55: Administration | U55: Assessment and Analysis | V55: Professional | W55: Z4 - 12 Month Salaried | X55: Staff | Y55: S070 | Z55: 62000 | AA55: 86100 | AB55: 110200 | AC55: MON | AD55: Monthly | AE55: Z2 | AF55: DUR - Exempt - FY | AG55: Exempt-Neg-Dur | AH55: Exempt - Monday to Friday - 8hrs | AI55: NORM | AJ55: Y | AK55: N | AL55: N | AN55: 1 | AO55: 14 | AP55: Non-Essential Worker | AQ55: Y | AU55: 0 | AV55: 6866.67 | AW55: 82400.04 | AX55: 82400.04 | AY55: 82400.04 | AZ55: 64486.27 | BA55: 64486.27 | BB55: 82400.04 | BC55: 0 | BD55: 0 | BE55: Day_Shft | BF55: First Shift-no differential | BG55: 0 | BL55: Active | BO55: N | BR55: N | BU55: 1 | BV55: 1 | BW55: 2025-04 | BX55: 2025-10 | BY55: 82400 | BZ55: N | CA55: 82400.04 | CB55: 1 | CC55: Full Time | CD55: 0 | CE55: 0 | CG55: 0 | CH55: 0
A56: West Lafayette | B56: 4001 | C56: Office of the Chief of Staff | D56: 4001 - Office of the Chief of Staff | E56: 4001 - President | F56: 4001 | G56: Chief of Staff Administration | H56: 33020000 | I56: President Operations | J56: 33000000 | K56: 33000000 - President Operations | L56: P3 | M56: Professional | N56: A0A - President | O56: A0A | P56: 40068169 | Q56: Senior Data Analyst | R56: 20002211 | S56: Data Analyst, Senior | T56: Administration | U56: Assessment and Analysis | V56: Professional | W56: Z4 - 12 Month Salaried | X56: Staff | Y56: S070 | Z56: 62000 | AA56: 86100 | AB56: 110200 | AC56: MON | AD56: Monthly | AE56: Z2 | AF56: DUR - Exempt - FY | AG56: Exempt-Neg-Dur | AH56: Exempt - Monday to Friday - 8hrs | AI56: NORM | AJ56: Y | AK56: N | AL56: N | AN56: 1 | AO56: 28 | AP56: Non-Essential Worker | AQ56: Y | AU56: 0 | AV56: 7141.34 | AW56: 85696.08 | AX56: 85696.08 | AY56: 85696.08 | AZ56: 67065.75 | BA56: 67065.75 | BB56: 85696.08 | BC56: 0 | BD56: 0 | BE56: Day_Shft | BF56: First Shift-no differential | BG56: 0 | BL56: Active | BO56: N | BR56: N | BU56: 1 | BV56: 1 | BW56: 2025-04 | BX56: 2025-10 | BY56: 85696 | BZ56: N | CA56: 85696.08 | CB56: 1 | CC56: Full Time | CD56: 0 | CE56: 0 | CG56: 0 | CH56: 0
A57: West Lafayette | B57: 4001 | C57: Office of the Chief of Staff | D57: 4001 - Office of the Chief of Staff | E57: 4001 - President | F57: 4001 | G57: Chief of Staff Administration | H57: 33020000 | I57: President Operations | J57: 33000000 | K57: 33000000 - President Operations | L57: E1 | M57: Executive | N57: A0A - President | O57: A0A | P57: 40066828 | Q57: Chief of Staff to President | R57: 20002457 | S57: Chief of Staff | T57: Administration | U57: Administrative Operations | V57: Executive | W57: Z4 - 12 Month Salaried | X57: Executive | Y57: E001 | Z57: 0 | AA57: 500000 | AB57: 1000000 | AC57: MON | AD57: Monthly | AE57: Z2 | AF57: DUR - Exempt - FY | AG57: Exempt-Neg-Dur | AH57: Exempt - Monday to Friday - 8hrs | AI57: NORM | AJ57: Y | AK57: N | AL57: N | AN57: 1 | AO57: 12 | AP57: Essential Worker | AQ57: Y | AU57: 0 | AV57: 26666.67 | AW57: 320000.04 | AX57: 320000.04 | AY57: 320000.04 | AZ57: 250432.03 | BA57: 250432.03 | BB57: 320000.04 | BC57: 0 | BD57: 0 | BE57: Day_Shft | BF57: First Shift-no differential | BG57: 0 | BL57: Active | BO57: N | BR57: N | BU57: 1 | BV57: 1 | BW57: 2025-04 | BX57: 2025-10 | BY57: 320000 | BZ57: N | CA57: 320000.04 | CB57: 1 | CC57: Full Time | CD57: 0 | CE57: 0 | CG57: 0 | CH57: 0
A58: West Lafayette | B58: 4001 | C58: Office of the Chief of Staff | D58: 4001 - Office of the Chief of Staff | E58: 4001 - President | F58: 4001 | G58: Chief of Staff Administration | H58: 33020000 | I58: President Operations | J58: 33000000 | K58: 33000000 - President Operations | L58: U2 | M58: Undergraduate | N58: A0A - President | O58: A0A | P58: 40069263 | Q58: Engagement Assistant - Student Clerical | R58: 20003262 | S58: Student (2) | T58: Non Staff | U58: Undergraduate Students | V58: Student | W58: ZA - Student Hourly | X58: Student | Y58: U010 | Z58: 9.38 | AA58: 11.5 | AB58: 13.62 | AC58: HOURLY | AD58: Bi-Weekly | AE58: Z1 | AF58: DUR - Temp/Student | AG58: NonEx-Student/Temp-Pos-Dur | AH58: Ad Hoc | AI58: AdHoc | AJ58: Y | AK58: Y | AL58: N | AN58: 0 | AO58: 24 | AP58: Non-Essential Worker | AQ58: N | AU58: 13.25 | AV58: 1060 | AW58: 0 | AX58: 0 | AY58: 0 | AZ58: 0 | BA58: 0 | BB58: 0 | BC58: 0 | BD58: 0 | BF58: No differential | BG58: 0 | BL58: Active | BO58: N | BR58: N | BU58: 1 | BV58: 1 | BW58: 2025-04 | BX58: 2025-10 | BY58: 0 | BZ58: N | CA58: 0 | CB58: 0 | CD58: 0 | CE58: 0 | CG58: 0 | CH58: 0
A59: West Lafayette | B59: 4001 | C59: Office of the Chief of Staff | D59: 4001 - Office of the Chief of Staff | E59: 4001 - President | F59: 4001 | G59: Chief of Staff Administration | H59: 33020000 | I59: President Operations | J59: 33000000 | K59: 33000000 - President Operations | L59: P1 | M59: Professional | N59: A0A - President | O59: A0A | P59: 40075895 | Q59: Executive Assistant, Associate | R59: 20002357 | S59: Executive Assistant, Associate | T59: Administration | U59: Administrative Operations | V59: Professional | W59: Z4 - 12 Month Salaried | X59: Staff | Y59: S055 | Z59: 42700 | AA59: 59300 | AB59: 75900 | AC59: MON | AD59: Monthly | AE59: Z2 | AF59: DUR - Exempt - FY | AG59: Exempt-Neg-Dur | AH59: Exempt - Monday to Friday - 8hrs | AI59: NORM | AJ59: Y | AK59: N | AL59: N | AN59: 1 | AO59: 19 | AP59: Non-Essential Worker | AQ59: Y | AU59: 0 | AV59: 5450.42 | AW59: 65405.04 | AX59: 65405.04 | AY59: 65405.04 | AZ59: 51185.98 | BA59: 51185.98 | BB59: 65405.04 | BC59: 0 | BD59: 0 | BE59: Day_Shft | BF59: First Shift-no differential | BG59: 0 | BL59: Active | BO59: N | BR59: N | BU59: 1 | BV59: 1 | BW59: 2025-04 | BX59: 2025-10 | BY59: 65405 | BZ59: N | CA59: 65405.04 | CB59: 1 | CC59: Full Time | CD59: 0 | CE59: 0 | CG59: 0 | CH59: 0
A60: West Lafayette | B60: 4001 | C60: Office of the Chief of Staff | D60: 4001 - Office of the Chief of Staff | E60: 4001 - President | F60: 4001 | G60: Chief of Staff Administration | H60: 33020000 | I60: President Operations | J60: 33000000 | K60: 33000000 - President Operations | L60: P6 | M60: Professional | N60: A0A - President | O60: A0A | P60: 40067265 | Q60: Senior Principal Operations Administrator | R60: 20003693 | S60: Operations Administrator, Senior Principal | T60: Administration | U60: Operations Support | V60: M/P Professional | W60: Z4 - 12 Month Salaried | X60: Staff | Y60: S085 | Z60: 94200 | AA60: 131000 | AB60: 167800 | AC60: MON | AD60: Monthly | AE60: Z2 | AF60: DUR - Exempt - FY | AG60: Exempt-Neg-Dur | AH60: Exempt - Monday to Friday - 8hrs | AI60: NORM | AJ60: Y | AK60: N | AL60: N | AN60: 1 | AO60: 30 | AP60: Essential Worker | AQ60: Y | AU60: 0 | AV60: 9816.24 | AW60: 117794.88 | AX60: 117794.88 | AY60: 117794.88 | AZ60: 92186.27 | BA60: 92186.27 | BB60: 117794.88 | BC60: 0 | BD60: 0 | BE60: Day_Shft | BF60: First Shift-no differential | BG60: 0 | BL60: Active | BO60: N | BR60: N | BU60: 1 | BV60: 1 | BW60: 2025-04 | BX60: 2025-10 | BY60: 117795 | BZ60: N | CA60: 117794.88 | CB60: 1 | CC60: Full Time | CD60: 0 | CE60: 0 | CG60: 0 | CH60: 0
A61: West Lafayette | B61: 4001 | C61: Office of the Chief of Staff | D61: 4001 - Office of the Chief of Staff | E61: 4001 - President | F61: 4001 | G61: Chief of Staff Administration | H61: 33020000 | I61: President Operations | J61: 33000000 | K61: 33000000 - President Operations | L61: E1 | M61: Executive | N61: A0A - President | O61: A0A | P61: 40085368 | Q61: Ambassador of Purdue in Indianapolis | R61: 20004203 | S61: Ambassador of Purdue in Indianapolis | T61: Communications and Engagement | U61: Fundraising / Advancement | V61: Executive | W61: Z4 - 12 Month Salaried | X61: Executive | Y61: E001 | Z61: 0 | AA61: 500000 | AB61: 1000000 | AC61: MON | AD61: Monthly | AE61: Z2 | AF61: DUR - Exempt - FY | AG61: Exempt-Neg-Dur | AH61: Exempt - Monday to Friday - 8hrs | AI61: NORM | AJ61: Y | AK61: N | AL61: N | AN61: 1 | AO61: 6 | AP61: Non-Essential Worker | AQ61: Y | AU61: 0 | AV61: 20833.34 | AW61: 250000.08 | AX61: 250000.08 | AY61: 250000.08 | AZ61: 195650.06 | BA61: 195650.06 | BB61: 250000.08 | BC61: 0 | BD61: 0 | BE61: Day_Shft | BL61: Active | BO61: N | BR61: N | BU61: 1 | BV61: 1 | BW61: 2025-04 | BX61: 2025-10 | BY61: 250000 | BZ61: N | CA61: 250000.08 | CB61: 1 | CC61: Full Time | CD61: 0 | CE61: 0 | CG61: 0 | CH61: 0
A62: West Lafayette | B62: 4001 | C62: Office of the Chief of Staff | D62: 4001 - Office of the Chief of Staff | E62: 4001 - President | F62: 4001 | G62: Chief of Staff Administration | H62: 33020000 | I62: President Operations | J62: 33000000 | K62: 33000000 - President Operations | L62: U2 | M62: Undergraduate | N62: A0A - President | O62: A0A | P62: 40073056 | Q62: Data Analytics Assistant - Student Service | R62: 20003262 | S62: Student (2) | T62: Non Staff | U62: Undergraduate Students | V62: Student | W62: ZA - Student Hourly | X62: Student | Y62: U010 | Z62: 9.38 | AA62: 11.5 | AB62: 13.62 | AC62: HOURLY | AD62: Bi-Weekly | AE62: Z1 | AF62: DUR - Temp/Student | AG62: NonEx-Student/Temp-Pos-Dur | AH62: Ad Hoc | AI62: AdHoc | AJ62: Y | AK62: Y | AL62: N | AN62: 0 | AO62: 22 | AP62: Non-Essential Worker | AQ62: N | AU62: 14.25 | AV62: 1140 | AW62: 0 | AX62: 0 | AY62: 0 | AZ62: 0 | BA62: 0 | BB62: 0 | BC62: 0 | BD62: 0 | BF62: No differential | BG62: 0 | BL62: Active | BO62: N | BR62: N | BU62: 1 | BV62: 1 | BW62: 2025-04 | BX62: 2025-10 | BY62: 0 | BZ62: N | CA62: 0 | CB62: 0 | CD62: 0 | CE62: 0 | CG62: 0 | CH62: 0
A63: West Lafayette | B63: 4001 | C63: Office of the Chief of Staff | D63: 4001 - Office of the Chief of Staff | E63: 4001 - President | F63: 4001 | G63: Chief of Staff Administration | H63: 33020000 | I63: President Operations | J63: 33000000 | K63: 33000000 - President Operations | L63: U2 | M63: Undergraduate | N63: A0A - President | O63: A0A | P63: 40073056 | Q63: Data Analytics Assistant - Student Service | R63: 20003262 | S63: Student (2) | T63: Non Staff | U63: Undergraduate Students | V63: Student | W63: ZA - Student Hourly | X63: Student | Y63: U010 | Z63: 9.38 | AA63: 11.5 | AB63: 13.62 | AC63: HOURLY | AD63: Bi-Weekly | AE63: Z1 | AF63: DUR - Temp/Student | AG63: NonEx-Student/Temp-Pos-Dur | AH63: Ad Hoc | AI63: AdHoc | AJ63: Y | AK63: Y | AL63: N | AN63: 0 | AO63: 14 | AP63: Non-Essential Worker | AQ63: N | AU63: 13.25 | AV63: 1060 | AW63: 0 | AX63: 0 | AY63: 0 | AZ63: 0 | BA63: 0 | BB63: 0 | BC63: 0 | BD63: 0 | BF63: No differential | BG63: 0 | BL63: Active | BO63: N | BR63: N | BU63: 1 | BV63: 1 | BW63: 2025-04 | BX63: 2025-10 | BY63: 0 | BZ63: N | CA63: 0 | CB63: 0 | CD63: 0 | CE63: 0 | CG63: 0 | CH63: 0
A64: West Lafayette | B64: 4001 | C64: Office of the Chief of Staff | D64: 4001 - Office of the Chief of Staff | E64: 4001 - President | F64: 4001 | G64: Chief of Staff Administration | H64: 33020000 | I64: President Operations | J64: 33000000 | K64: 33000000 - President Operations | L64: M6 | M64: Management | N64: A0A - President | O64: A0A | P64: 40068019 | Q64: Executive Director of External Data Analytics | R64: 20003552 | S64: Data Management, Senior Director | T64: Information Technology | U64: Data Management | V64: M/P Management | W64: Z4 - 12 Month Salaried | X64: Staff | Y64: S100 | Z64: 143200 | AA64: 199100 | AB64: 255000 | AC64: MON | AD64: Monthly | AE64: Z2 | AF64: DUR - Exempt - FY | AG64: Exempt-Neg-Dur | AH64: Exempt - Monday to Friday - 8hrs | AI64: NORM | AJ64: Y | AK64: N | AL64: N | AN64: 1 | AO64: 30 | AP64: Non-Essential Worker | AQ64: Y | AU64: 0 | AV64: 13192.59 | AW64: 158311.08 | AX64: 158311.08 | AY64: 158311.08 | AZ64: 123894.25 | BA64: 123894.25 | BB64: 158311.08 | BC64: 0 | BD64: 0 | BE64: Day_Shft | BF64: First Shift-no differential | BG64: 0 | BL64: Active | BO64: N | BR64: N | BU64: 1 | BV64: 1 | BW64: 2025-04 | BX64: 2025-10 | BY64: 158311 | BZ64: N | CA64: 158311.08 | CB64: 1 | CC64: Full Time | CD64: 0 | CE64: 0 | CG64: 0 | CH64: 0
A65: West Lafayette | B65: 4001 | C65: Office of the Chief of Staff | D65: 4001 - Office of the Chief of Staff | E65: 4001 - President | F65: 4001 | G65: Chief of Staff Administration | H65: 33020000 | I65: President Operations | J65: 33000000 | K65: 33000000 - President Operations | L65: P3 | M65: Professional | N65: A0A - President | O65: A0A | P65: 40067948 | Q65: Senior Engagement Specialist | R65: 20003619 | S65: Marketing and Public Relations Administrator, Senior | T65: Communications and Engagement | U65: Marketing and Public Relations | V65: Professional | W65: Z4 - 12 Month Salaried | X65: Staff | Y65: S070 | Z65: 62000 | AA65: 86100 | AB65: 110200 | AC65: MON | AD65: Monthly | AE65: Z2 | AF65: DUR - Exempt - FY | AG65: Exempt-Neg-Dur | AH65: Exempt - Monday to Friday - 8hrs | AI65: NORM | AJ65: Y | AK65: N | AL65: N | AN65: 1 | AO65: 29 | AP65: Non-Essential Worker | AQ65: Y | AR65: PERF with Exempt Accruals | AU65: 0 | AV65: 6962.8 | AW65: 83553.6 | AX65: 83553.6 | AY65: 83553.6 | AZ65: 65389.05 | BA65: 65389.05 | BB65: 83553.6 | BC65: 0 | BD65: 0 | BE65: Day_Shft | BF65: First Shift-no differential | BG65: 0 | BL65: Active | BO65: N | BR65: N | BU65: 1 | BV65: 1 | BW65: 2025-04 | BX65: 2025-10 | BY65: 83554 | BZ65: N | CA65: 83553.6 | CB65: 1 | CC65: Full Time | CD65: 0 | CE65: 0 | CG65: 0 | CH65: 0
A66: West Lafayette | B66: 4001 | C66: Office of the Chief of Staff | D66: =B66&" - "&C66 -> 4001 - Office of the Chief of Staff | E66: 4001 - President | F66: 4001 | G66: Government Relations | H66: 36040000 | I66: Government Relations | J66: 36040000 | K66: =J66&" - "&I66 -> 36040000 - Government Relations | L66: P6 | M66: Professional | N66: A0A - President | O66: A0A | P66: 40011703 | Q66: Senior Director of Government Relations and Public Affairs | R66: 20003939 | S66: Government Relations Administrator, Senior Principal | T66: Communications and Engagement | U66: Partnerships | V66: M/P Professional | W66: Z4 - 12 Month Salaried | X66: Staff | Y66: S100 | Z66: 143200 | AA66: 199100 | AB66: 255000 | AC66: MON | AD66: Monthly | AE66: Z2 | AF66: DUR - Exempt - FY | AG66: Exempt-Neg-Dur | AH66: Exempt - Monday to Friday - 8hrs | AI66: NORM | AJ66: Y | AK66: N | AL66: N | AN66: 1 | AO66: 58 | AP66: Non-Essential Worker | AQ66: Y | AU66: 0 | AV66: 17407.61 | AW66: 208891.32 | AX66: 208891.32 | AY66: 208891.32 | AZ66: 163478.35 | BA66: 163478.35 | BB66: 208891.32 | BC66: 0 | BD66: 0 | BE66: Day_Shft | BF66: First Shift-no differential | BG66: 0 | BL66: Active | BO66: N | BR66: N | BU66: 1 | BV66: 1 | BW66: 2025-04 | BX66: 2025-10 | BY66: 208891 | BZ66: N | CA66: 208891.32 | CB66: 1 | CC66: Full Time | CD66: 0 | CE66: 0 | CG66: 0 | CH66: 0
A67: West Lafayette | B67: 4001 | C67: Office of the Chief of Staff | D67: 4001 - Office of the Chief of Staff | E67: 4001 - President | F67: 4001 | G67: Government Relations | H67: 36040000 | I67: Government Relations | J67: 36040000 | K67: 36040000 - Government Relations | L67: P5 | M67: Professional | N67: A0A - President | O67: A0A | P67: 40055586 | Q67: Director of Government Relations | R67: 20003749 | S67: Government Relations Administrator, Principal | T67: Communications and Engagement | U67: Partnerships | V67: M/P Professional | W67: Z4 - 12 Month Salaried | X67: Staff | Y67: S095 | Z67: 124600 | AA67: 173200 | AB67: 221800 | AC67: MON | AD67: Monthly | AE67: Z2 | AF67: DUR - Exempt - FY | AG67: Exempt-Neg-Dur | AH67: Exempt - Monday to Friday - 8hrs | AI67: NORM | AJ67: Y | AK67: N | AL67: N | AN67: 1 | AO67: 7 | AP67: Non-Essential Worker | AQ67: Y | AU67: 0 | AV67: 13333.33 | AW67: 159999.96 | AX67: 159999.96 | AY67: 159999.96 | AZ67: 125215.97 | BA67: 125215.97 | BB67: 159999.96 | BC67: 0 | BD67: 0 | BE67: Day_Shft | BF67: First Shift-no differential | BG67: 0 | BL67: Active | BO67: N | BR67: N | BU67: 1 | BV67: 1 | BW67: 2025-04 | BX67: 2025-10 | BY67: 160000 | BZ67: N | CA67: 159999.96 | CB67: 1 | CC67: Full Time | CD67: 0 | CE67: 0 | CG67: 0 | CH67: 0
A68: West Lafayette | B68: 4002 | C68: Vice Provost for Teaching & Le | D68: 4002 - Vice Provost for Teaching & Le | E68: 4002 - Vice Provost for Teaching & Le | F68: 4002 | G68: VP for Teaching & Learning Admin | H68: 62000000 | I68: VP for Teaching & Learning Admin | J68: 62000000 | K68: 62000000 - VP for Teaching & Learning Admin | L68: E1 | M68: Executive | N68: B0H - Vice Provost Teaching and Learning | O68: B0H | P68: 40022959 | Q68: Senior Associate Vice Provost for Teaching and Learning | R68: 20003738 | S68: Associate Vice Provost | T68: Academic and Student Affairs | U68: Academic Administration | V68: Executive | W68: Z4 - 12 Month Salaried | X68: Executive | Y68: E001 | Z68: 0 | AA68: 500000 | AB68: 1000000 | AC68: MON | AD68: Monthly | AE68: Z2 | AF68: DUR - Exempt - FY | AG68: Exempt-Neg-Dur | AH68: Exempt - Monday to Friday - 8hrs | AI68: NORM | AJ68: Y | AK68: N | AL68: N | AN68: 1 | AO68: 47 | AP68: Non-Essential Worker | AQ68: Y | AU68: 0 | AV68: 17398.35 | AW68: 208780.2 | AX68: 208780.2 | AY68: 208780.2 | AZ68: 163391.38 | BA68: 163391.38 | BB68: 208780.2 | BC68: 30000 | BD68: 2500 | BE68: Day_Shft | BF68: First Shift-no differential | BG68: 0 | BH68: Professor | BI68: 9 | BJ68: 2000-08-14 | BK68: 2007-08-13 | BL68: Active | BM68: 2006-08-14 | BO68: N | BR68: N | BU68: 1 | BV68: 1 | BW68: 2025-04 | BX68: 2025-10 | BY68: 208780 | BZ68: N | CA68: 208780.2 | CB68: 1 | CC68: Full Time | CD68: 0 | CE68: 0 | CG68: 0 | CH68: 0
A69: West Lafayette | B69: 4002 | C69: Vice Provost for Teaching & Le | D69: 4002 - Vice Provost for Teaching & Le | E69: 4002 - Vice Provost for Teaching & Le | F69: 4002 | G69: VP for Teaching & Learning Admin | H69: 62000000 | I69: VP for Teaching & Learning Admin | J69: 62000000 | K69: 62000000 - VP for Teaching & Learning Admin | L69: M6 | M69: Management | N69: B0H - Vice Provost Teaching and Learning | O69: B0H | P69: 40009492 | Q69: Assistant Vice Provost | R69: 20003786 | S69: Associate Provost | T69: Academic and Student Affairs | U69: Academic Administration | V69: M/P Management | W69: Z4 - 12 Month Salaried | X69: Staff | Y69: S095 | Z69: 124600 | AA69: 173200 | AB69: 221800 | AC69: MON | AD69: Monthly | AE69: Z2 | AF69: DUR - Exempt - FY | AG69: Exempt-Neg-Dur | AH69: Exempt - Monday to Friday - 8hrs | AI69: NORM | AJ69: Y | AK69: N | AL69: N | AN69: 1 | AO69: 42 | AP69: Non-Essential Worker | AQ69: Y | AU69: 0 | AV69: 15510.64 | AW69: 186127.68 | AX69: 186127.68 | AY69: 186127.68 | AZ69: 145663.52 | BA69: 145663.52 | BB69: 186127.68 | BC69: 0 | BD69: 0 | BE69: Day_Shft | BF69: First Shift-no differential | BG69: 0 | BL69: Active | BO69: N | BR69: N | BU69: 1 | BV69: 1 | BW69: 2025-04 | BX69: 2025-10 | BY69: 186128 | BZ69: N | CA69: 186127.68 | CB69: 1 | CC69: Full Time | CD69: 0 | CE69: 0 | CG69: 0 | CH69: 0
A70: West Lafayette | B70: 4002 | C70: Vice Provost for Teaching & Le | D70: 4002 - Vice Provost for Teaching & Le | E70: 4002 - Vice Provost for Teaching & Le | F70: 4002 | G70: VP for Teaching & Learning Admin | H70: 62000000 | I70: VP for Teaching & Learning Admin | J70: 62000000 | K70: 62000000 - VP for Teaching & Learning Admin | L70: E2 | M70: Executive | N70: B0H - Vice Provost Teaching and Learning | O70: B0H | P70: 40006166 | Q70: Vice Provost for Teaching & Learning | R70: 20003445 | S70: Vice Provost Academic Affairs | T70: Academic and Student Affairs | U70: Academic Administration | V70: Executive | W70: Z4 - 12 Month Salaried | X70: Executive | Y70: E001 | Z70: 0 | AA70: 500000 | AB70: 1000000 | AC70: MON | AD70: Monthly | AE70: Z2 | AF70: DUR - Exempt - FY | AG70: Exempt-Neg-Dur | AH70: Exempt - Monday to Friday - 8hrs | AI70: NORM | AJ70: Y | AK70: N | AL70: N | AN70: 1 | AO70: 55 | AP70: Non-Essential Worker | AQ70: Y | AU70: 0 | AV70: 22464.98 | AW70: 269579.76 | AX70: 269579.76 | AY70: 269579.76 | AZ70: 210973.12 | BA70: 210973.12 | BB70: 269579.76 | BC70: 100000.08 | BD70: 8333.34 | BE70: Day_Shft | BF70: First Shift-no differential | BG70: 0 | BH70: Professor | BI70: 9 | BJ70: 2003-01-06 | BK70: 2008-08-18 | BL70: Active | BM70: 2016-07-01 | BO70: Y | BP70: 14160000 | BR70: N | BU70: 1 | BV70: 1 | BW70: 2025-04 | BX70: 2025-10 | BY70: 269580 | BZ70: N | CA70: 269579.76 | CB70: 1 | CC70: Full Time | CD70: 0 | CE70: 0 | CG70: 0 | CH70: 0
A71: West Lafayette | B71: 4002 | C71: Vice Provost for Teaching & Le | D71: 4002 - Vice Provost for Teaching & Le | E71: 4002 - Vice Provost for Teaching & Le | F71: 4002 | G71: VP for Teaching & Learning Admin | H71: 62000000 | I71: VP for Teaching & Learning Admin | J71: 62000000 | K71: 62000000 - VP for Teaching & Learning Admin | L71: P2 | M71: Professional | N71: B0H - Vice Provost Teaching and Learning | O71: B0H | P71: 40006722 | Q71: Executive Assistant | R71: 20002358 | S71: Executive Assistant | T71: Administration | U71: Administrative Operations | V71: Professional | W71: Z4 - 12 Month Salaried | X71: Staff | Y71: S065 | Z71: 53800 | AA71: 74800 | AB71: 95800 | AC71: MON | AD71: Monthly | AE71: Z2 | AF71: DUR - Exempt - FY | AG71: Exempt-Neg-Dur | AH71: Exempt - Monday to Friday - 8hrs | AI71: NORM | AJ71: Y | AK71: N | AL71: N | AN71: 1 | AO71: 25 | AP71: Non-Essential Worker | AQ71: Y | AU71: 0 | AV71: 5666.67 | AW71: 68000.04 | AX71: 68000.04 | AY71: 68000.04 | AZ71: 53216.83 | BA71: 53216.83 | BB71: 68000.04 | BC71: 0 | BD71: 0 | BE71: Day_Shft | BF71: First Shift-no differential | BG71: 0 | BL71: Active | BO71: N | BR71: N | BU71: 1 | BV71: 1 | BW71: 2025-04 | BX71: 2025-10 | BY71: 68000 | BZ71: N | CA71: 68000.04 | CB71: 1 | CC71: Full Time | CD71: 0 | CE71: 0 | CG71: 0 | CH71: 0
A72: West Lafayette | B72: 4002 | C72: Vice Provost for Teaching & Le | D72: 4002 - Vice Provost for Teaching & Le | E72: 4002 - Vice Provost for Teaching & Le | F72: 4002 | G72: Center for Instructional Excellence | H72: 62010000 | I72: Center for Instructional Excellence | J72: 62010000 | K72: 62010000 - Center for Instructional Excellence | L72: P3 | M72: Professional | N72: B0H - Vice Provost Teaching and Learning | O72: B0H | P72: 40038492 | Q72: Senior IMPACT Program Manager | R72: 20002087 | S72: Program Administration Specialist, Senior | T72: Administration | U72: Program Administration | V72: Professional | W72: Z4 - 12 Month Salaried | X72: Staff | Y72: S065 | Z72: 53800 | AA72: 74800 | AB72: 95800 | AC72: MON | AD72: Monthly | AE72: Z2 | AF72: DUR - Exempt - FY | AG72: Exempt-Neg-Dur | AH72: Exempt - Monday to Friday - 8hrs | AI72: NORM | AJ72: Y | AK72: N | AL72: N | AN72: 1 | AO72: 69 | AP72: Non-Essential Worker | AQ72: Y | AU72: 0 | AV72: 4959.58 | AW72: 59514.96 | AX72: 59514.96 | AY72: 59514.96 | AZ72: 46576.41 | BA72: 46576.41 | BB72: 59514.96 | BC72: 0 | BD72: 0 | BE72: Day_Shft | BF72: First Shift-no differential | BG72: 0 | BL72: Active | BO72: N | BR72: N | BU72: 1 | BV72: 1 | BW72: 2025-04 | BX72: 2025-10 | BY72: 59515 | BZ72: N | CA72: 59514.96 | CB72: 1 | CC72: Full Time | CD72: 0 | CE72: 0 | CG72: 0 | CH72: 0
A73: West Lafayette | B73: 4002 | C73: Vice Provost for Teaching & Le | D73: 4002 - Vice Provost for Teaching & Le | E73: 4002 - Vice Provost for Teaching & Le | F73: 4002 | G73: Center for Instructional Excellence | H73: 62010000 | I73: Center for Instructional Excellence | J73: 62010000 | K73: 62010000 - Center for Instructional Excellence | L73: M5 | M73: Management | N73: B0H - Vice Provost Teaching and Learning | O73: B0H | P73: 40002034 | Q73: Assoc Director - CIE | R73: 20003763 | S73: Instruction, Director | T73: Learning Support | U73: Instruction | V73: M/P Management | W73: Z4 - 12 Month Salaried | X73: Staff | Y73: S080 | Z73: 81900 | AA73: 113900 | AB73: 145900 | AC73: MON | AD73: Monthly | AE73: Z2 | AF73: DUR - Exempt - FY | AG73: Exempt-Neg-Dur | AH73: Exempt - Monday to Friday - 8hrs | AI73: NORM | AJ73: Y | AK73: N | AL73: N | AN73: 1 | AO73: 78 | AP73: Non-Essential Worker | AQ73: Y | AU73: 0 | AV73: 8692.01 | AW73: 104304.12 | AX73: 104304.12 | AY73: 104304.12 | AZ73: 81628.4 | BA73: 81628.4 | BB73: 104304.12 | BC73: 0 | BD73: 0 | BE73: Day_Shft | BF73: First Shift-no differential | BG73: 0 | BL73: Active | BO73: Y | BP73: 41000000 | BQ73: Courtesy Faculty Honors College | BR73: N | BU73: 1 | BV73: 1 | BW73: 2025-04 | BX73: 2025-10 | BY73: 104304 | BZ73: N | CA73: 104304.12 | CB73: 1 | CC73: Full Time | CD73: 0 | CE73: 0 | CG73: 0 | CH73: 0
A74: West Lafayette | B74: 4002 | C74: Vice Provost for Teaching & Le | D74: 4002 - Vice Provost for Teaching & Le | E74: 4002 - Vice Provost for Teaching & Le | F74: 4002 | G74: Center for Instructional Excellence | H74: 62010000 | I74: Center for Instructional Excellence | J74: 62010000 | K74: 62010000 - Center for Instructional Excellence | L74: M6 | M74: Management | N74: B0H - Vice Provost Teaching and Learning | O74: B0H | P74: 40008419 | Q74: Executive Director, Teaching Success | R74: 20002636 | S74: Program Administration, Senior Director | T74: Administration | U74: Program Administration | V74: M/P Management | W74: Z4 - 12 Month Salaried | X74: Staff | Y74: S095 | Z74: 124600 | AA74: 173200 | AB74: 221800 | AC74: MON | AD74: Monthly | AE74: Z2 | AF74: DUR - Exempt - FY | AG74: Exempt-Neg-Dur | AH74: Exempt - Monday to Friday - 8hrs | AI74: NORM | AJ74: Y | AK74: N | AL74: N | AN74: 1 | AO74: 78 | AP74: Non-Essential Worker | AQ74: Y | AU74: 0 | AV74: 12817.96 | AW74: 153815.52 | AX74: 153815.52 | AY74: 153815.52 | AZ74: 120376.03 | BA74: 120376.03 | BB74: 153815.52 | BC74: 0 | BD74: 0 | BE74: Day_Shft | BF74: First Shift-no differential | BG74: 0 | BL74: Active | BO74: Y | BP74: 13080000 | BR74: Y | BS74: 20020000 | BT74: Professor with Othr Appt | BU74: 1 | BV74: 1 | BW74: 2025-04 | BX74: 2025-10 | BY74: 153816 | BZ74: N | CA74: 153815.52 | CB74: 1 | CC74: Full Time | CD74: 0 | CE74: 0 | CG74: 0 | CH74: 0
A75: West Lafayette | B75: 4002 | C75: Vice Provost for Teaching & Le | D75: 4002 - Vice Provost for Teaching & Le | E75: 4002 - Vice Provost for Teaching & Le | F75: 4002 | G75: Center for Instructional Excellence | H75: 62010000 | I75: Center for Instructional Excellence | J75: 62010000 | K75: 62010000 - Center for Instructional Excellence | L75: P4 | M75: Professional | N75: B0H - Vice Provost Teaching and Learning | O75: B0H | P75: 40035643 | Q75: Assistant Director, Scholarship of Teaching and Learning | R75: 20002088 | S75: Program Administration Specialist, Lead | T75: Administration | U75: Program Administration | V75: M/P Professional | W75: Z4 - 12 Month Salaried | X75: Staff | Y75: S075 | Z75: 71200 | AA75: 99000 | AB75: 126800 | AC75: MON | AD75: Monthly | AE75: Z2 | AF75: DUR - Exempt - FY | AG75: Exempt-Neg-Dur | AH75: Exempt - Monday to Friday - 8hrs | AI75: NORM | AJ75: Y | AK75: N | AL75: N | AN75: 1 | AO75: 71 | AP75: Non-Essential Worker | AQ75: Y | AU75: 0 | AV75: 7055.59 | AW75: 84667.08 | AX75: 84667.08 | AY75: 84667.08 | AZ75: 66260.46 | BA75: 66260.46 | BB75: 84667.08 | BC75: 0 | BD75: 0 | BE75: Day_Shft | BF75: First Shift-no differential | BG75: 0 | BL75: Active | BO75: N | BR75: N | BU75: 1 | BV75: 1 | BW75: 2025-04 | BX75: 2025-10 | BY75: 84667 | BZ75: N | CA75: 84667.08 | CB75: 1 | CC75: Full Time | CD75: 0 | CE75: 0 | CG75: 0 | CH75: 0
A76: West Lafayette | B76: 4002 | C76: Vice Provost for Teaching & Le | D76: 4002 - Vice Provost for Teaching & Le | E76: 4002 - Vice Provost for Teaching & Le | F76: 4002 | G76: Center for Instructional Excellence | H76: 62010000 | I76: Center for Instructional Excellence | J76: 62010000 | K76: 62010000 - Center for Instructional Excellence | L76: P4 | M76: Professional | N76: B0H - Vice Provost Teaching and Learning | O76: B0H | P76: 40066375 | Q76: Assistant Director for Inclusive Pedagogy | R76: 20003598 | S76: Curriculum Developer, Lead | T76: Learning Support | U76: Instruction | V76: M/P Professional | W76: Z4 - 12 Month Salaried | X76: Staff | Y76: S075 | Z76: 71200 | AA76: 99000 | AB76: 126800 | AC76: MON | AD76: Monthly | AE76: Z2 | AF76: DUR - Exempt - FY | AG76: Exempt-Neg-Dur | AH76: Exempt - Monday to Friday - 8hrs | AI76: NORM | AJ76: Y | AK76: N | AL76: N | AN76: 1 | AO76: 29 | AP76: Non-Essential Worker | AQ76: Y | AU76: 0 | AV76: 6758.31 | AW76: 81099.72 | AX76: 81099.72 | AY76: 81099.72 | AZ76: 63468.64 | BA76: 63468.64 | BB76: 81099.72 | BC76: 0 | BD76: 0 | BE76: Day_Shft | BF76: First Shift-no differential | BG76: 0 | BL76: Active | BO76: N | BR76: N | BU76: 1 | BV76: 1 | BW76: 2025-04 | BX76: 2025-10 | BY76: 81100 | BZ76: N | CA76: 81099.72 | CB76: 1 | CC76: Full Time | CD76: 0 | CE76: 0 | CG76: 0 | CH76: 0
A77: West Lafayette | B77: 4002 | C77: Vice Provost for Teaching & Le | D77: 4002 - Vice Provost for Teaching & Le | E77: 4002 - Vice Provost for Teaching & Le | F77: 4002 | G77: Center for Instructional Excellence | H77: 62010000 | I77: Center for Instructional Excellence | J77: 62010000 | K77: 62010000 - Center for Instructional Excellence | L77: PGRD | M77: Post Graduate | N77: B0H - Vice Provost Teaching and Learning | O77: B0H | P77: 40032272 | Q77: Post Doc Research Assistant | R77: 20002956 | S77: Post Doc Research Assistant | T77: Non Staff | U77: Post Docs | V77: Post Doc | W77: Z4 - 12 Month Salaried | X77: Other | Y77: O001 | Z77: 0 | AA77: 500000 | AB77: 1000000 | AC77: MON | AD77: Monthly | AE77: Z2 | AF77: DUR - PostDoc/Interns/Residents - FY | AG77: Exempt-PostDoc/Int/Res-Neg-Dur | AH77: Exempt - Monday to Friday - 8hrs | AI77: NORM | AJ77: Y | AK77: Y | AL77: N | AN77: 1 | AO77: 34 | AP77: Non-Essential Worker | AQ77: Y | AU77: 0 | AV77: 4583.34 | AW77: 55000.08 | AX77: 55000.08 | AY77: 55000.08 | AZ77: 43043.06 | BA77: 43043.06 | BB77: 55000.08 | BC77: 0 | BD77: 0 | BE77: Day_Shft | BF77: First Shift-no differential | BG77: 0 | BH77: Associate | BI77: 2 | BJ77: 2022-08-01 | BL77: Active | BM77: 2022-08-01 | BN77: 2025-07-31 | BO77: N | BR77: N | BU77: 1 | BV77: 1 | BW77: 2025-04 | BX77: 2025-10 | BY77: 55000 | BZ77: N | CA77: 55000.08 | CB77: 1 | CC77: Full Time | CD77: 0 | CE77: 0 | CG77: 0 | CH77: 0
A78: West Lafayette | B78: 4002 | C78: Vice Provost for Teaching & Le | D78: 4002 - Vice Provost for Teaching & Le | E78: 4002 - Vice Provost for Teaching & Le | F78: 4002 | G78: Center for Instructional Excellence | H78: 62010000 | I78: Center for Instructional Excellence | J78: 62010000 | K78: 62010000 - Center for Instructional Excellence | L78: P2 | M78: Professional | N78: B0H - Vice Provost Teaching and Learning | O78: B0H | P78: 40076231 | Q78: Faculty Accessibility Consultant CIE | R78: 20003159 | S78: Instructional Designer | T78: Learning Support | U78: Instructional Design and Technology | V78: Professional | W78: Z4 - 12 Month Salaried | X78: Staff | Y78: S060 | Z78: 46800 | AA78: 65100 | AB78: 83400 | AC78: MON | AD78: Monthly | AE78: Z2 | AF78: DUR - Exempt - FY | AG78: Exempt-Neg-Dur | AH78: Exempt - Monday to Friday - 8hrs | AI78: NORM | AJ78: Y | AK78: N | AL78: N | AN78: 1 | AO78: 18 | AP78: Non-Essential Worker | AQ78: Y | AU78: 0 | AV78: 5568.74 | AW78: 66824.88 | AX78: 66824.88 | AY78: 66824.88 | AZ78: 52297.15 | BA78: 52297.15 | BB78: 66824.88 | BC78: 0 | BD78: 0 | BE78: Day_Shft | BF78: First Shift-no differential | BG78: 0 | BL78: Active | BO78: N | BR78: N | BU78: 1 | BV78: 1 | BW78: 2025-04 | BX78: 2025-10 | BY78: 66825 | BZ78: N | CA78: 66824.88 | CB78: 1 | CC78: Full Time | CD78: 0 | CE78: 0 | CG78: 0 | CH78: 0
A79: West Lafayette | B79: 4002 | C79: Vice Provost for Teaching & Le | D79: 4002 - Vice Provost for Teaching & Le | E79: 4002 - Vice Provost for Teaching & Le | F79: 4002 | G79: Center for Instructional Excellence | H79: 62010000 | I79: Center for Instructional Excellence | J79: 62010000 | K79: 62010000 - Center for Instructional Excellence | L79: U1 | M79: Undergraduate | N79: B0H - Vice Provost Teaching and Learning | O79: B0H | P79: 40057822 | Q79: Student Pedagogy Advocate - Student Clerical | R79: 20003261 | S79: Student (1) | T79: Non Staff | U79: Undergraduate Students | V79: Student | W79: ZA - Student Hourly | X79: Student | Y79: U005 | Z79: 7.25 | AA79: 9.28 | AB79: 11.3 | AC79: HOURLY | AD79: Bi-Weekly | AE79: Z1 | AF79: DUR - Temp/Student | AG79: NonEx-Student/Temp-Pos-Dur | AH79: Ad Hoc | AI79: AdHoc | AJ79: Y | AK79: N | AL79: N | AN79: 0 | AO79: 35 | AP79: Non-Essential Worker | AQ79: N | AU79: 15 | AV79: 1200 | AW79: 0 | AX79: 0 | AY79: 0 | AZ79: 0 | BA79: 0 | BB79: 0 | BC79: 0 | BD79: 0 | BF79: No differential | BG79: 0 | BL79: Active | BO79: N | BR79: N | BU79: 1 | BV79: 1 | BW79: 2025-04 | BX79: 2025-10 | BY79: 0 | BZ79: N | CA79: 0 | CB79: 0 | CD79: 0 | CE79: 0 | CG79: 0 | CH79: 0
A80: West Lafayette | B80: 4002 | C80: Vice Provost for Teaching & Le | D80: 4002 - Vice Provost for Teaching & Le | E80: 4002 - Vice Provost for Teaching & Le | F80: 4002 | G80: Center for Instructional Excellence | H80: 62010000 | I80: Center for Instructional Excellence | J80: 62010000 | K80: 62010000 - Center for Instructional Excellence | L80: U1 | M80: Undergraduate | N80: B0H - Vice Provost Teaching and Learning | O80: B0H | P80: 40057822 | Q80: Student Pedagogy Advocate - Student Clerical | R80: 20003261 | S80: Student (1) | T80: Non Staff | U80: Undergraduate Students | V80: Student | W80: ZA - Student Hourly | X80: Student | Y80: U005 | Z80: 7.25 | AA80: 9.28 | AB80: 11.3 | AC80: HOURLY | AD80: Bi-Weekly | AE80: Z1 | AF80: DUR - Temp/Student | AG80: NonEx-Student/Temp-Pos-Dur | AH80: Ad Hoc | AI80: AdHoc | AJ80: Y | AK80: N | AL80: N | AN80: 0 | AO80: 8 | AP80: Non-Essential Worker | AQ80: N | AU80: 15 | AV80: 1200 | AW80: 0 | AX80: 0 | AY80: 0 | AZ80: 0 | BA80: 0 | BB80: 0 | BC80: 0 | BD80: 0 | BF80: No differential | BG80: 0 | BL80: Active | BO80: N | BR80: N | BU80: 1 | BV80: 1 | BW80: 2025-04 | BX80: 2025-10 | BY80: 0 | BZ80: N | CA80: 0 | CB80: 0 | CD80: 0 | CE80: 0 | CG80: 0 | CH80: 0
A81: West Lafayette | B81: 4002 | C81: Vice Provost for Teaching & Le | D81: 4002 - Vice Provost for Teaching & Le | E81: 4002 - Vice Provost for Teaching & Le | F81: 4002 | G81: Center for Instructional Excellence | H81: 62010000 | I81: Center for Instructional Excellence | J81: 62010000 | K81: 62010000 - Center for Instructional Excellence | L81: U1 | M81: Undergraduate | N81: B0H - Vice Provost Teaching and Learning | O81: B0H | P81: 40057822 | Q81: Student Pedagogy Advocate - Student Clerical | R81: 20003261 | S81: Student (1) | T81: Non Staff | U81: Undergraduate Students | V81: Student | W81: ZA - Student Hourly | X81: Student | Y81: U005 | Z81: 7.25 | AA81: 9.28 | AB81: 11.3 | AC81: HOURLY | AD81: Bi-Weekly | AE81: Z1 | AF81: DUR - Temp/Student | AG81: NonEx-Student/Temp-Pos-Dur | AH81: Ad Hoc | AI81: AdHoc | AJ81: Y | AK81: Y | AL81: N | AN81: 0 | AO81: 30 | AP81: Non-Essential Worker | AQ81: N | AU81: 15 | AV81: 1200 | AW81: 0 | AX81: 0 | AY81: 0 | AZ81: 0 | BA81: 0 | BB81: 0 | BC81: 0 | BD81: 0 | BF81: No differential | BG81: 0 | BL81: Active | BO81: N | BR81: N | BU81: 1 | BV81: 1 | BW81: 2025-04 | BX81: 2025-10 | BY81: 0 | BZ81: N | CA81: 0 | CB81: 0 | CD81: 0 | CE81: 0 | CG81: 0 | CH81: 0
A82: West Lafayette | B82: 4002 | C82: Vice Provost for Teaching & Le | D82: 4002 - Vice Provost for Teaching & Le | E82: 4002 - Vice Provost for Teaching & Le | F82: 4002 | G82: Center for Instructional Excellence | H82: 62010000 | I82: Center for Instructional Excellence | J82: 62010000 | K82: 62010000 - Center for Instructional Excellence | L82: U1 | M82: Undergraduate | N82: B0H - Vice Provost Teaching and Learning | O82: B0H | P82: 40057822 | Q82: Student Pedagogy Advocate - Student Clerical | R82: 20003261 | S82: Student (1) | T82: Non Staff | U82: Undergraduate Students | V82: Student | W82: ZA - Student Hourly | X82: Student | Y82: U005 | Z82: 7.25 | AA82: 9.28 | AB82: 11.3 | AC82: HOURLY | AD82: Bi-Weekly | AE82: Z1 | AF82: DUR - Temp/Student | AG82: NonEx-Student/Temp-Pos-Dur | AH82: Ad Hoc | AI82: AdHoc | AJ82: Y | AK82: N | AL82: N | AN82: 0 | AO82: 5 | AP82: Non-Essential Worker | AQ82: N | AU82: 15 | AV82: 1200 | AW82: 0 | AX82: 0 | AY82: 0 | AZ82: 0 | BA82: 0 | BB82: 0 | BC82: 0 | BD82: 0 | BF82: No differential | BG82: 0 | BL82: Active | BO82: N | BR82: N | BU82: 1 | BV82: 1 | BW82: 2025-04 | BX82: 2025-10 | BY82: 0 | BZ82: N | CA82: 0 | CB82: 0 | CD82: 0 | CE82: 0 | CG82: 0 | CH82: 0
A83: West Lafayette | B83: 4002 | C83: Vice Provost for Teaching & Le | D83: 4002 - Vice Provost for Teaching & Le | E83: 4002 - Vice Provost for Teaching & Le | F83: 4002 | G83: Center for Instructional Excellence | H83: 62010000 | I83: Center for Instructional Excellence | J83: 62010000 | K83: 62010000 - Center for Instructional Excellence | L83: PGRD | M83: Post Graduate | N83: B0H - Vice Provost Teaching and Learning | O83: B0H | P83: 40068810 | Q83: Post Doc Research Assistant | R83: 20002956 | S83: Post Doc Research Assistant | T83: Non Staff | U83: Post Docs | V83: Post Doc | W83: Z4 - 12 Month Salaried | X83: Other | Y83: O001 | Z83: 0 | AA83: 500000 | AB83: 1000000 | AC83: MON | AD83: Monthly | AE83: Z2 | AF83: DUR - PostDoc/Interns/Residents - FY | AG83: Exempt-PostDoc/Int/Res-Neg-Dur | AH83: Exempt - Monday to Friday - 8hrs | AI83: NORM | AJ83: Y | AK83: N | AL83: N | AN83: 1 | AO83: 24 | AP83: Non-Essential Worker | AQ83: Y | AU83: 0 | AV83: 4583.34 | AW83: 55000.08 | AX83: 55000.08 | AY83: 55000.08 | AZ83: 43043.06 | BA83: 43043.06 | BB83: 55000.08 | BC83: 0 | BD83: 0 | BE83: Day_Shft | BF83: First Shift-no differential | BG83: 0 | BH83: Assistant | BI83: 2 | BJ83: 2023-07-05 | BL83: Active | BM83: 2023-07-05 | BN83: 2025-07-31 | BO83: N | BR83: N | BU83: 1 | BV83: 1 | BW83: 2025-04 | BX83: 2025-10 | BY83: 55000 | BZ83: N | CA83: 55000.08 | CB83: 1 | CC83: Full Time | CD83: 0 | CE83: 0 | CG83: 0 | CH83: 0
A84: West Lafayette | B84: 4002 | C84: Vice Provost for Teaching & Le | D84: 4002 - Vice Provost for Teaching & Le | E84: 4002 - Vice Provost for Teaching & Le | F84: 4002 | G84: Center for Instructional Excellence | H84: 62010000 | I84: Center for Instructional Excellence | J84: 62010000 | K84: 62010000 - Center for Instructional Excellence | L84: GRD | M84: Graduate | N84: B0H - Vice Provost Teaching and Learning | O84: B0H | P84: 40036096 | Q84: Graduate Administrative/Professional - CIE | R84: 20003895 | S84: NEP - Graduate Professional | T84: Non Staff | U84: Graduate Students | V84: Graduate Student | W84: Z8 - 12 Month Hourly | X84: Other | Y84: O001 | Z84: 0 | AA84: 500000 | AB84: 1000000 | AC84: HOURLY | AD84: Bi-Weekly | AE84: Z1 | AF84: DUR_Non-Exempt_Grad_FY | AG84: Neg-NonExempt-Dur | AH84: Non-Exempt - Monday to Friday - 4hrs | AI84: NEMF04 | AJ84: Y | AK84: N | AL84: N | AN84: 0.5 | AO84: 26 | AP84: Non-Essential Worker | AQ84: Y | AU84: 26.93 | AV84: 1077.2 | AW84: 28007.2 | AX84: 56014.4 | AY84: 56014.4 | AZ84: 43836.86 | BA84: 21918.43 | BB84: 28007.2 | BC84: 0 | BD84: 0 | BE84: Normal | BF84: No differential | BG84: 0 | BL84: Active | BO84: N | BR84: N | BU84: 1 | BV84: 1 | BW84: 2025-04 | BX84: 2025-10 | BY84: 28007 | BZ84: N | CA84: 28007.2 | CB84: 0.5 | CC84: Part Time | CD84: 0 | CE84: 0 | CG84: 0 | CH84: 0
A85: West Lafayette | B85: 4002 | C85: Vice Provost for Teaching & Le | D85: 4002 - Vice Provost for Teaching & Le | E85: 4002 - Vice Provost for Teaching & Le | F85: 4002 | G85: Center for Instructional Excellence | H85: 62010000 | I85: Center for Instructional Excellence | J85: 62010000 | K85: 62010000 - Center for Instructional Excellence | L85: P1 | M85: Professional | N85: B0H - Vice Provost Teaching and Learning | O85: B0H | P85: 40012221 | Q85: Associate Instructional Developer | R85: 20003158 | S85: Instructional Designer, Associate | T85: Learning Support | U85: Instructional Design and Technology | V85: Professional | W85: Z4 - 12 Month Salaried | X85: Staff | Y85: S055 | Z85: 42700 | AA85: 59300 | AB85: 75900 | AC85: MON | AD85: Monthly | AE85: Z2 | AF85: DUR - Exempt - FY | AG85: Exempt-Neg-Dur | AH85: Exempt - Monday to Friday - 8hrs | AI85: NORM | AJ85: Y | AK85: N | AL85: N | AN85: 1 | AO85: 23 | AP85: Non-Essential Worker | AQ85: Y | AU85: 0 | AV85: 4760.08 | AW85: 57120.96 | AX85: 57120.96 | AY85: 57120.96 | AZ85: 44702.86 | BA85: 44702.86 | BB85: 57120.96 | BC85: 0 | BD85: 0 | BE85: Day_Shft | BF85: First Shift-no differential | BG85: 0 | BL85: Active | BO85: N | BR85: N | BU85: 1 | BV85: 1 | BW85: 2025-04 | BX85: 2025-10 | BY85: 57121 | BZ85: N | CA85: 57120.96 | CB85: 1 | CC85: Full Time | CD85: 0 | CE85: 0 | CG85: 0 | CH85: 0
A86: West Lafayette | B86: 4002 | C86: Vice Provost for Teaching & Le | D86: 4002 - Vice Provost for Teaching & Le | E86: 4002 - Vice Provost for Teaching & Le | F86: 4002 | G86: Center for Instructional Excellence | H86: 62010000 | I86: Center for Instructional Excellence | J86: 62010000 | K86: 62010000 - Center for Instructional Excellence | L86: U1 | M86: Undergraduate | N86: B0H - Vice Provost Teaching and Learning | O86: B0H | P86: 40057822 | Q86: Student Pedagogy Advocate - Student Clerical | R86: 20003261 | S86: Student (1) | T86: Non Staff | U86: Undergraduate Students | V86: Student | W86: ZA - Student Hourly | X86: Student | Y86: U005 | Z86: 7.25 | AA86: 9.28 | AB86: 11.3 | AC86: HOURLY | AD86: Bi-Weekly | AE86: Z1 | AF86: DUR - Temp/Student | AG86: NonEx-Student/Temp-Pos-Dur | AH86: Ad Hoc | AI86: AdHoc | AJ86: Y | AK86: Y | AL86: N | AN86: 0 | AO86: 23 | AP86: Non-Essential Worker | AQ86: N | AU86: 15 | AV86: 1200 | AW86: 0 | AX86: 0 | AY86: 0 | AZ86: 0 | BA86: 0 | BB86: 0 | BC86: 0 | BD86: 0 | BF86: No differential | BG86: 0 | BL86: Active | BO86: N | BR86: N | BU86: 1 | BV86: 1 | BW86: 2025-04 | BX86: 2025-10 | BY86: 0 | BZ86: N | CA86: 0 | CB86: 0 | CD86: 0 | CE86: 0 | CG86: 0 | CH86: 0
A87: West Lafayette | B87: 4002 | C87: Vice Provost for Teaching & Le | D87: 4002 - Vice Provost for Teaching & Le | E87: 4002 - Vice Provost for Teaching & Le | F87: 4002 | G87: Center for Instructional Excellence | H87: 62010000 | I87: Center for Instructional Excellence | J87: 62010000 | K87: 62010000 - Center for Instructional Excellence | L87: U1 | M87: Undergraduate | N87: B0H - Vice Provost Teaching and Learning | O87: B0H | P87: 40057822 | Q87: Student Pedagogy Advocate - Student Clerical | R87: 20003261 | S87: Student (1) | T87: Non Staff | U87: Undergraduate Students | V87: Student | W87: ZA - Student Hourly | X87: Student | Y87: U005 | Z87: 7.25 | AA87: 9.28 | AB87: 11.3 | AC87: HOURLY | AD87: Bi-Weekly | AE87: Z1 | AF87: DUR - Temp/Student | AG87: NonEx-Student/Temp-Pos-Dur | AH87: Ad Hoc | AI87: AdHoc | AJ87: Y | AK87: Y | AL87: N | AN87: 0 | AO87: 23 | AP87: Non-Essential Worker | AQ87: N | AU87: 15 | AV87: 1200 | AW87: 0 | AX87: 0 | AY87: 0 | AZ87: 0 | BA87: 0 | BB87: 0 | BC87: 0 | BD87: 0 | BF87: No differential | BG87: 0 | BL87: Active | BO87: N | BR87: N | BU87: 1 | BV87: 1 | BW87: 2025-04 | BX87: 2025-10 | BY87: 0 | BZ87: N | CA87: 0 | CB87: 0 | CD87: 0 | CE87: 0 | CG87: 0 | CH87: 0
A88: West Lafayette | B88: 4002 | C88: Vice Provost for Teaching & Le | D88: 4002 - Vice Provost for Teaching & Le | E88: 4002 - Vice Provost for Teaching & Le | F88: 4002 | G88: Center for Instructional Excellence | H88: 62010000 | I88: Center for Instructional Excellence | J88: 62010000 | K88: 62010000 - Center for Instructional Excellence | L88: P4 | M88: Professional | N88: B0H - Vice Provost Teaching and Learning | O88: B0H | P88: 40075437 | Q88: Assistant Director CIE Purdue Indy | R88: 20003161 | S88: Instructional Designer, Lead | T88: Learning Support | U88: Instructional Design and Technology | V88: M/P Professional | W88: Z4 - 12 Month Salaried | X88: Staff | Y88: S070 | Z88: 62000 | AA88: 86100 | AB88: 110200 | AC88: MON | AD88: Monthly | AE88: Z2 | AF88: DUR - Exempt - FY | AG88: Exempt-Neg-Dur | AH88: Exempt - Monday to Friday - 8hrs | AI88: NORM | AJ88: Y | AK88: N | AL88: N | AN88: 1 | AO88: 18 | AP88: Non-Essential Worker | AQ88: Y | AU88: 0 | AV88: 7712.67 | AW88: 92552.04 | AX88: 92552.04 | AY88: 92552.04 | AZ88: 72431.23 | BA88: 72431.23 | BB88: 92552.04 | BC88: 0 | BD88: 0 | BE88: Day_Shft | BL88: Active | BO88: N | BR88: N | BU88: 1 | BV88: 1 | BW88: 2025-04 | BX88: 2025-10 | BY88: 92552 | BZ88: N | CA88: 92552.04 | CB88: 1 | CC88: Full Time | CD88: 0 | CE88: 0 | CG88: 0 | CH88: 0
A89: West Lafayette | B89: 4002 | C89: Vice Provost for Teaching & Le | D89: 4002 - Vice Provost for Teaching & Le | E89: 4002 - Vice Provost for Teaching & Le | F89: 4002 | G89: Center for Instructional Excellence | H89: 62010000 | I89: Center for Instructional Excellence | J89: 62010000 | K89: 62010000 - Center for Instructional Excellence | L89: U1 | M89: Undergraduate | N89: B0H - Vice Provost Teaching and Learning | O89: B0H | P89: 40057822 | Q89: Student Pedagogy Advocate - Student Clerical | R89: 20003261 | S89: Student (1) | T89: Non Staff | U89: Undergraduate Students | V89: Student | W89: ZA - Student Hourly | X89: Student | Y89: U005 | Z89: 7.25 | AA89: 9.28 | AB89: 11.3 | AC89: HOURLY | AD89: Bi-Weekly | AE89: Z1 | AF89: DUR - Temp/Student | AG89: NonEx-Student/Temp-Pos-Dur | AH89: Ad Hoc | AI89: AdHoc | AJ89: Y | AK89: Y | AL89: N | AN89: 0 | AO89: 17 | AP89: Non-Essential Worker | AQ89: N | AU89: 15 | AV89: 1200 | AW89: 0 | AX89: 0 | AY89: 0 | AZ89: 0 | BA89: 0 | BB89: 0 | BC89: 0 | BD89: 0 | BF89: No differential | BG89: 0 | BL89: Active | BO89: N | BR89: N | BU89: 1 | BV89: 1 | BW89: 2025-04 | BX89: 2025-10 | BY89: 0 | BZ89: N | CA89: 0 | CB89: 0 | CD89: 0 | CE89: 0 | CG89: 0 | CH89: 0
A90: West Lafayette | B90: 4002 | C90: Vice Provost for Teaching & Le | D90: 4002 - Vice Provost for Teaching & Le | E90: 4002 - Vice Provost for Teaching & Le | F90: 4002 | G90: Center for Instructional Excellence | H90: 62010000 | I90: Center for Instructional Excellence | J90: 62010000 | K90: 62010000 - Center for Instructional Excellence | L90: PGRD | M90: Post Graduate | N90: B0H - Vice Provost Teaching and Learning | O90: B0H | P90: 40080673 | Q90: Post Doc Research Assistant | R90: 20002956 | S90: Post Doc Research Assistant | T90: Non Staff | U90: Post Docs | V90: Post Doc | W90: Z4 - 12 Month Salaried | X90: Other | Y90: O001 | Z90: 0 | AA90: 500000 | AB90: 1000000 | AC90: MON | AD90: Monthly | AE90: Z2 | AF90: DUR - PostDoc/Interns/Residents - FY | AG90: Exempt-PostDoc/Int/Res-Neg-Dur | AH90: Exempt - Monday to Friday - 8hrs | AI90: NORM | AJ90: Y | AK90: N | AL90: N | AN90: 1 | AO90: 11 | AP90: Non-Essential Worker | AQ90: Y | AU90: 0 | AV90: 4583.33 | AW90: 54999.96 | AX90: 54999.96 | AY90: 54999.96 | AZ90: 43042.97 | BA90: 43042.97 | BB90: 54999.96 | BC90: 0 | BD90: 0 | BE90: Day_Shft | BF90: First Shift-no differential | BG90: 0 | BH90: Assistant | BI90: 0 | BJ90: 2024-08-05 | BL90: Active | BM90: 2024-08-05 | BN90: 2026-07-31 | BO90: N | BR90: N | BU90: 1 | BV90: 1 | BW90: 2025-04 | BX90: 2025-10 | BY90: 55000 | BZ90: N | CA90: 54999.96 | CB90: 1 | CC90: Full Time | CD90: 0 | CE90: 0 | CG90: 0 | CH90: 0
A91: West Lafayette | B91: 4002 | C91: Vice Provost for Teaching & Le | D91: 4002 - Vice Provost for Teaching & Le | E91: 4002 - Vice Provost for Teaching & Le | F91: 4002 | G91: Center for Instructional Excellence | H91: 62010000 | I91: Center for Instructional Excellence | J91: 62010000 | K91: 62010000 - Center for Instructional Excellence | L91: U1 | M91: Undergraduate | N91: B0H - Vice Provost Teaching and Learning | O91: B0H | P91: 40057822 | Q91: Student Pedagogy Advocate - Student Clerical | R91: 20003261 | S91: Student (1) | T91: Non Staff | U91: Undergraduate Students | V91: Student | W91: ZA - Student Hourly | X91: Student | Y91: U005 | Z91: 7.25 | AA91: 9.28 | AB91: 11.3 | AC91: HOURLY | AD91: Bi-Weekly | AE91: Z1 | AF91: DUR - Temp/Student | AG91: NonEx-Student/Temp-Pos-Dur | AH91: Ad Hoc | AI91: AdHoc | AJ91: Y | AK91: N | AL91: N | AN91: 0 | AO91: 11 | AP91: Non-Essential Worker | AQ91: N | AU91: 15 | AV91: 1200 | AW91: 0 | AX91: 0 | AY91: 0 | AZ91: 0 | BA91: 0 | BB91: 0 | BC91: 0 | BD91: 0 | BF91: No differential | BG91: 0 | BL91: Active | BO91: N | BR91: N | BU91: 1 | BV91: 1 | BW91: 2025-04 | BX91: 2025-10 | BY91: 0 | BZ91: N | CA91: 0 | CB91: 0 | CD91: 0 | CE91: 0 | CG91: 0 | CH91: 0
A92: West Lafayette | B92: 4002 | C92: Vice Provost for Teaching & Le | D92: 4002 - Vice Provost for Teaching & Le | E92: 4002 - Vice Provost for Teaching & Le | F92: 4002 | G92: Center for Instructional Excellence | H92: 62010000 | I92: Center for Instructional Excellence | J92: 62010000 | K92: 62010000 - Center for Instructional Excellence | L92: PGRD | M92: Post Graduate | N92: B0H - Vice Provost Teaching and Learning | O92: B0H | P92: 40069902 | Q92: Post Doc Research Assistant | R92: 20002956 | S92: Post Doc Research Assistant | T92: Non Staff | U92: Post Docs | V92: Post Doc | W92: Z4 - 12 Month Salaried | X92: Other | Y92: O001 | Z92: 0 | AA92: 500000 | AB92: 1000000 | AC92: MON | AD92: Monthly | AE92: Z2 | AF92: DUR - PostDoc/Interns/Residents - FY | AG92: Exempt-PostDoc/Int/Res-Neg-Dur | AH92: Exempt - Monday to Friday - 8hrs | AI92: NORM | AJ92: Y | AK92: N | AL92: N | AN92: 1 | AO92: 9 | AP92: Non-Essential Worker | AQ92: Y | AU92: 0 | AV92: 4583.34 | AW92: 55000.08 | AX92: 55000.08 | AY92: 55000.08 | AZ92: 43043.06 | BA92: 43043.06 | BB92: 55000.08 | BC92: 0 | BD92: 0 | BE92: Day_Shft | BF92: First Shift-no differential | BG92: 0 | BH92: Assistant | BI92: 0 | BJ92: 2024-10-07 | BL92: Active | BM92: 2024-10-07 | BN92: 2026-06-30 | BO92: N | BR92: N | BU92: 1 | BV92: 1 | BW92: 2025-04 | BX92: 2025-10 | BY92: 55000 | BZ92: N | CA92: 55000.08 | CB92: 1 | CC92: Full Time | CD92: 0 | CE92: 0 | CG92: 0 | CH92: 0
A93: West Lafayette | B93: 4002 | C93: Vice Provost for Teaching & Le | D93: 4002 - Vice Provost for Teaching & Le | E93: 4002 - Vice Provost for Teaching & Le | F93: 4002 | G93: Center for Instructional Excellence | H93: 62010000 | I93: Center for Instructional Excellence | J93: 62010000 | K93: 62010000 - Center for Instructional Excellence | L93: U1 | M93: Undergraduate | N93: B0H - Vice Provost Teaching and Learning | O93: B0H | P93: 40057822 | Q93: Student Pedagogy Advocate - Student Clerical | R93: 20003261 | S93: Student (1) | T93: Non Staff | U93: Undergraduate Students | V93: Student | W93: ZA - Student Hourly | X93: Student | Y93: U005 | Z93: 7.25 | AA93: 9.28 | AB93: 11.3 | AC93: HOURLY | AD93: Bi-Weekly | AE93: Z1 | AF93: DUR - Temp/Student | AG93: NonEx-Student/Temp-Pos-Dur | AH93: Ad Hoc | AI93: AdHoc | AJ93: Y | AK93: N | AL93: N | AN93: 0 | AO93: 9 | AP93: Non-Essential Worker | AQ93: N | AU93: 15 | AV93: 1200 | AW93: 0 | AX93: 0 | AY93: 0 | AZ93: 0 | BA93: 0 | BB93: 0 | BC93: 0 | BD93: 0 | BF93: No differential | BG93: 0 | BL93: Active | BO93: N | BR93: N | BU93: 1 | BV93: 1 | BW93: 2025-04 | BX93: 2025-10 | BY93: 0 | BZ93: N | CA93: 0 | CB93: 0 | CD93: 0 | CE93: 0 | CG93: 0 | CH93: 0
A94: West Lafayette | B94: 4002 | C94: Vice Provost for Teaching & Le | D94: 4002 - Vice Provost for Teaching & Le | E94: 4002 - Vice Provost for Teaching & Le | F94: 4002 | G94: Center for Instructional Excellence | H94: 62010000 | I94: Center for Instructional Excellence | J94: 62010000 | K94: 62010000 - Center for Instructional Excellence | L94: U1 | M94: Undergraduate | N94: B0H - Vice Provost Teaching and Learning | O94: B0H | P94: 40057822 | Q94: Student Pedagogy Advocate - Student Clerical | R94: 20003261 | S94: Student (1) | T94: Non Staff | U94: Undergraduate Students | V94: Student | W94: ZA - Student Hourly | X94: Student | Y94: U005 | Z94: 7.25 | AA94: 9.28 | AB94: 11.3 | AC94: HOURLY | AD94: Bi-Weekly | AE94: Z1 | AF94: DUR - Temp/Student | AG94: NonEx-Student/Temp-Pos-Dur | AH94: Ad Hoc | AI94: AdHoc | AJ94: Y | AK94: N | AL94: N | AN94: 0 | AO94: 8 | AP94: Non-Essential Worker | AQ94: N | AU94: 15 | AV94: 1200 | AW94: 0 | AX94: 0 | AY94: 0 | AZ94: 0 | BA94: 0 | BB94: 0 | BC94: 0 | BD94: 0 | BF94: No differential | BG94: 0 | BL94: Active | BO94: N | BR94: N | BU94: 1 | BV94: 1 | BW94: 2025-04 | BX94: 2025-10 | BY94: 0 | BZ94: N | CA94: 0 | CB94: 0 | CD94: 0 | CE94: 0 | CG94: 0 | CH94: 0
A95: West Lafayette | B95: 4002 | C95: Vice Provost for Teaching & Le | D95: 4002 - Vice Provost for Teaching & Le | E95: 4002 - Vice Provost for Teaching & Le | F95: 4002 | G95: Center for Instructional Excellence | H95: 62010000 | I95: Center for Instructional Excellence | J95: 62010000 | K95: 62010000 - Center for Instructional Excellence | L95: U1 | M95: Undergraduate | N95: B0H - Vice Provost Teaching and Learning | O95: B0H | P95: 40057822 | Q95: Student Pedagogy Advocate - Student Clerical | R95: 20003261 | S95: Student (1) | T95: Non Staff | U95: Undergraduate Students | V95: Student | W95: ZA - Student Hourly | X95: Student | Y95: U005 | Z95: 7.25 | AA95: 9.28 | AB95: 11.3 | AC95: HOURLY | AD95: Bi-Weekly | AE95: Z1 | AF95: DUR - Temp/Student | AG95: NonEx-Student/Temp-Pos-Dur | AH95: Ad Hoc | AI95: AdHoc | AJ95: Y | AK95: N | AL95: N | AN95: 0 | AO95: 6 | AP95: Non-Essential Worker | AQ95: N | AU95: 15 | AV95: 1200 | AW95: 0 | AX95: 0 | AY95: 0 | AZ95: 0 | BA95: 0 | BB95: 0 | BC95: 0 | BD95: 0 | BF95: No differential | BG95: 0 | BL95: Active | BO95: N | BR95: N | BU95: 1 | BV95: 1 | BW95: 2025-04 | BX95: 2025-10 | BY95: 0 | BZ95: N | CA95: 0 | CB95: 0 | CD95: 0 | CE95: 0 | CG95: 0 | CH95: 0
A96: West Lafayette | B96: 4002 | C96: Vice Provost for Teaching & Le | D96: 4002 - Vice Provost for Teaching & Le | E96: 4002 - Vice Provost for Teaching & Le | F96: 4002 | G96: Center for Instructional Excellence | H96: 62010000 | I96: Center for Instructional Excellence | J96: 62010000 | K96: 62010000 - Center for Instructional Excellence | L96: U2 | M96: Undergraduate | N96: B0H - Vice Provost Teaching and Learning | O96: B0H | P96: 40086075 | Q96: Student Pedagogy Advocate - Student Clerical | R96: 20003262 | S96: Student (2) | T96: Non Staff | U96: Undergraduate Students | V96: Student | W96: ZA - Student Hourly | X96: Student | Y96: U010 | Z96: 9.38 | AA96: 11.5 | AB96: 13.62 | AC96: HOURLY | AD96: Bi-Weekly | AE96: Z1 | AF96: DUR - Temp/Student | AG96: NonEx-Student/Temp-Pos-Dur | AH96: Ad Hoc | AI96: AdHoc | AJ96: Y | AK96: N | AL96: N | AN96: 0 | AO96: 5 | AP96: Non-Essential Worker | AQ96: N | AU96: 15 | AV96: 1200 | AW96: 0 | AX96: 0 | AY96: 0 | AZ96: 0 | BA96: 0 | BB96: 0 | BC96: 0 | BD96: 0 | BL96: Active | BO96: N | BR96: N | BU96: 1 | BV96: 1 | BW96: 2025-04 | BX96: 2025-10 | BY96: 0 | BZ96: N | CA96: 0 | CB96: 0 | CD96: 0 | CE96: 0 | CG96: 0 | CH96: 0
A97: West Lafayette | B97: 4002 | C97: Vice Provost for Teaching & Le | D97: 4002 - Vice Provost for Teaching & Le | E97: 4002 - Vice Provost for Teaching & Le | F97: 4002 | G97: Center for Instructional Excellence | H97: 62010000 | I97: Center for Instructional Excellence | J97: 62010000 | K97: 62010000 - Center for Instructional Excellence | L97: U2 | M97: Undergraduate | N97: B0H - Vice Provost Teaching and Learning | O97: B0H | P97: 40086075 | Q97: Student Pedagogy Advocate - Student Clerical | R97: 20003262 | S97: Student (2) | T97: Non Staff | U97: Undergraduate Students | V97: Student | W97: ZA - Student Hourly | X97: Student | Y97: U010 | Z97: 9.38 | AA97: 11.5 | AB97: 13.62 | AC97: HOURLY | AD97: Bi-Weekly | AE97: Z1 | AF97: DUR - Temp/Student | AG97: NonEx-Student/Temp-Pos-Dur | AH97: Ad Hoc | AI97: AdHoc | AJ97: Y | AK97: N | AL97: N | AN97: 0 | AO97: 6 | AP97: Non-Essential Worker | AQ97: N | AU97: 15 | AV97: 1200 | AW97: 0 | AX97: 0 | AY97: 0 | AZ97: 0 | BA97: 0 | BB97: 0 | BC97: 0 | BD97: 0 | BL97: Active | BO97: N | BR97: N | BU97: 1 | BV97: 1 | BW97: 2025-04 | BX97: 2025-10 | BY97: 0 | BZ97: N | CA97: 0 | CB97: 0 | CD97: 0 | CE97: 0 | CG97: 0 | CH97: 0
A98: West Lafayette | B98: 4002 | C98: Vice Provost for Teaching & Le | D98: 4002 - Vice Provost for Teaching & Le | E98: 4002 - Vice Provost for Teaching & Le | F98: 4002 | G98: Center for Instructional Excellence | H98: 62010000 | I98: Center for Instructional Excellence | J98: 62010000 | K98: 62010000 - Center for Instructional Excellence | L98: U1 | M98: Undergraduate | N98: B0H - Vice Provost Teaching and Learning | O98: B0H | P98: 40057822 | Q98: Student Pedagogy Advocate - Student Clerical | R98: 20003261 | S98: Student (1) | T98: Non Staff | U98: Undergraduate Students | V98: Student | W98: ZA - Student Hourly | X98: Student | Y98: U005 | Z98: 7.25 | AA98: 9.28 | AB98: 11.3 | AC98: HOURLY | AD98: Bi-Weekly | AE98: Z1 | AF98: DUR - Temp/Student | AG98: NonEx-Student/Temp-Pos-Dur | AH98: Ad Hoc | AI98: AdHoc | AJ98: Y | AK98: N | AL98: N | AN98: 0 | AO98: 5 | AP98: Non-Essential Worker | AQ98: N | AU98: 15 | AV98: 1200 | AW98: 0 | AX98: 0 | AY98: 0 | AZ98: 0 | BA98: 0 | BB98: 0 | BC98: 0 | BD98: 0 | BF98: No differential | BG98: 0 | BL98: Active | BO98: N | BR98: N | BU98: 1 | BV98: 1 | BW98: 2025-04 | BX98: 2025-10 | BY98: 0 | BZ98: N | CA98: 0 | CB98: 0 | CD98: 0 | CE98: 0 | CG98: 0 | CH98: 0
A99: West Lafayette | B99: 4002 | C99: Vice Provost for Teaching & Le | D99: 4002 - Vice Provost for Teaching & Le | E99: 4002 - Vice Provost for Teaching & Le | F99: 4002 | G99: Center for Instructional Excellence | H99: 62010000 | I99: Center for Instructional Excellence | J99: 62010000 | K99: 62010000 - Center for Instructional Excellence | L99: U1 | M99: Undergraduate | N99: B0H - Vice Provost Teaching and Learning | O99: B0H | P99: 40057822 | Q99: Student Pedagogy Advocate - Student Clerical | R99: 20003261 | S99: Student (1) | T99: Non Staff | U99: Undergraduate Students | V99: Student | W99: ZA - Student Hourly | X99: Student | Y99: U005 | Z99: 7.25 | AA99: 9.28 | AB99: 11.3 | AC99: HOURLY | AD99: Bi-Weekly | AE99: Z1 | AF99: DUR - Temp/Student | AG99: NonEx-Student/Temp-Pos-Dur | AH99: Ad Hoc | AI99: AdHoc | AJ99: Y | AK99: Y | AL99: N | AN99: 0 | AO99: 35 | AP99: Non-Essential Worker | AQ99: N | AU99: 15 | AV99: 1200 | AW99: 0 | AX99: 0 | AY99: 0 | AZ99: 0 | BA99: 0 | BB99: 0 | BC99: 0 | BD99: 0 | BF99: No differential | BG99: 0 | BL99: Active | BO99: N | BR99: N | BU99: 1 | BV99: 1 | BW99: 2025-04 | BX99: 2025-10 | BY99: 0 | BZ99: N | CA99: 0 | CB99: 0 | CD99: 0 | CE99: 0 | CG99: 0 | CH99: 0
A100: West Lafayette | B100: 4002 | C100: Vice Provost for Teaching & Le | D100: 4002 - Vice Provost for Teaching & Le | E100: 4002 - Vice Provost for Teaching & Le | F100: 4002 | G100: Center for Instructional Excellence | H100: 62010000 | I100: Center for Instructional Excellence | J100: 62010000 | K100: 62010000 - Center for Instructional Excellence | L100: U1 | M100: Undergraduate | N100: B0H - Vice Provost Teaching and Learning | O100: B0H | P100: 40057822 | Q100: Student Pedagogy Advocate - Student Clerical | R100: 20003261 | S100: Student (1) | T100: Non Staff | U100: Undergraduate Students | V100: Student | W100: ZA - Student Hourly | X100: Student | Y100: U005 | Z100: 7.25 | AA100: 9.28 | AB100: 11.3 | AC100: HOURLY | AD100: Bi-Weekly | AE100: Z1 | AF100: DUR - Temp/Student | AG100: NonEx-Student/Temp-Pos-Dur | AH100: Ad Hoc | AI100: AdHoc | AJ100: Y | AK100: Y | AL100: N | AN100: 0 | AO100: 11 | AP100: Non-Essential Worker | AQ100: N | AU100: 15 | AV100: 1200 | AW100: 0 | AX100: 0 | AY100: 0 | AZ100: 0 | BA100: 0 | BB100: 0 | BC100: 0 | BD100: 0 | BF100: No differential | BG100: 0 | BL100: Active | BO100: N | BR100: N | BU100: 1 | BV100: 1 | BW100: 2025-04 | BX100: 2025-10 | BY100: 0 | BZ100: N | CA100: 0 | CB100: 0 | CD100: 0 | CE100: 0 | CG100: 0 | CH100: 0
A101: West Lafayette | B101: 4002 | C101: Vice Provost for Teaching & Le | D101: 4002 - Vice Provost for Teaching & Le | E101: 4002 - Vice Provost for Teaching & Le | F101: 4002 | G101: Center for Instructional Excellence | H101: 62010000 | I101: Center for Instructional Excellence | J101: 62010000 | K101: 62010000 - Center for Instructional Excellence | L101: U1 | M101: Undergraduate | N101: B0H - Vice Provost Teaching and Learning | O101: B0H | P101: 40057822 | Q101: Student Pedagogy Advocate - Student Clerical | R101: 20003261 | S101: Student (1) | T101: Non Staff | U101: Undergraduate Students | V101: Student | W101: ZA - Student Hourly | X101: Student | Y101: U005 | Z101: 7.25 | AA101: 9.28 | AB101: 11.3 | AC101: HOURLY | AD101: Bi-Weekly | AE101: Z1 | AF101: DUR - Temp/Student | AG101: NonEx-Student/Temp-Pos-Dur | AH101: Ad Hoc | AI101: AdHoc | AJ101: N | AK101: Y | AL101: N | AN101: 0 | AO101: 11 | AP101: Non-Essential Worker | AQ101: N | AU101: 15 | AV101: 1200 | AW101: 0 | AX101: 0 | AY101: 0 | AZ101: 0 | BA101: 0 | BB101: 0 | BC101: 0 | BD101: 0 | BF101: No differential | BG101: 0 | BL101: Active | BO101: N | BR101: N | BU101: 0 | BV101: 1 | BW101: 2025-04 | BX101: 2025-10 | BY101: 0 | BZ101: N | CA101: 0 | CB101: 0 | CD101: 0 | CE101: 0 | CG101: 0 | CH101: 0
A102: West Lafayette | B102: 4002 | C102: Vice Provost for Teaching & Le | D102: 4002 - Vice Provost for Teaching & Le | E102: 4002 - Vice Provost for Teaching & Le | F102: 4002 | G102: Center for Instructional Excellence | H102: 62010000 | I102: Center for Instructional Excellence | J102: 62010000 | K102: 62010000 - Center for Instructional Excellence | L102: U2 | M102: Undergraduate | N102: B0H - Vice Provost Teaching and Learning | O102: B0H | P102: 40086075 | Q102: Student Pedagogy Advocate - Student Clerical | R102: 20003262 | S102: Student (2) | T102: Non Staff | U102: Undergraduate Students | V102: Student | W102: ZA - Student Hourly | X102: Student | Y102: U010 | Z102: 9.38 | AA102: 11.5 | AB102: 13.62 | AC102: HOURLY | AD102: Bi-Weekly | AE102: Z1 | AF102: DUR - Temp/Student | AG102: NonEx-Student/Temp-Pos-Dur | AH102: Ad Hoc | AI102: AdHoc | AJ102: N | AK102: Y | AL102: N | AN102: 0 | AO102: 6 | AP102: Non-Essential Worker | AQ102: N | AU102: 15 | AV102: 1200 | AW102: 0 | AX102: 0 | AY102: 0 | AZ102: 0 | BA102: 0 | BB102: 0 | BC102: 0 | BD102: 0 | BL102: Active | BO102: N | BR102: N | BU102: 0 | BV102: 1 | BW102: 2025-04 | BX102: 2025-10 | BY102: 0 | BZ102: N | CA102: 0 | CB102: 0 | CD102: 0 | CE102: 0 | CG102: 0 | CH102: 0
A103: West Lafayette | B103: 4002 | C103: Vice Provost for Teaching & Le | D103: 4002 - Vice Provost for Teaching & Le | E103: 4002 - Vice Provost for Teaching & Le | F103: 4002 | G103: Center for Instructional Excellence | H103: 62010000 | I103: Center for Instructional Excellence | J103: 62010000 | K103: 62010000 - Center for Instructional Excellence | L103: U2 | M103: Undergraduate | N103: B0H - Vice Provost Teaching and Learning | O103: B0H | P103: 40086075 | Q103: Student Pedagogy Advocate - Student Clerical | R103: 20003262 | S103: Student (2) | T103: Non Staff | U103: Undergraduate Students | V103: Student | W103: ZA - Student Hourly | X103: Student | Y103: U010 | Z103: 9.38 | AA103: 11.5 | AB103: 13.62 | AC103: HOURLY | AD103: Bi-Weekly | AE103: Z1 | AF103: DUR - Temp/Student | AG103: NonEx-Student/Temp-Pos-Dur | AH103: Ad Hoc | AI103: AdHoc | AJ103: N | AK103: Y | AL103: N | AN103: 0 | AO103: 6 | AP103: Non-Essential Worker | AQ103: N | AU103: 15 | AV103: 1200 | AW103: 0 | AX103: 0 | AY103: 0 | AZ103: 0 | BA103: 0 | BB103: 0 | BC103: 0 | BD103: 0 | BL103: Active | BO103: N | BR103: N | BU103: 0 | BV103: 1 | BW103: 2025-04 | BX103: 2025-10 | BY103: 0 | BZ103: N | CA103: 0 | CB103: 0 | CD103: 0 | CE103: 0 | CG103: 0 | CH103: 0
A104: West Lafayette | B104: 4002 | C104: Vice Provost for Teaching & Le | D104: 4002 - Vice Provost for Teaching & Le | E104: 4002 - Vice Provost for Teaching & Le | F104: 4002 | G104: Center for Instructional Excellence | H104: 62010000 | I104: Center for Instructional Excellence | J104: 62010000 | K104: 62010000 - Center for Instructional Excellence | L104: U1 | M104: Undergraduate | N104: B0H - Vice Provost Teaching and Learning | O104: B0H | P104: 40057822 | Q104: Student Pedagogy Advocate - Student Clerical | R104: 20003261 | S104: Student (1) | T104: Non Staff | U104: Undergraduate Students | V104: Student | W104: ZA - Student Hourly | X104: Student | Y104: U005 | Z104: 7.25 | AA104: 9.28 | AB104: 11.3 | AC104: HOURLY | AD104: Bi-Weekly | AE104: Z1 | AF104: DUR - Temp/Student | AG104: NonEx-Student/Temp-Pos-Dur | AH104: Ad Hoc | AI104: AdHoc | AJ104: Y | AK104: Y | AL104: N | AN104: 0 | AO104: 6 | AP104: Non-Essential Worker | AQ104: N | AU104: 15 | AV104: 1200 | AW104: 0 | AX104: 0 | AY104: 0 | AZ104: 0 | BA104: 0 | BB104: 0 | BC104: 0 | BD104: 0 | BL104: Active | BO104: N | BR104: N | BU104: 1 | BV104: 1 | BW104: 2025-04 | BX104: 2025-10 | BY104: 0 | BZ104: N | CA104: 0 | CB104: 0 | CD104: 0 | CE104: 0 | CG104: 0 | CH104: 0
A105: West Lafayette | B105: 4002 | C105: Vice Provost for Teaching & Le | D105: 4002 - Vice Provost for Teaching & Le | E105: 4002 - Vice Provost for Teaching & Le | F105: 4002 | G105: Center for Instructional Excellence | H105: 62010000 | I105: Center for Instructional Excellence | J105: 62010000 | K105: 62010000 - Center for Instructional Excellence | L105: U2 | M105: Undergraduate | N105: B0H - Vice Provost Teaching and Learning | O105: B0H | P105: 40086075 | Q105: Student Pedagogy Advocate - Student Clerical | R105: 20003262 | S105: Student (2) | T105: Non Staff | U105: Undergraduate Students | V105: Student | W105: ZA - Student Hourly | X105: Student | Y105: U010 | Z105: 9.38 | AA105: 11.5 | AB105: 13.62 | AC105: HOURLY | AD105: Bi-Weekly | AE105: Z1 | AF105: DUR - Temp/Student | AG105: NonEx-Student/Temp-Pos-Dur | AH105: Ad Hoc | AI105: AdHoc | AJ105: N | AK105: Y | AL105: N | AN105: 0 | AO105: 6 | AP105: Non-Essential Worker | AQ105: N | AU105: 15 | AV105: 1200 | AW105: 0 | AX105: 0 | AY105: 0 | AZ105: 0 | BA105: 0 | BB105: 0 | BC105: 0 | BD105: 0 | BL105: Active | BO105: N | BR105: N | BU105: 0 | BV105: 1 | BW105: 2025-04 | BX105: 2025-10 | BY105: 0 | BZ105: N | CA105: 0 | CB105: 0 | CD105: 0 | CE105: 0 | CG105: 0 | CH105: 0
A106: West Lafayette | B106: 4002 | C106: Vice Provost for Teaching & Le | D106: 4002 - Vice Provost for Teaching & Le | E106: 4002 - Vice Provost for Teaching & Le | F106: 4002 | G106: Center for Instructional Excellence | H106: 62010000 | I106: Center for Instructional Excellence | J106: 62010000 | K106: 62010000 - Center for Instructional Excellence | L106: GRD | M106: Graduate | N106: B0H - Vice Provost Teaching and Learning | O106: B0H | P106: 40086915 | Q106: Graduate Research Assistant | R106: 20002736 | S106: Graduate Research Assistant | T106: Non Staff | U106: Graduate Students | V106: Graduate Student | W106: ZC - Student 12 Month Salaried | X106: Other | Y106: O001 | Z106: 0 | AA106: 500000 | AB106: 1000000 | AC106: BWK | AD106: Bi-Weekly | AE106: Z1 | AF106: DUR - Exempt - Grad - FY | AG106: Exempt-Neg-Dur | AH106: Exempt - M-F 4 hours | AI106: EXMF04 | AJ106: Y | AK106: Y | AL106: N | AN106: 0.5 | AO106: 4 | AP106: Non-Essential Worker | AQ106: Y | AU106: 0 | AV106: 1076.93 | AW106: 28000.18 | AX106: 56000.36 | AY106: 56000.36 | AZ106: 43825.88 | BA106: 21912.94 | BB106: 28000.18 | BC106: 0 | BD106: 0 | BF106: No differential | BG106: 0 | BL106: Active | BO106: N | BR106: N | BU106: 1 | BV106: 1 | BW106: 2025-04 | BX106: 2025-10 | BY106: 28000 | BZ106: N | CA106: 28000.18 | CB106: 0.5 | CC106: Part Time | CD106: 0 | CE106: 0 | CG106: 0 | CH106: 0
A107: West Lafayette | B107: 4002 | C107: Vice Provost for Teaching & Le | D107: 4002 - Vice Provost for Teaching & Le | E107: 4002 - Vice Provost for Teaching & Le | F107: 4002 | G107: Center for Instructional Excellence | H107: 62010000 | I107: Center for Instructional Excellence | J107: 62010000 | K107: 62010000 - Center for Instructional Excellence | L107: GRD | M107: Graduate | N107: B0H - Vice Provost Teaching and Learning | O107: B0H | P107: 40036096 | Q107: Graduate Administrative/Professional - CIE | R107: 20003895 | S107: NEP - Graduate Professional | T107: Non Staff | U107: Graduate Students | V107: Graduate Student | W107: Z8 - 12 Month Hourly | X107: Other | Y107: O001 | Z107: 0 | AA107: 500000 | AB107: 1000000 | AC107: HOURLY | AD107: Bi-Weekly | AE107: Z1 | AF107: DUR_Non-Exempt_Grad_FY | AG107: Neg-NonExempt-Dur | AH107: Non-Exempt - Monday to Friday - 4hrs | AI107: NEMF04 | AJ107: Y | AK107: N | AL107: N | AN107: 0.5 | AO107: 5 | AP107: Non-Essential Worker | AQ107: Y | AU107: 26.93 | AV107: 1077.2 | AW107: 28007.2 | AX107: 56014.4 | AY107: 56014.4 | AZ107: 43836.86 | BA107: 21918.43 | BB107: 28007.2 | BC107: 0 | BD107: 0 | BE107: Normal | BF107: No differential | BG107: 0 | BL107: Active | BO107: N | BR107: N | BU107: 1 | BV107: 1 | BW107: 2025-04 | BX107: 2025-10 | BY107: 28007 | BZ107: N | CA107: 28007.2 | CB107: 0.5 | CC107: Part Time | CD107: 0 | CE107: 0 | CG107: 0 | CH107: 0
A108: West Lafayette | B108: 4002 | C108: Vice Provost for Teaching & Le | D108: 4002 - Vice Provost for Teaching & Le | E108: 4002 - Vice Provost for Teaching & Le | F108: 4002 | G108: Center for Instructional Excellence | H108: 62010000 | I108: Center for Instructional Excellence | J108: 62010000 | K108: 62010000 - Center for Instructional Excellence | L108: S3 | M108: Administrative and Operational Support | N108: B0H - Vice Provost Teaching and Learning | O108: B0H | P108: 40003246 | Q108: Senior Administrative Assistant | R108: 20002331 | S108: Administrative Assistant, Senior | T108: Administration | U108: Administrative Operations | V108: Support | W108: Z8 - 12 Month Hourly | X108: Staff | Y108: S045 | Z108: 35300 | AA108: 49000 | AB108: 62700 | AC108: HOURLY | AD108: Bi-Weekly | AE108: Z1 | AF108: DUR - Non-Exempt - Negative | AG108: Neg-NonExempt-Dur | AH108: Non-Exempt - Monday to Friday - 8Hrs | AI108: NEMF08 | AJ108: Y | AK108: N | AL108: N | AN108: 1 | AO108: 78 | AP108: Non-Essential Worker | AQ108: Y | AU108: 23.7 | AV108: 1896 | AW108: 49296 | AX108: 49296 | AY108: 49296 | AZ108: 38579.05 | BA108: 38579.05 | BB108: 49296 | BC108: 0 | BD108: 0 | BF108: No differential | BG108: 0 | BL108: Active | BO108: N | BR108: N | BU108: 1 | BV108: 1 | BW108: 2025-04 | BX108: 2025-10 | BY108: 49296 | BZ108: N | CA108: 49296 | CB108: 1 | CC108: Full Time | CD108: 0 | CE108: 0 | CG108: 0 | CH108: 0
A109: West Lafayette | B109: 4002 | C109: Vice Provost for Teaching & Le | D109: 4002 - Vice Provost for Teaching & Le | E109: 4002 - Vice Provost for Teaching & Le | F109: 4002 | G109: Center for Instructional Excellence | H109: 62010000 | I109: Center for Instructional Excellence | J109: 62010000 | K109: 62010000 - Center for Instructional Excellence | L109: P4 | M109: Professional | N109: B0H - Vice Provost Teaching and Learning | O109: B0H | P109: 40012212 | Q109: Assistant Director-Special Projects | R109: 20002088 | S109: Program Administration Specialist, Lead | T109: Administration | U109: Program Administration | V109: M/P Professional | W109: Z4 - 12 Month Salaried | X109: Staff | Y109: S075 | Z109: 71200 | AA109: 99000 | AB109: 126800 | AC109: MON | AD109: Monthly | AE109: Z2 | AF109: DUR - Exempt - FY | AG109: Exempt-Neg-Dur | AH109: Exempt - Monday to Friday - 8hrs | AI109: NORM | AJ109: Y | AK109: N | AL109: N | AN109: 1 | AO109: 78 | AP109: Non-Essential Worker | AQ109: Y | AU109: 0 | AV109: 7676.68 | AW109: 92120.16 | AX109: 92120.16 | AY109: 92120.16 | AZ109: 72093.24 | BA109: 72093.24 | BB109: 92120.16 | BC109: 0 | BD109: 0 | BE109: Day_Shft | BF109: First Shift-no differential | BG109: 0 | BL109: Active | BO109: N | BR109: N | BU109: 1 | BV109: 1 | BW109: 2025-04 | BX109: 2025-10 | BY109: 92120 | BZ109: N | CA109: 92120.16 | CB109: 1 | CC109: Full Time | CD109: 0 | CE109: 0 | CG109: 0 | CH109: 0
A110: West Lafayette | B110: 4002 | C110: Vice Provost for Teaching & Le | D110: 4002 - Vice Provost for Teaching & Le | E110: 4002 - Vice Provost for Teaching & Le | F110: 4002 | G110: Data Processing | H110: 62010100 | I110: Center for Instructional Excellence | J110: 62010000 | K110: 62010000 - Center for Instructional Excellence | L110: S3 | M110: Administrative and Operational Support | N110: B0H - Vice Provost Teaching and Learning | O110: B0H | P110: 40039261 | Q110: Data Processing Operator, Senior | R110: 20002464 | S110: Administrative Clerk, Senior | T110: Administration | U110: Administrative Operations | V110: Support | W110: Z6 - 10 Month Hourly | X110: Staff | Y110: S040 | Z110: 32100 | AA110: 44600 | AB110: 57100 | AC110: 10M100 | AD110: Bi-Weekly | AE110: Z1 | AF110: DUR - Non-Exempt - Negative | AG110: Neg-NonExempt-Dur | AH110: Non-Exempt - Monday to Friday - 8Hrs | AI110: NEMF08 | AJ110: Y | AK110: N | AL110: N | AN110: 1 | AO110: 68 | AP110: Non-Essential Worker | AQ110: Y | AU110: 22.47 | AV110: 1797.6 | AW110: 39547.2 | AX110: 39547.2 | AY110: 46737.6 | AZ110: 36576.85 | BA110: 36576.85 | BB110: 46737.6 | BC110: 0 | BD110: 0 | BF110: No differential | BG110: 0 | BL110: Active | BO110: N | BR110: N | BU110: 1 | BV110: 1 | BW110: 2025-04 | BX110: 2025-10 | BY110: 39547 | BZ110: N | CA110: 39547.2 | CB110: 1 | CC110: Full Time | CD110: 0 | CE110: 0 | CG110: 0 | CH110: 0
A111: West Lafayette | B111: 4002 | C111: Vice Provost for Teaching & Le | D111: 4002 - Vice Provost for Teaching & Le | E111: 4002 - Vice Provost for Teaching & Le | F111: 4002 | G111: Data Processing | H111: 62010100 | I111: Center for Instructional Excellence | J111: 62010000 | K111: 62010000 - Center for Instructional Excellence | L111: S2 | M111: Administrative and Operational Support | N111: B0H - Vice Provost Teaching and Learning | O111: B0H | P111: 40011282 | Q111: Data Processing Operator | R111: 20002463 | S111: Administrative Clerk | T111: Administration | U111: Administrative Operations | V111: Support | W111: Z8 - 12 Month Hourly | X111: Staff | Y111: S035 | Z111: 29100 | AA111: 40500 | AB111: 51900 | AC111: HOURLY | AD111: Bi-Weekly | AE111: Z1 | AF111: DUR - Non-Exempt - Negative | AG111: Neg-NonExempt-Dur | AH111: Non-Exempt - Monday to Friday - 8Hrs | AI111: NEMF08 | AJ111: Y | AK111: N | AL111: N | AN111: 1 | AO111: 78 | AP111: Non-Essential Worker | AQ111: Y | AU111: 16.86 | AV111: 1348.8 | AW111: 35068.8 | AX111: 35068.8 | AY111: 35068.8 | AZ111: 27444.84 | BA111: 27444.84 | BB111: 35068.8 | BC111: 0 | BD111: 0 | BF111: No differential | BG111: 0 | BL111: Active | BO111: N | BR111: N | BU111: 1 | BV111: 1 | BW111: 2025-04 | BX111: 2025-10 | BY111: 35069 | BZ111: N | CA111: 35068.8 | CB111: 1 | CC111: Full Time | CD111: 0 | CE111: 0 | CG111: 0 | CH111: 0
A112: West Lafayette | B112: 4002 | C112: Vice Provost for Teaching & Le | D112: 4002 - Vice Provost for Teaching & Le | E112: 4002 - Vice Provost for Teaching & Le | F112: 4002 | G112: Data Processing | H112: 62010100 | I112: Center for Instructional Excellence | J112: 62010000 | K112: 62010000 - Center for Instructional Excellence | L112: S1 | M112: Administrative and Operational Support | N112: B0H - Vice Provost Teaching and Learning | O112: B0H | P112: 40011908 | Q112: Data Processing Operator | R112: 20002462 | S112: Administrative Clerk, Associate | T112: Administration | U112: Administrative Operations | V112: Support | W112: Z6 - 10 Month Hourly | X112: Staff | Y112: S030 | Z112: 26400 | AA112: 36700 | AB112: 47000 | AC112: 10M100 | AD112: Bi-Weekly | AE112: Z1 | AF112: DUR - Non-Exempt - Negative | AG112: Neg-NonExempt-Dur | AH112: Ad Hoc - Monday to Friday | AI112: AdHocMF | AJ112: Y | AK112: N | AL112: N | AN112: 1 | AO112: 78 | AP112: Non-Essential Worker | AQ112: Y | AU112: 16.59 | AV112: 1327.2 | AW112: 29198.4 | AX112: 29198.4 | AY112: 34507.2 | AZ112: 27005.33 | BA112: 27005.33 | BB112: 34507.2 | BC112: 0 | BD112: 0 | BF112: No differential | BG112: 0 | BL112: Active | BO112: N | BR112: N | BU112: 1 | BV112: 1 | BW112: 2025-04 | BX112: 2025-10 | BY112: 29198 | BZ112: N | CA112: 29198.4 | CB112: 1 | CC112: Full Time | CD112: 0 | CE112: 0 | CG112: 0 | CH112: 0
A113: West Lafayette | B113: 4002 | C113: Vice Provost for Teaching & Le | D113: 4002 - Vice Provost for Teaching & Le | E113: 4002 - Vice Provost for Teaching & Le | F113: 4002 | G113: Data Processing | H113: 62010100 | I113: Center for Instructional Excellence | J113: 62010000 | K113: 62010000 - Center for Instructional Excellence | L113: S2 | M113: Administrative and Operational Support | N113: B0H - Vice Provost Teaching and Learning | O113: B0H | P113: 40007466 | Q113: Data Processing Operator | R113: 20002463 | S113: Administrative Clerk | T113: Administration | U113: Administrative Operations | V113: Support | W113: Z6 - 10 Month Hourly | X113: Staff | Y113: S035 | Z113: 29100 | AA113: 40500 | AB113: 51900 | AC113: 10M100 | AD113: Bi-Weekly | AE113: Z1 | AF113: DUR - Non-Exempt - Negative | AG113: Neg-NonExempt-Dur | AH113: Non-Exempt - Monday to Friday - 8Hrs | AI113: NEMF08 | AJ113: Y | AK113: N | AL113: N | AN113: 1 | AO113: 62 | AP113: Non-Essential Worker | AQ113: Y | AU113: 16.47 | AV113: 1317.6 | AW113: 28987.2 | AX113: 28987.2 | AY113: 34257.6 | AZ113: 26810 | BA113: 26810 | BB113: 34257.6 | BC113: 0 | BD113: 0 | BF113: No differential | BG113: 0 | BL113: Active | BO113: N | BR113: N | BU113: 1 | BV113: 1 | BW113: 2025-04 | BX113: 2025-10 | BY113: 28987 | BZ113: N | CA113: 28987.2 | CB113: 1 | CC113: Full Time | CD113: 0 | CE113: 0 | CG113: 0 | CH113: 0
A114: West Lafayette | B114: 4002 | C114: Vice Provost for Teaching & Le | D114: 4002 - Vice Provost for Teaching & Le | E114: 4002 - Vice Provost for Teaching & Le | F114: 4002 | G114: Data Processing | H114: 62010100 | I114: Center for Instructional Excellence | J114: 62010000 | K114: 62010000 - Center for Instructional Excellence | L114: U1 | M114: Undergraduate | N114: B0H - Vice Provost Teaching and Learning | O114: B0H | P114: 40001389 | Q114: Student Service - Proctor | R114: 20003261 | S114: Student (1) | T114: Non Staff | U114: Undergraduate Students | V114: Student | W114: ZA - Student Hourly | X114: Student | Y114: U005 | Z114: 7.25 | AA114: 9.28 | AB114: 11.3 | AC114: HOURLY | AD114: Bi-Weekly | AE114: Z1 | AF114: DUR - Temp/Student | AG114: NonEx-Student/Temp-Pos-Dur | AH114: Ad Hoc | AI114: AdHoc | AJ114: Y | AK114: Y | AL114: N | AN114: 0 | AO114: 9 | AP114: Non-Essential Worker | AQ114: N | AU114: 26.93 | AV114: 2154.4 | AW114: 0 | AX114: 0 | AY114: 0 | AZ114: 0 | BA114: 0 | BB114: 0 | BC114: 0 | BD114: 0 | BF114: No differential | BG114: 0 | BL114: Active | BO114: N | BR114: N | BU114: 1 | BV114: 1 | BW114: 2025-04 | BX114: 2025-10 | BY114: 0 | BZ114: N | CA114: 0 | CB114: 0 | CD114: 0 | CE114: 0 | CG114: 0 | CH114: 0
A115: West Lafayette | B115: 4002 | C115: Vice Provost for Teaching & Le | D115: 4002 - Vice Provost for Teaching & Le | E115: 4002 - Vice Provost for Teaching & Le | F115: 4002 | G115: Data Processing | H115: 62010100 | I115: Center for Instructional Excellence | J115: 62010000 | K115: 62010000 - Center for Instructional Excellence | L115: U1 | M115: Undergraduate | N115: B0H - Vice Provost Teaching and Learning | O115: B0H | P115: 40001389 | Q115: Student Service - Proctor | R115: 20003261 | S115: Student (1) | T115: Non Staff | U115: Undergraduate Students | V115: Student | W115: ZA - Student Hourly | X115: Student | Y115: U005 | Z115: 7.25 | AA115: 9.28 | AB115: 11.3 | AC115: HOURLY | AD115: Bi-Weekly | AE115: Z1 | AF115: DUR - Temp/Student | AG115: NonEx-Student/Temp-Pos-Dur | AH115: Ad Hoc | AI115: AdHoc | AJ115: Y | AK115: N | AL115: N | AN115: 0 | AO115: 2 | AP115: Non-Essential Worker | AQ115: N | AU115: 20 | AV115: 1600 | AW115: 0 | AX115: 0 | AY115: 0 | AZ115: 0 | BA115: 0 | BB115: 0 | BC115: 0 | BD115: 0 | BF115: No differential | BG115: 0 | BL115: Active | BO115: N | BR115: N | BU115: 1 | BV115: 1 | BW115: 2025-04 | BX115: 2025-10 | BY115: 0 | BZ115: N | CA115: 0 | CB115: 0 | CD115: 0 | CE115: 0 | CG115: 0 | CH115: 0
A116: West Lafayette | B116: 4002 | C116: Vice Provost for Teaching & Le | D116: 4002 - Vice Provost for Teaching & Le | E116: 4002 - Vice Provost for Teaching & Le | F116: 4002 | G116: Data Processing | H116: 62010100 | I116: Center for Instructional Excellence | J116: 62010000 | K116: 62010000 - Center for Instructional Excellence | L116: U1 | M116: Undergraduate | N116: B0H - Vice Provost Teaching and Learning | O116: B0H | P116: 40001389 | Q116: Student Service - Proctor | R116: 20003261 | S116: Student (1) | T116: Non Staff | U116: Undergraduate Students | V116: Student | W116: ZA - Student Hourly | X116: Student | Y116: U005 | Z116: 7.25 | AA116: 9.28 | AB116: 11.3 | AC116: HOURLY | AD116: Bi-Weekly | AE116: Z1 | AF116: DUR - Temp/Student | AG116: NonEx-Student/Temp-Pos-Dur | AH116: Ad Hoc | AI116: AdHoc | AJ116: Y | AK116: N | AL116: N | AN116: 0 | AO116: 3 | AP116: Non-Essential Worker | AQ116: N | AU116: 26.93 | AV116: 2154.4 | AW116: 0 | AX116: 0 | AY116: 0 | AZ116: 0 | BA116: 0 | BB116: 0 | BC116: 0 | BD116: 0 | BF116: No differential | BG116: 0 | BL116: Active | BO116: N | BR116: N | BU116: 1 | BV116: 1 | BW116: 2025-04 | BX116: 2025-10 | BY116: 0 | BZ116: N | CA116: 0 | CB116: 0 | CD116: 0 | CE116: 0 | CG116: 0 | CH116: 0
A117: West Lafayette | B117: 4002 | C117: Vice Provost for Teaching & Le | D117: 4002 - Vice Provost for Teaching & Le | E117: 4002 - Vice Provost for Teaching & Le | F117: 4002 | G117: Data Processing | H117: 62010100 | I117: Center for Instructional Excellence | J117: 62010000 | K117: 62010000 - Center for Instructional Excellence | L117: U1 | M117: Undergraduate | N117: B0H - Vice Provost Teaching and Learning | O117: B0H | P117: 40001389 | Q117: Student Service - Proctor | R117: 20003261 | S117: Student (1) | T117: Non Staff | U117: Undergraduate Students | V117: Student | W117: ZA - Student Hourly | X117: Student | Y117: U005 | Z117: 7.25 | AA117: 9.28 | AB117: 11.3 | AC117: HOURLY | AD117: Bi-Weekly | AE117: Z1 | AF117: DUR - Temp/Student | AG117: NonEx-Student/Temp-Pos-Dur | AH117: Ad Hoc | AI117: AdHoc | AJ117: Y | AK117: N | AL117: N | AN117: 0 | AO117: 8 | AP117: Non-Essential Worker | AQ117: N | AU117: 26.93 | AV117: 2154.4 | AW117: 0 | AX117: 0 | AY117: 0 | AZ117: 0 | BA117: 0 | BB117: 0 | BC117: 0 | BD117: 0 | BF117: No differential | BG117: 0 | BL117: Active | BO117: N | BR117: N | BU117: 1 | BV117: 1 | BW117: 2025-04 | BX117: 2025-10 | BY117: 0 | BZ117: N | CA117: 0 | CB117: 0 | CD117: 0 | CE117: 0 | CG117: 0 | CH117: 0
A118: West Lafayette | B118: 4002 | C118: Vice Provost for Teaching & Le | D118: 4002 - Vice Provost for Teaching & Le | E118: 4002 - Vice Provost for Teaching & Le | F118: 4002 | G118: Data Processing | H118: 62010100 | I118: Center for Instructional Excellence | J118: 62010000 | K118: 62010000 - Center for Instructional Excellence | L118: U1 | M118: Undergraduate | N118: B0H - Vice Provost Teaching and Learning | O118: B0H | P118: 40001389 | Q118: Student Service - Proctor | R118: 20003261 | S118: Student (1) | T118: Non Staff | U118: Undergraduate Students | V118: Student | W118: ZA - Student Hourly | X118: Student | Y118: U005 | Z118: 7.25 | AA118: 9.28 | AB118: 11.3 | AC118: HOURLY | AD118: Bi-Weekly | AE118: Z1 | AF118: DUR - Temp/Student | AG118: NonEx-Student/Temp-Pos-Dur | AH118: Ad Hoc | AI118: AdHoc | AJ118: Y | AK118: N | AL118: N | AN118: 0 | AO118: 0 | AP118: Non-Essential Worker | AQ118: N | AU118: 20 | AV118: 1600 | AW118: 0 | AX118: 0 | AY118: 0 | AZ118: 0 | BA118: 0 | BB118: 0 | BC118: 0 | BD118: 0 | BF118: No differential | BG118: 0 | BL118: Active | BO118: N | BR118: N | BU118: 1 | BV118: 1 | BW118: 2025-04 | BX118: 2025-10 | BY118: 0 | BZ118: N | CA118: 0 | CB118: 0 | CD118: 0 | CE118: 0 | CG118: 0 | CH118: 0
A119: West Lafayette | B119: 4002 | C119: Vice Provost for Teaching & Le | D119: 4002 - Vice Provost for Teaching & Le | E119: 4002 - Vice Provost for Teaching & Le | F119: 4002 | G119: Data Processing | H119: 62010100 | I119: Center for Instructional Excellence | J119: 62010000 | K119: 62010000 - Center for Instructional Excellence | L119: S2 | M119: Administrative and Operational Support | N119: B0H - Vice Provost Teaching and Learning | O119: B0H | P119: 40082579 | Q119: Data Processing Operator- Indianapolis | R119: 20002463 | S119: Administrative Clerk | T119: Administration | U119: Administrative Operations | V119: Support | W119: Z6 - 10 Month Hourly | X119: Staff | Y119: S035 | Z119: 29100 | AA119: 40500 | AB119: 51900 | AC119: 10M100 | AD119: Bi-Weekly | AE119: Z1 | AF119: DUR - Non-Exempt - Negative | AG119: Neg-NonExempt-Dur | AH119: Non-Exempt - Monday to Friday - 8Hrs | AI119: NEMF08 | AJ119: Y | AK119: N | AL119: N | AN119: 1 | AO119: 10 | AP119: Non-Essential Worker | AQ119: Y | AU119: 16 | AV119: 1280 | AW119: 28160 | AX119: 28160 | AY119: 33280 | AZ119: 26044.93 | BA119: 26044.93 | BB119: 33280 | BC119: 0 | BD119: 0 | BF119: No differential | BG119: 0 | BL119: Active | BO119: N | BR119: N | BU119: 1 | BV119: 1 | BW119: 2025-04 | BX119: 2025-10 | BY119: 28160 | BZ119: N | CA119: 28160 | CB119: 1 | CC119: Full Time | CD119: 0 | CE119: 0 | CG119: 0 | CH119: 0
A120: West Lafayette | B120: 4002 | C120: Vice Provost for Teaching & Le | D120: 4002 - Vice Provost for Teaching & Le | E120: 4002 - Vice Provost for Teaching & Le | F120: 4002 | G120: Data Processing | H120: 62010100 | I120: Center for Instructional Excellence | J120: 62010000 | K120: 62010000 - Center for Instructional Excellence | L120: U1 | M120: Undergraduate | N120: B0H - Vice Provost Teaching and Learning | O120: B0H | P120: 40001389 | Q120: Student Service - Proctor | R120: 20003261 | S120: Student (1) | T120: Non Staff | U120: Undergraduate Students | V120: Student | W120: ZA - Student Hourly | X120: Student | Y120: U005 | Z120: 7.25 | AA120: 9.28 | AB120: 11.3 | AC120: HOURLY | AD120: Bi-Weekly | AE120: Z1 | AF120: DUR - Temp/Student | AG120: NonEx-Student/Temp-Pos-Dur | AH120: Ad Hoc | AI120: AdHoc | AJ120: Y | AK120: N | AL120: N | AN120: 0 | AO120: 17 | AP120: Non-Essential Worker | AQ120: N | AU120: 26.93 | AV120: 2154.4 | AW120: 0 | AX120: 0 | AY120: 0 | AZ120: 0 | BA120: 0 | BB120: 0 | BC120: 0 | BD120: 0 | BF120: No differential | BG120: 0 | BL120: Active | BO120: N | BR120: N | BU120: 1 | BV120: 1 | BW120: 2025-04 | BX120: 2025-10 | BY120: 0 | BZ120: N | CA120: 0 | CB120: 0 | CD120: 0 | CE120: 0 | CG120: 0 | CH120: 0
A121: West Lafayette | B121: 4002 | C121: Vice Provost for Teaching & Le | D121: 4002 - Vice Provost for Teaching & Le | E121: 4002 - Vice Provost for Teaching & Le | F121: 4002 | G121: Data Processing | H121: 62010100 | I121: Center for Instructional Excellence | J121: 62010000 | K121: 62010000 - Center for Instructional Excellence | L121: U1 | M121: Undergraduate | N121: B0H - Vice Provost Teaching and Learning | O121: B0H | P121: 40001389 | Q121: Student Service - Proctor | R121: 20003261 | S121: Student (1) | T121: Non Staff | U121: Undergraduate Students | V121: Student | W121: ZA - Student Hourly | X121: Student | Y121: U005 | Z121: 7.25 | AA121: 9.28 | AB121: 11.3 | AC121: HOURLY | AD121: Bi-Weekly | AE121: Z1 | AF121: DUR - Temp/Student | AG121: NonEx-Student/Temp-Pos-Dur | AH121: Ad Hoc | AI121: AdHoc | AJ121: Y | AK121: N | AL121: N | AN121: 0 | AO121: 5 | AP121: Non-Essential Worker | AQ121: N | AU121: 26.93 | AV121: 2154.4 | AW121: 0 | AX121: 0 | AY121: 0 | AZ121: 0 | BA121: 0 | BB121: 0 | BC121: 0 | BD121: 0 | BF121: No differential | BG121: 0 | BL121: Active | BO121: N | BR121: N | BU121: 1 | BV121: 1 | BW121: 2025-04 | BX121: 2025-10 | BY121: 0 | BZ121: N | CA121: 0 | CB121: 0 | CD121: 0 | CE121: 0 | CG121: 0 | CH121: 0
A122: West Lafayette | B122: 4002 | C122: Vice Provost for Teaching & Le | D122: 4002 - Vice Provost for Teaching & Le | E122: 4002 - Vice Provost for Teaching & Le | F122: 4002 | G122: Data Processing | H122: 62010100 | I122: Center for Instructional Excellence | J122: 62010000 | K122: 62010000 - Center for Instructional Excellence | L122: U1 | M122: Undergraduate | N122: B0H - Vice Provost Teaching and Learning | O122: B0H | P122: 40001389 | Q122: Student Service - Proctor | R122: 20003261 | S122: Student (1) | T122: Non Staff | U122: Undergraduate Students | V122: Student | W122: ZA - Student Hourly | X122: Student | Y122: U005 | Z122: 7.25 | AA122: 9.28 | AB122: 11.3 | AC122: HOURLY | AD122: Bi-Weekly | AE122: Z1 | AF122: DUR - Temp/Student | AG122: NonEx-Student/Temp-Pos-Dur | AH122: Ad Hoc | AI122: AdHoc | AJ122: Y | AK122: N | AL122: N | AN122: 0 | AO122: 3 | AP122: Non-Essential Worker | AQ122: N | AU122: 20 | AV122: 1600 | AW122: 0 | AX122: 0 | AY122: 0 | AZ122: 0 | BA122: 0 | BB122: 0 | BC122: 0 | BD122: 0 | BF122: No differential | BG122: 0 | BL122: Active | BO122: N | BR122: N | BU122: 1 | BV122: 1 | BW122: 2025-04 | BX122: 2025-10 | BY122: 0 | BZ122: N | CA122: 0 | CB122: 0 | CD122: 0 | CE122: 0 | CG122: 0 | CH122: 0
A123: West Lafayette | B123: 4002 | C123: Vice Provost for Teaching & Le | D123: 4002 - Vice Provost for Teaching & Le | E123: 4002 - Vice Provost for Teaching & Le | F123: 4002 | G123: Data Processing | H123: 62010100 | I123: Center for Instructional Excellence | J123: 62010000 | K123: 62010000 - Center for Instructional Excellence | L123: U1 | M123: Undergraduate | N123: B0H - Vice Provost Teaching and Learning | O123: B0H | P123: 40001389 | Q123: Student Service - Proctor | R123: 20003261 | S123: Student (1) | T123: Non Staff | U123: Undergraduate Students | V123: Student | W123: ZA - Student Hourly | X123: Student | Y123: U005 | Z123: 7.25 | AA123: 9.28 | AB123: 11.3 | AC123: HOURLY | AD123: Bi-Weekly | AE123: Z1 | AF123: DUR - Temp/Student | AG123: NonEx-Student/Temp-Pos-Dur | AH123: Ad Hoc | AI123: AdHoc | AJ123: Y | AK123: N | AL123: N | AN123: 0 | AO123: 3 | AP123: Non-Essential Worker | AQ123: N | AU123: 20 | AV123: 1600 | AW123: 0 | AX123: 0 | AY123: 0 | AZ123: 0 | BA123: 0 | BB123: 0 | BC123: 0 | BD123: 0 | BF123: No differential | BG123: 0 | BL123: Active | BO123: N | BR123: N | BU123: 1 | BV123: 1 | BW123: 2025-04 | BX123: 2025-10 | BY123: 0 | BZ123: N | CA123: 0 | CB123: 0 | CD123: 0 | CE123: 0 | CG123: 0 | CH123: 0
A124: West Lafayette | B124: 4002 | C124: Vice Provost for Teaching & Le | D124: 4002 - Vice Provost for Teaching & Le | E124: 4002 - Vice Provost for Teaching & Le | F124: 4002 | G124: Data Processing | H124: 62010100 | I124: Center for Instructional Excellence | J124: 62010000 | K124: 62010000 - Center for Instructional Excellence | L124: U1 | M124: Undergraduate | N124: B0H - Vice Provost Teaching and Learning | O124: B0H | P124: 40001389 | Q124: Student Service - Proctor | R124: 20003261 | S124: Student (1) | T124: Non Staff | U124: Undergraduate Students | V124: Student | W124: ZA - Student Hourly | X124: Student | Y124: U005 | Z124: 7.25 | AA124: 9.28 | AB124: 11.3 | AC124: HOURLY | AD124: Bi-Weekly | AE124: Z1 | AF124: DUR - Temp/Student | AG124: NonEx-Student/Temp-Pos-Dur | AH124: Ad Hoc | AI124: AdHoc | AJ124: Y | AK124: N | AL124: N | AN124: 0 | AO124: 3 | AP124: Non-Essential Worker | AQ124: N | AU124: 20 | AV124: 1600 | AW124: 0 | AX124: 0 | AY124: 0 | AZ124: 0 | BA124: 0 | BB124: 0 | BC124: 0 | BD124: 0 | BF124: No differential | BG124: 0 | BL124: Active | BO124: N | BR124: N | BU124: 1 | BV124: 1 | BW124: 2025-04 | BX124: 2025-10 | BY124: 0 | BZ124: N | CA124: 0 | CB124: 0 | CD124: 0 | CE124: 0 | CG124: 0 | CH124: 0
A125: West Lafayette | B125: 4002 | C125: Vice Provost for Teaching & Le | D125: 4002 - Vice Provost for Teaching & Le | E125: 4002 - Vice Provost for Teaching & Le | F125: 4002 | G125: Data Processing | H125: 62010100 | I125: Center for Instructional Excellence | J125: 62010000 | K125: 62010000 - Center for Instructional Excellence | L125: U1 | M125: Undergraduate | N125: B0H - Vice Provost Teaching and Learning | O125: B0H | P125: 40001389 | Q125: Student Service - Proctor | R125: 20003261 | S125: Student (1) | T125: Non Staff | U125: Undergraduate Students | V125: Student | W125: ZA - Student Hourly | X125: Student | Y125: U005 | Z125: 7.25 | AA125: 9.28 | AB125: 11.3 | AC125: HOURLY | AD125: Bi-Weekly | AE125: Z1 | AF125: DUR - Temp/Student | AG125: NonEx-Student/Temp-Pos-Dur | AH125: Ad Hoc | AI125: AdHoc | AJ125: Y | AK125: Y | AL125: N | AN125: 0 | AO125: 10 | AP125: Non-Essential Worker | AQ125: N | AU125: 26.93 | AV125: 2154.4 | AW125: 0 | AX125: 0 | AY125: 0 | AZ125: 0 | BA125: 0 | BB125: 0 | BC125: 0 | BD125: 0 | BF125: No differential | BG125: 0 | BL125: Active | BO125: N | BR125: N | BU125: 1 | BV125: 1 | BW125: 2025-04 | BX125: 2025-10 | BY125: 0 | BZ125: N | CA125: 0 | CB125: 0 | CD125: 0 | CE125: 0 | CG125: 0 | CH125: 0
A126: West Lafayette | B126: 4002 | C126: Vice Provost for Teaching & Le | D126: 4002 - Vice Provost for Teaching & Le | E126: 4002 - Vice Provost for Teaching & Le | F126: 4002 | G126: Data Processing | H126: 62010100 | I126: Center for Instructional Excellence | J126: 62010000 | K126: 62010000 - Center for Instructional Excellence | L126: U1 | M126: Undergraduate | N126: B0H - Vice Provost Teaching and Learning | O126: B0H | P126: 40001389 | Q126: Student Service - Proctor | R126: 20003261 | S126: Student (1) | T126: Non Staff | U126: Undergraduate Students | V126: Student | W126: ZA - Student Hourly | X126: Student | Y126: U005 | Z126: 7.25 | AA126: 9.28 | AB126: 11.3 | AC126: HOURLY | AD126: Bi-Weekly | AE126: Z1 | AF126: DUR - Temp/Student | AG126: NonEx-Student/Temp-Pos-Dur | AH126: Ad Hoc | AI126: AdHoc | AJ126: Y | AK126: N | AL126: N | AN126: 0 | AO126: 10 | AP126: Non-Essential Worker | AQ126: N | AU126: 26.93 | AV126: 2154.4 | AW126: 0 | AX126: 0 | AY126: 0 | AZ126: 0 | BA126: 0 | BB126: 0 | BC126: 0 | BD126: 0 | BF126: No differential | BG126: 0 | BL126: Active | BO126: N | BR126: N | BU126: 1 | BV126: 1 | BW126: 2025-04 | BX126: 2025-10 | BY126: 0 | BZ126: N | CA126: 0 | CB126: 0 | CD126: 0 | CE126: 0 | CG126: 0 | CH126: 0
A127: West Lafayette | B127: 4002 | C127: Vice Provost for Teaching & Le | D127: 4002 - Vice Provost for Teaching & Le | E127: 4002 - Vice Provost for Teaching & Le | F127: 4002 | G127: Data Processing | H127: 62010100 | I127: Center for Instructional Excellence | J127: 62010000 | K127: 62010000 - Center for Instructional Excellence | L127: U1 | M127: Undergraduate | N127: B0H - Vice Provost Teaching and Learning | O127: B0H | P127: 40001389 | Q127: Student Service - Proctor | R127: 20003261 | S127: Student (1) | T127: Non Staff | U127: Undergraduate Students | V127: Student | W127: ZA - Student Hourly | X127: Student | Y127: U005 | Z127: 7.25 | AA127: 9.28 | AB127: 11.3 | AC127: HOURLY | AD127: Bi-Weekly | AE127: Z1 | AF127: DUR - Temp/Student | AG127: NonEx-Student/Temp-Pos-Dur | AH127: Ad Hoc | AI127: AdHoc | AJ127: Y | AK127: N | AL127: N | AN127: 0 | AO127: 10 | AP127: Non-Essential Worker | AQ127: N | AU127: 26.93 | AV127: 2154.4 | AW127: 0 | AX127: 0 | AY127: 0 | AZ127: 0 | BA127: 0 | BB127: 0 | BC127: 0 | BD127: 0 | BF127: No differential | BG127: 0 | BL127: Active | BO127: N | BR127: N | BU127: 1 | BV127: 1 | BW127: 2025-04 | BX127: 2025-10 | BY127: 0 | BZ127: N | CA127: 0 | CB127: 0 | CD127: 0 | CE127: 0 | CG127: 0 | CH127: 0
A128: West Lafayette | B128: 4002 | C128: Vice Provost for Teaching & Le | D128: 4002 - Vice Provost for Teaching & Le | E128: 4002 - Vice Provost for Teaching & Le | F128: 4002 | G128: Data Processing | H128: 62010100 | I128: Center for Instructional Excellence | J128: 62010000 | K128: 62010000 - Center for Instructional Excellence | L128: U1 | M128: Undergraduate | N128: B0H - Vice Provost Teaching and Learning | O128: B0H | P128: 40001389 | Q128: Student Service - Proctor | R128: 20003261 | S128: Student (1) | T128: Non Staff | U128: Undergraduate Students | V128: Student | W128: ZA - Student Hourly | X128: Student | Y128: U005 | Z128: 7.25 | AA128: 9.28 | AB128: 11.3 | AC128: HOURLY | AD128: Bi-Weekly | AE128: Z1 | AF128: DUR - Temp/Student | AG128: NonEx-Student/Temp-Pos-Dur | AH128: Ad Hoc | AI128: AdHoc | AJ128: Y | AK128: N | AL128: N | AN128: 0 | AO128: 10 | AP128: Non-Essential Worker | AQ128: N | AU128: 26.93 | AV128: 2154.4 | AW128: 0 | AX128: 0 | AY128: 0 | AZ128: 0 | BA128: 0 | BB128: 0 | BC128: 0 | BD128: 0 | BF128: No differential | BG128: 0 | BL128: Active | BO128: N | BR128: N | BU128: 1 | BV128: 1 | BW128: 2025-04 | BX128: 2025-10 | BY128: 0 | BZ128: N | CA128: 0 | CB128: 0 | CD128: 0 | CE128: 0 | CG128: 0 | CH128: 0
A129: West Lafayette | B129: 4002 | C129: Vice Provost for Teaching & Le | D129: 4002 - Vice Provost for Teaching & Le | E129: 4002 - Vice Provost for Teaching & Le | F129: 4002 | G129: Data Processing | H129: 62010100 | I129: Center for Instructional Excellence | J129: 62010000 | K129: 62010000 - Center for Instructional Excellence | L129: U1 | M129: Undergraduate | N129: B0H - Vice Provost Teaching and Learning | O129: B0H | P129: 40001389 | Q129: Student Service - Proctor | R129: 20003261 | S129: Student (1) | T129: Non Staff | U129: Undergraduate Students | V129: Student | W129: ZA - Student Hourly | X129: Student | Y129: U005 | Z129: 7.25 | AA129: 9.28 | AB129: 11.3 | AC129: HOURLY | AD129: Bi-Weekly | AE129: Z1 | AF129: DUR - Temp/Student | AG129: NonEx-Student/Temp-Pos-Dur | AH129: Ad Hoc | AI129: AdHoc | AJ129: Y | AK129: Y | AL129: N | AN129: 0 | AO129: 5 | AP129: Non-Essential Worker | AQ129: N | AU129: 26.93 | AV129: 2154.4 | AW129: 0 | AX129: 0 | AY129: 0 | AZ129: 0 | BA129: 0 | BB129: 0 | BC129: 0 | BD129: 0 | BF129: No differential | BG129: 0 | BL129: Active | BO129: N | BR129: N | BU129: 1 | BV129: 1 | BW129: 2025-04 | BX129: 2025-10 | BY129: 0 | BZ129: N | CA129: 0 | CB129: 0 | CD129: 0 | CE129: 0 | CG129: 0 | CH129: 0
A130: West Lafayette | B130: 4002 | C130: Vice Provost for Teaching & Le | D130: =B130&" - "&C130 -> 4002 - Vice Provost for Teaching & Le | E130: 4002 - Vice Provost for Teaching & Le | F130: 4002 | G130: Data Processing | H130: 62010100 | I130: Center for Instructional Excellence | J130: 62010000 | K130: =J130&" - "&I130 -> 62010000 - Center for Instructional Excellence | L130: U1 | M130: Undergraduate | N130: B0H - Vice Provost Teaching and Learning | O130: B0H | P130: 40001389 | Q130: Student Service - Proctor | R130: 20003261 | S130: Student (1) | T130: Non Staff | U130: Undergraduate Students | V130: Student | W130: ZA - Student Hourly | X130: Student | Y130: U005 | Z130: 7.25 | AA130: 9.28 | AB130: 11.3 | AC130: HOURLY | AD130: Bi-Weekly | AE130: Z1 | AF130: DUR - Temp/Student | AG130: NonEx-Student/Temp-Pos-Dur | AH130: Ad Hoc | AI130: AdHoc | AJ130: Y | AK130: N | AL130: N | AN130: 0 | AO130: 9 | AP130: Non-Essential Worker | AQ130: N | AU130: 26.93 | AV130: 2154.4 | AW130: 0 | AX130: 0 | AY130: 0 | AZ130: 0 | BA130: 0 | BB130: 0 | BC130: 0 | BD130: 0 | BF130: No differential | BG130: 0 | BL130: Active | BO130: N | BR130: N | BU130: 1 | BV130: 1 | BW130: 2025-04 | BX130: 2025-10 | BY130: 0 | BZ130: N | CA130: 0 | CB130: 0 | CD130: 0 | CE130: 0 | CG130: 0 | CH130: 0
A131: West Lafayette | B131: 4002 | C131: Vice Provost for Teaching & Le | D131: 4002 - Vice Provost for Teaching & Le | E131: 4002 - Vice Provost for Teaching & Le | F131: 4002 | G131: Data Processing | H131: 62010100 | I131: Center for Instructional Excellence | J131: 62010000 | K131: 62010000 - Center for Instructional Excellence | L131: U1 | M131: Undergraduate | N131: B0H - Vice Provost Teaching and Learning | O131: B0H | P131: 40001389 | Q131: Student Service - Proctor | R131: 20003261 | S131: Student (1) | T131: Non Staff | U131: Undergraduate Students | V131: Student | W131: ZA - Student Hourly | X131: Student | Y131: U005 | Z131: 7.25 | AA131: 9.28 | AB131: 11.3 | AC131: HOURLY | AD131: Bi-Weekly | AE131: Z1 | AF131: DUR - Temp/Student | AG131: NonEx-Student/Temp-Pos-Dur | AH131: Ad Hoc | AI131: AdHoc | AJ131: Y | AK131: N | AL131: N | AN131: 0 | AO131: 9 | AP131: Non-Essential Worker | AQ131: N | AU131: 26.93 | AV131: 2154.4 | AW131: 0 | AX131: 0 | AY131: 0 | AZ131: 0 | BA131: 0 | BB131: 0 | BC131: 0 | BD131: 0 | BF131: No differential | BG131: 0 | BL131: Active | BO131: N | BR131: N | BU131: 1 | BV131: 1 | BW131: 2025-04 | BX131: 2025-10 | BY131: 0 | BZ131: N | CA131: 0 | CB131: 0 | CD131: 0 | CE131: 0 | CG131: 0 | CH131: 0
A132: West Lafayette | B132: 4002 | C132: Vice Provost for Teaching & Le | D132: 4002 - Vice Provost for Teaching & Le | E132: 4002 - Vice Provost for Teaching & Le | F132: 4002 | G132: Data Processing | H132: 62010100 | I132: Center for Instructional Excellence | J132: 62010000 | K132: 62010000 - Center for Instructional Excellence | L132: U1 | M132: Undergraduate | N132: B0H - Vice Provost Teaching and Learning | O132: B0H | P132: 40001389 | Q132: Student Service - Proctor | R132: 20003261 | S132: Student (1) | T132: Non Staff | U132: Undergraduate Students | V132: Student | W132: ZA - Student Hourly | X132: Student | Y132: U005 | Z132: 7.25 | AA132: 9.28 | AB132: 11.3 | AC132: HOURLY | AD132: Bi-Weekly | AE132: Z1 | AF132: DUR - Temp/Student | AG132: NonEx-Student/Temp-Pos-Dur | AH132: Ad Hoc | AI132: AdHoc | AJ132: Y | AK132: N | AL132: N | AN132: 0 | AO132: 9 | AP132: Non-Essential Worker | AQ132: N | AU132: 26.93 | AV132: 2154.4 | AW132: 0 | AX132: 0 | AY132: 0 | AZ132: 0 | BA132: 0 | BB132: 0 | BC132: 0 | BD132: 0 | BF132: No differential | BG132: 0 | BL132: Active | BO132: N | BR132: N | BU132: 1 | BV132: 1 | BW132: 2025-04 | BX132: 2025-10 | BY132: 0 | BZ132: N | CA132: 0 | CB132: 0 | CD132: 0 | CE132: 0 | CG132: 0 | CH132: 0
A133: West Lafayette | B133: 4002 | C133: Vice Provost for Teaching & Le | D133: 4002 - Vice Provost for Teaching & Le | E133: 4002 - Vice Provost for Teaching & Le | F133: 4002 | G133: Data Processing | H133: 62010100 | I133: Center for Instructional Excellence | J133: 62010000 | K133: 62010000 - Center for Instructional Excellence | L133: U1 | M133: Undergraduate | N133: B0H - Vice Provost Teaching and Learning | O133: B0H | P133: 40001389 | Q133: Student Service - Proctor | R133: 20003261 | S133: Student (1) | T133: Non Staff | U133: Undergraduate Students | V133: Student | W133: ZA - Student Hourly | X133: Student | Y133: U005 | Z133: 7.25 | AA133: 9.28 | AB133: 11.3 | AC133: HOURLY | AD133: Bi-Weekly | AE133: Z1 | AF133: DUR - Temp/Student | AG133: NonEx-Student/Temp-Pos-Dur | AH133: Ad Hoc | AI133: AdHoc | AJ133: Y | AK133: N | AL133: N | AN133: 0 | AO133: 5 | AP133: Non-Essential Worker | AQ133: N | AU133: 26.93 | AV133: 2154.4 | AW133: 0 | AX133: 0 | AY133: 0 | AZ133: 0 | BA133: 0 | BB133: 0 | BC133: 0 | BD133: 0 | BF133: No differential | BG133: 0 | BL133: Active | BO133: N | BR133: N | BU133: 1 | BV133: 1 | BW133: 2025-04 | BX133: 2025-10 | BY133: 0 | BZ133: N | CA133: 0 | CB133: 0 | CD133: 0 | CE133: 0 | CG133: 0 | CH133: 0
A134: West Lafayette | B134: 4002 | C134: Vice Provost for Teaching & Le | D134: 4002 - Vice Provost for Teaching & Le | E134: 4002 - Vice Provost for Teaching & Le | F134: 4002 | G134: Data Processing | H134: 62010100 | I134: Center for Instructional Excellence | J134: 62010000 | K134: 62010000 - Center for Instructional Excellence | L134: U1 | M134: Undergraduate | N134: B0H - Vice Provost Teaching and Learning | O134: B0H | P134: 40001389 | Q134: Student Service - Proctor | R134: 20003261 | S134: Student (1) | T134: Non Staff | U134: Undergraduate Students | V134: Student | W134: ZA - Student Hourly | X134: Student | Y134: U005 | Z134: 7.25 | AA134: 9.28 | AB134: 11.3 | AC134: HOURLY | AD134: Bi-Weekly | AE134: Z1 | AF134: DUR - Temp/Student | AG134: NonEx-Student/Temp-Pos-Dur | AH134: Ad Hoc | AI134: AdHoc | AJ134: Y | AK134: N | AL134: N | AN134: 0 | AO134: 5 | AP134: Non-Essential Worker | AQ134: N | AU134: 26.93 | AV134: 2154.4 | AW134: 0 | AX134: 0 | AY134: 0 | AZ134: 0 | BA134: 0 | BB134: 0 | BC134: 0 | BD134: 0 | BF134: No differential | BG134: 0 | BL134: Active | BO134: N | BR134: N | BU134: 1 | BV134: 1 | BW134: 2025-04 | BX134: 2025-10 | BY134: 0 | BZ134: N | CA134: 0 | CB134: 0 | CD134: 0 | CE134: 0 | CG134: 0 | CH134: 0
A135: West Lafayette | B135: 4002 | C135: Vice Provost for Teaching & Le | D135: 4002 - Vice Provost for Teaching & Le | E135: 4002 - Vice Provost for Teaching & Le | F135: 4002 | G135: Data Processing | H135: 62010100 | I135: Center for Instructional Excellence | J135: 62010000 | K135: 62010000 - Center for Instructional Excellence | L135: U1 | M135: Undergraduate | N135: B0H - Vice Provost Teaching and Learning | O135: B0H | P135: 40001389 | Q135: Student Service - Proctor | R135: 20003261 | S135: Student (1) | T135: Non Staff | U135: Undergraduate Students | V135: Student | W135: ZA - Student Hourly | X135: Student | Y135: U005 | Z135: 7.25 | AA135: 9.28 | AB135: 11.3 | AC135: HOURLY | AD135: Bi-Weekly | AE135: Z1 | AF135: DUR - Temp/Student | AG135: NonEx-Student/Temp-Pos-Dur | AH135: Ad Hoc | AI135: AdHoc | AJ135: Y | AK135: N | AL135: N | AN135: 0 | AO135: 5 | AP135: Non-Essential Worker | AQ135: N | AU135: 26.93 | AV135: 2154.4 | AW135: 0 | AX135: 0 | AY135: 0 | AZ135: 0 | BA135: 0 | BB135: 0 | BC135: 0 | BD135: 0 | BF135: No differential | BG135: 0 | BL135: Active | BO135: N | BR135: N | BU135: 1 | BV135: 1 | BW135: 2025-04 | BX135: 2025-10 | BY135: 0 | BZ135: N | CA135: 0 | CB135: 0 | CD135: 0 | CE135: 0 | CG135: 0 | CH135: 0
A136: West Lafayette | B136: 4002 | C136: Vice Provost for Teaching & Le | D136: 4002 - Vice Provost for Teaching & Le | E136: 4002 - Vice Provost for Teaching & Le | F136: 4002 | G136: Data Processing | H136: 62010100 | I136: Center for Instructional Excellence | J136: 62010000 | K136: 62010000 - Center for Instructional Excellence | L136: U1 | M136: Undergraduate | N136: B0H - Vice Provost Teaching and Learning | O136: B0H | P136: 40001389 | Q136: Student Service - Proctor | R136: 20003261 | S136: Student (1) | T136: Non Staff | U136: Undergraduate Students | V136: Student | W136: ZA - Student Hourly | X136: Student | Y136: U005 | Z136: 7.25 | AA136: 9.28 | AB136: 11.3 | AC136: HOURLY | AD136: Bi-Weekly | AE136: Z1 | AF136: DUR - Temp/Student | AG136: NonEx-Student/Temp-Pos-Dur | AH136: Ad Hoc | AI136: AdHoc | AJ136: Y | AK136: N | AL136: N | AN136: 0 | AO136: 3 | AP136: Non-Essential Worker | AQ136: N | AU136: 26.93 | AV136: 2154.4 | AW136: 0 | AX136: 0 | AY136: 0 | AZ136: 0 | BA136: 0 | BB136: 0 | BC136: 0 | BD136: 0 | BF136: No differential | BG136: 0 | BL136: Active | BO136: N | BR136: N | BU136: 1 | BV136: 1 | BW136: 2025-04 | BX136: 2025-10 | BY136: 0 | BZ136: N | CA136: 0 | CB136: 0 | CD136: 0 | CE136: 0 | CG136: 0 | CH136: 0
A137: West Lafayette | B137: 4002 | C137: Vice Provost for Teaching & Le | D137: 4002 - Vice Provost for Teaching & Le | E137: 4002 - Vice Provost for Teaching & Le | F137: 4002 | G137: Data Processing | H137: 62010100 | I137: Center for Instructional Excellence | J137: 62010000 | K137: 62010000 - Center for Instructional Excellence | L137: U1 | M137: Undergraduate | N137: B0H - Vice Provost Teaching and Learning | O137: B0H | P137: 40001389 | Q137: Student Service - Proctor | R137: 20003261 | S137: Student (1) | T137: Non Staff | U137: Undergraduate Students | V137: Student | W137: ZA - Student Hourly | X137: Student | Y137: U005 | Z137: 7.25 | AA137: 9.28 | AB137: 11.3 | AC137: HOURLY | AD137: Bi-Weekly | AE137: Z1 | AF137: DUR - Temp/Student | AG137: NonEx-Student/Temp-Pos-Dur | AH137: Ad Hoc | AI137: AdHoc | AJ137: Y | AK137: N | AL137: N | AN137: 0 | AO137: 5 | AP137: Non-Essential Worker | AQ137: N | AU137: 26.93 | AV137: 2154.4 | AW137: 0 | AX137: 0 | AY137: 0 | AZ137: 0 | BA137: 0 | BB137: 0 | BC137: 0 | BD137: 0 | BF137: No differential | BG137: 0 | BL137: Active | BO137: N | BR137: N | BU137: 1 | BV137: 1 | BW137: 2025-04 | BX137: 2025-10 | BY137: 0 | BZ137: N | CA137: 0 | CB137: 0 | CD137: 0 | CE137: 0 | CG137: 0 | CH137: 0
A138: West Lafayette | B138: 4002 | C138: Vice Provost for Teaching & Le | D138: 4002 - Vice Provost for Teaching & Le | E138: 4002 - Vice Provost for Teaching & Le | F138: 4002 | G138: Data Processing | H138: 62010100 | I138: Center for Instructional Excellence | J138: 62010000 | K138: 62010000 - Center for Instructional Excellence | L138: U1 | M138: Undergraduate | N138: B0H - Vice Provost Teaching and Learning | O138: B0H | P138: 40001389 | Q138: Student Service - Proctor | R138: 20003261 | S138: Student (1) | T138: Non Staff | U138: Undergraduate Students | V138: Student | W138: ZA - Student Hourly | X138: Student | Y138: U005 | Z138: 7.25 | AA138: 9.28 | AB138: 11.3 | AC138: HOURLY | AD138: Bi-Weekly | AE138: Z1 | AF138: DUR - Temp/Student | AG138: NonEx-Student/Temp-Pos-Dur | AH138: Ad Hoc | AI138: AdHoc | AJ138: Y | AK138: N | AL138: N | AN138: 0 | AO138: 5 | AP138: Non-Essential Worker | AQ138: N | AU138: 26.93 | AV138: 2154.4 | AW138: 0 | AX138: 0 | AY138: 0 | AZ138: 0 | BA138: 0 | BB138: 0 | BC138: 0 | BD138: 0 | BF138: No differential | BG138: 0 | BL138: Active | BO138: N | BR138: N | BU138: 1 | BV138: 1 | BW138: 2025-04 | BX138: 2025-10 | BY138: 0 | BZ138: N | CA138: 0 | CB138: 0 | CD138: 0 | CE138: 0 | CG138: 0 | CH138: 0
A139: West Lafayette | B139: 4002 | C139: Vice Provost for Teaching & Le | D139: 4002 - Vice Provost for Teaching & Le | E139: 4002 - Vice Provost for Teaching & Le | F139: 4002 | G139: Data Processing | H139: 62010100 | I139: Center for Instructional Excellence | J139: 62010000 | K139: 62010000 - Center for Instructional Excellence | L139: U1 | M139: Undergraduate | N139: B0H - Vice Provost Teaching and Learning | O139: B0H | P139: 40001389 | Q139: Student Service - Proctor | R139: 20003261 | S139: Student (1) | T139: Non Staff | U139: Undergraduate Students | V139: Student | W139: ZA - Student Hourly | X139: Student | Y139: U005 | Z139: 7.25 | AA139: 9.28 | AB139: 11.3 | AC139: HOURLY | AD139: Bi-Weekly | AE139: Z1 | AF139: DUR - Temp/Student | AG139: NonEx-Student/Temp-Pos-Dur | AH139: Ad Hoc | AI139: AdHoc | AJ139: Y | AK139: Y | AL139: N | AN139: 0 | AO139: 5 | AP139: Non-Essential Worker | AQ139: N | AU139: 26.93 | AV139: 2154.4 | AW139: 0 | AX139: 0 | AY139: 0 | AZ139: 0 | BA139: 0 | BB139: 0 | BC139: 0 | BD139: 0 | BF139: No differential | BG139: 0 | BL139: Active | BO139: N | BR139: N | BU139: 1 | BV139: 1 | BW139: 2025-04 | BX139: 2025-10 | BY139: 0 | BZ139: N | CA139: 0 | CB139: 0 | CD139: 0 | CE139: 0 | CG139: 0 | CH139: 0
A140: West Lafayette | B140: 4002 | C140: Vice Provost for Teaching & Le | D140: 4002 - Vice Provost for Teaching & Le | E140: 4002 - Vice Provost for Teaching & Le | F140: 4002 | G140: Data Processing | H140: 62010100 | I140: Center for Instructional Excellence | J140: 62010000 | K140: 62010000 - Center for Instructional Excellence | L140: U1 | M140: Undergraduate | N140: B0H - Vice Provost Teaching and Learning | O140: B0H | P140: 40001389 | Q140: Student Service - Proctor | R140: 20003261 | S140: Student (1) | T140: Non Staff | U140: Undergraduate Students | V140: Student | W140: ZA - Student Hourly | X140: Student | Y140: U005 | Z140: 7.25 | AA140: 9.28 | AB140: 11.3 | AC140: HOURLY | AD140: Bi-Weekly | AE140: Z1 | AF140: DUR - Temp/Student | AG140: NonEx-Student/Temp-Pos-Dur | AH140: Ad Hoc | AI140: AdHoc | AJ140: Y | AK140: N | AL140: N | AN140: 0 | AO140: 3 | AP140: Non-Essential Worker | AQ140: N | AU140: 20 | AV140: 1600 | AW140: 0 | AX140: 0 | AY140: 0 | AZ140: 0 | BA140: 0 | BB140: 0 | BC140: 0 | BD140: 0 | BF140: No differential | BG140: 0 | BL140: Active | BO140: N | BR140: N | BU140: 1 | BV140: 1 | BW140: 2025-04 | BX140: 2025-10 | BY140: 0 | BZ140: N | CA140: 0 | CB140: 0 | CD140: 0 | CE140: 0 | CG140: 0 | CH140: 0
A141: West Lafayette | B141: 4002 | C141: Vice Provost for Teaching & Le | D141: 4002 - Vice Provost for Teaching & Le | E141: 4002 - Vice Provost for Teaching & Le | F141: 4002 | G141: Data Processing | H141: 62010100 | I141: Center for Instructional Excellence | J141: 62010000 | K141: 62010000 - Center for Instructional Excellence | L141: U1 | M141: Undergraduate | N141: B0H - Vice Provost Teaching and Learning | O141: B0H | P141: 40001389 | Q141: Student Service - Proctor | R141: 20003261 | S141: Student (1) | T141: Non Staff | U141: Undergraduate Students | V141: Student | W141: ZA - Student Hourly | X141: Student | Y141: U005 | Z141: 7.25 | AA141: 9.28 | AB141: 11.3 | AC141: HOURLY | AD141: Bi-Weekly | AE141: Z1 | AF141: DUR - Temp/Student | AG141: NonEx-Student/Temp-Pos-Dur | AH141: Ad Hoc | AI141: AdHoc | AJ141: Y | AK141: N | AL141: N | AN141: 0 | AO141: 3 | AP141: Non-Essential Worker | AQ141: N | AU141: 20 | AV141: 1600 | AW141: 0 | AX141: 0 | AY141: 0 | AZ141: 0 | BA141: 0 | BB141: 0 | BC141: 0 | BD141: 0 | BF141: No differential | BG141: 0 | BL141: Active | BO141: N | BR141: N | BU141: 1 | BV141: 1 | BW141: 2025-04 | BX141: 2025-10 | BY141: 0 | BZ141: N | CA141: 0 | CB141: 0 | CD141: 0 | CE141: 0 | CG141: 0 | CH141: 0
A142: West Lafayette | B142: 4002 | C142: Vice Provost for Teaching & Le | D142: 4002 - Vice Provost for Teaching & Le | E142: 4002 - Vice Provost for Teaching & Le | F142: 4002 | G142: Data Processing | H142: 62010100 | I142: Center for Instructional Excellence | J142: 62010000 | K142: 62010000 - Center for Instructional Excellence | L142: U1 | M142: Undergraduate | N142: B0H - Vice Provost Teaching and Learning | O142: B0H | P142: 40001389 | Q142: Student Service - Proctor | R142: 20003261 | S142: Student (1) | T142: Non Staff | U142: Undergraduate Students | V142: Student | W142: ZA - Student Hourly | X142: Student | Y142: U005 | Z142: 7.25 | AA142: 9.28 | AB142: 11.3 | AC142: HOURLY | AD142: Bi-Weekly | AE142: Z1 | AF142: DUR - Temp/Student | AG142: NonEx-Student/Temp-Pos-Dur | AH142: Ad Hoc | AI142: AdHoc | AJ142: Y | AK142: N | AL142: N | AN142: 0 | AO142: 3 | AP142: Non-Essential Worker | AQ142: N | AU142: 20 | AV142: 1600 | AW142: 0 | AX142: 0 | AY142: 0 | AZ142: 0 | BA142: 0 | BB142: 0 | BC142: 0 | BD142: 0 | BF142: No differential | BG142: 0 | BL142: Active | BO142: N | BR142: N | BU142: 1 | BV142: 1 | BW142: 2025-04 | BX142: 2025-10 | BY142: 0 | BZ142: N | CA142: 0 | CB142: 0 | CD142: 0 | CE142: 0 | CG142: 0 | CH142: 0
A143: West Lafayette | B143: 4002 | C143: Vice Provost for Teaching & Le | D143: 4002 - Vice Provost for Teaching & Le | E143: 4002 - Vice Provost for Teaching & Le | F143: 4002 | G143: Data Processing | H143: 62010100 | I143: Center for Instructional Excellence | J143: 62010000 | K143: 62010000 - Center for Instructional Excellence | L143: U1 | M143: Undergraduate | N143: B0H - Vice Provost Teaching and Learning | O143: B0H | P143: 40001389 | Q143: Student Service - Proctor | R143: 20003261 | S143: Student (1) | T143: Non Staff | U143: Undergraduate Students | V143: Student | W143: ZA - Student Hourly | X143: Student | Y143: U005 | Z143: 7.25 | AA143: 9.28 | AB143: 11.3 | AC143: HOURLY | AD143: Bi-Weekly | AE143: Z1 | AF143: DUR - Temp/Student | AG143: NonEx-Student/Temp-Pos-Dur | AH143: Ad Hoc | AI143: AdHoc | AJ143: Y | AK143: N | AL143: N | AN143: 0 | AO143: 3 | AP143: Non-Essential Worker | AQ143: N | AU143: 20 | AV143: 1600 | AW143: 0 | AX143: 0 | AY143: 0 | AZ143: 0 | BA143: 0 | BB143: 0 | BC143: 0 | BD143: 0 | BF143: No differential | BG143: 0 | BL143: Active | BO143: N | BR143: N | BU143: 1 | BV143: 1 | BW143: 2025-04 | BX143: 2025-10 | BY143: 0 | BZ143: N | CA143: 0 | CB143: 0 | CD143: 0 | CE143: 0 | CG143: 0 | CH143: 0
A144: West Lafayette | B144: 4002 | C144: Vice Provost for Teaching & Le | D144: 4002 - Vice Provost for Teaching & Le | E144: 4002 - Vice Provost for Teaching & Le | F144: 4002 | G144: Data Processing | H144: 62010100 | I144: Center for Instructional Excellence | J144: 62010000 | K144: 62010000 - Center for Instructional Excellence | L144: U1 | M144: Undergraduate | N144: B0H - Vice Provost Teaching and Learning | O144: B0H | P144: 40001389 | Q144: Student Service - Proctor | R144: 20003261 | S144: Student (1) | T144: Non Staff | U144: Undergraduate Students | V144: Student | W144: ZA - Student Hourly | X144: Student | Y144: U005 | Z144: 7.25 | AA144: 9.28 | AB144: 11.3 | AC144: HOURLY | AD144: Bi-Weekly | AE144: Z1 | AF144: DUR - Temp/Student | AG144: NonEx-Student/Temp-Pos-Dur | AH144: Ad Hoc | AI144: AdHoc | AJ144: Y | AK144: Y | AL144: N | AN144: 0 | AO144: 22 | AP144: Non-Essential Worker | AQ144: N | AU144: 26.93 | AV144: 2154.4 | AW144: 0 | AX144: 0 | AY144: 0 | AZ144: 0 | BA144: 0 | BB144: 0 | BC144: 0 | BD144: 0 | BF144: No differential | BG144: 0 | BL144: Active | BO144: N | BR144: N | BU144: 1 | BV144: 1 | BW144: 2025-04 | BX144: 2025-10 | BY144: 0 | BZ144: N | CA144: 0 | CB144: 0 | CD144: 0 | CE144: 0 | CG144: 0 | CH144: 0
A145: West Lafayette | B145: 4002 | C145: Vice Provost for Teaching & Le | D145: 4002 - Vice Provost for Teaching & Le | E145: 4002 - Vice Provost for Teaching & Le | F145: 4002 | G145: Data Processing | H145: 62010100 | I145: Center for Instructional Excellence | J145: 62010000 | K145: 62010000 - Center for Instructional Excellence | L145: U1 | M145: Undergraduate | N145: B0H - Vice Provost Teaching and Learning | O145: B0H | P145: 40001389 | Q145: Student Service - Proctor | R145: 20003261 | S145: Student (1) | T145: Non Staff | U145: Undergraduate Students | V145: Student | W145: ZA - Student Hourly | X145: Student | Y145: U005 | Z145: 7.25 | AA145: 9.28 | AB145: 11.3 | AC145: HOURLY | AD145: Bi-Weekly | AE145: Z1 | AF145: DUR - Temp/Student | AG145: NonEx-Student/Temp-Pos-Dur | AH145: Ad Hoc | AI145: AdHoc | AJ145: N | AK145: Y | AL145: N | AN145: 0 | AO145: 22 | AP145: Non-Essential Worker | AQ145: N | AU145: 26.93 | AV145: 2154.4 | AW145: 0 | AX145: 0 | AY145: 0 | AZ145: 0 | BA145: 0 | BB145: 0 | BC145: 0 | BD145: 0 | BF145: No differential | BG145: 0 | BL145: Active | BO145: N | BR145: N | BU145: 0 | BV145: 1 | BW145: 2025-04 | BX145: 2025-10 | BY145: 30000 | BZ145: N | CA145: 30000.1 | CB145: 0.5 | CC145: Part Time | CD145: 0 | CE145: 0 | CG145: 0 | CH145: 0
A146: West Lafayette | B146: 4002 | C146: Vice Provost for Teaching & Le | D146: 4002 - Vice Provost for Teaching & Le | E146: 4002 - Vice Provost for Teaching & Le | F146: 4002 | G146: Data Processing | H146: 62010100 | I146: Center for Instructional Excellence | J146: 62010000 | K146: 62010000 - Center for Instructional Excellence | L146: U1 | M146: Undergraduate | N146: B0H - Vice Provost Teaching and Learning | O146: B0H | P146: 40001389 | Q146: Student Service - Proctor | R146: 20003261 | S146: Student (1) | T146: Non Staff | U146: Undergraduate Students | V146: Student | W146: ZA - Student Hourly | X146: Student | Y146: U005 | Z146: 7.25 | AA146: 9.28 | AB146: 11.3 | AC146: HOURLY | AD146: Bi-Weekly | AE146: Z1 | AF146: DUR - Temp/Student | AG146: NonEx-Student/Temp-Pos-Dur | AH146: Ad Hoc | AI146: AdHoc | AJ146: N | AK146: Y | AL146: N | AN146: 0 | AO146: 15 | AP146: Non-Essential Worker | AQ146: N | AU146: 26.93 | AV146: 2154.4 | AW146: 0 | AX146: 0 | AY146: 0 | AZ146: 0 | BA146: 0 | BB146: 0 | BC146: 0 | BD146: 0 | BF146: No differential | BG146: 0 | BL146: Active | BO146: N | BR146: N | BU146: 0 | BV146: 1 | BW146: 2025-04 | BX146: 2025-10 | BY146: 0 | BZ146: N | CA146: 0 | CB146: 0 | CD146: 0 | CE146: 0 | CG146: 0 | CH146: 0
A147: West Lafayette | B147: 4002 | C147: Vice Provost for Teaching & Le | D147: 4002 - Vice Provost for Teaching & Le | E147: 4002 - Vice Provost for Teaching & Le | F147: 4002 | G147: Data Processing | H147: 62010100 | I147: Center for Instructional Excellence | J147: 62010000 | K147: 62010000 - Center for Instructional Excellence | L147: U1 | M147: Undergraduate | N147: B0H - Vice Provost Teaching and Learning | O147: B0H | P147: 40001389 | Q147: Student Service - Proctor | R147: 20003261 | S147: Student (1) | T147: Non Staff | U147: Undergraduate Students | V147: Student | W147: ZA - Student Hourly | X147: Student | Y147: U005 | Z147: 7.25 | AA147: 9.28 | AB147: 11.3 | AC147: HOURLY | AD147: Bi-Weekly | AE147: Z1 | AF147: DUR - Temp/Student | AG147: NonEx-Student/Temp-Pos-Dur | AH147: Ad Hoc | AI147: AdHoc | AJ147: Y | AK147: N | AL147: N | AN147: 0 | AO147: 3 | AP147: Non-Essential Worker | AQ147: N | AU147: 26.93 | AV147: 2154.4 | AW147: 0 | AX147: 0 | AY147: 0 | AZ147: 0 | BA147: 0 | BB147: 0 | BC147: 0 | BD147: 0 | BF147: No differential | BG147: 0 | BL147: Active | BO147: N | BR147: N | BU147: 1 | BV147: 1 | BW147: 2025-04 | BX147: 2025-10 | BY147: 0 | BZ147: N | CA147: 0 | CB147: 0 | CD147: 0 | CE147: 0 | CG147: 0 | CH147: 0
A148: West Lafayette | B148: 4002 | C148: Vice Provost for Teaching & Le | D148: 4002 - Vice Provost for Teaching & Le | E148: 4002 - Vice Provost for Teaching & Le | F148: 4002 | G148: Data Processing | H148: 62010100 | I148: Center for Instructional Excellence | J148: 62010000 | K148: 62010000 - Center for Instructional Excellence | L148: U1 | M148: Undergraduate | N148: B0H - Vice Provost Teaching and Learning | O148: B0H | P148: 40001389 | Q148: Student Service - Proctor | R148: 20003261 | S148: Student (1) | T148: Non Staff | U148: Undergraduate Students | V148: Student | W148: ZA - Student Hourly | X148: Student | Y148: U005 | Z148: 7.25 | AA148: 9.28 | AB148: 11.3 | AC148: HOURLY | AD148: Bi-Weekly | AE148: Z1 | AF148: DUR - Temp/Student | AG148: NonEx-Student/Temp-Pos-Dur | AH148: Ad Hoc | AI148: AdHoc | AJ148: Y | AK148: N | AL148: N | AN148: 0 | AO148: 5 | AP148: Non-Essential Worker | AQ148: N | AU148: 26.93 | AV148: 2154.4 | AW148: 0 | AX148: 0 | AY148: 0 | AZ148: 0 | BA148: 0 | BB148: 0 | BC148: 0 | BD148: 0 | BF148: No differential | BG148: 0 | BL148: Active | BO148: N | BR148: N | BU148: 1 | BV148: 1 | BW148: 2025-04 | BX148: 2025-10 | BY148: 0 | BZ148: N | CA148: 0 | CB148: 0 | CD148: 0 | CE148: 0 | CG148: 0 | CH148: 0
A149: West Lafayette | B149: 4002 | C149: Vice Provost for Teaching & Le | D149: 4002 - Vice Provost for Teaching & Le | E149: 4002 - Vice Provost for Teaching & Le | F149: 4002 | G149: Data Processing | H149: 62010100 | I149: Center for Instructional Excellence | J149: 62010000 | K149: 62010000 - Center for Instructional Excellence | L149: U1 | M149: Undergraduate | N149: B0H - Vice Provost Teaching and Learning | O149: B0H | P149: 40001389 | Q149: Student Service - Proctor | R149: 20003261 | S149: Student (1) | T149: Non Staff | U149: Undergraduate Students | V149: Student | W149: ZA - Student Hourly | X149: Student | Y149: U005 | Z149: 7.25 | AA149: 9.28 | AB149: 11.3 | AC149: HOURLY | AD149: Bi-Weekly | AE149: Z1 | AF149: DUR - Temp/Student | AG149: NonEx-Student/Temp-Pos-Dur | AH149: Ad Hoc | AI149: AdHoc | AJ149: Y | AK149: N | AL149: N | AN149: 0 | AO149: 5 | AP149: Non-Essential Worker | AQ149: N | AU149: 26.93 | AV149: 2154.4 | AW149: 0 | AX149: 0 | AY149: 0 | AZ149: 0 | BA149: 0 | BB149: 0 | BC149: 0 | BD149: 0 | BF149: No differential | BG149: 0 | BL149: Active | BO149: N | BR149: N | BU149: 1 | BV149: 1 | BW149: 2025-04 | BX149: 2025-10 | BY149: 0 | BZ149: N | CA149: 0 | CB149: 0 | CD149: 0 | CE149: 0 | CG149: 0 | CH149: 0
A150: West Lafayette | B150: 4002 | C150: Vice Provost for Teaching & Le | D150: 4002 - Vice Provost for Teaching & Le | E150: 4002 - Vice Provost for Teaching & Le | F150: 4002 | G150: Data Processing | H150: 62010100 | I150: Center for Instructional Excellence | J150: 62010000 | K150: 62010000 - Center for Instructional Excellence | L150: U1 | M150: Undergraduate | N150: B0H - Vice Provost Teaching and Learning | O150: B0H | P150: 40001389 | Q150: Student Service - Proctor | R150: 20003261 | S150: Student (1) | T150: Non Staff | U150: Undergraduate Students | V150: Student | W150: ZA - Student Hourly | X150: Student | Y150: U005 | Z150: 7.25 | AA150: 9.28 | AB150: 11.3 | AC150: HOURLY | AD150: Bi-Weekly | AE150: Z1 | AF150: DUR - Temp/Student | AG150: NonEx-Student/Temp-Pos-Dur | AH150: Ad Hoc | AI150: AdHoc | AJ150: N | AK150: Y | AL150: N | AN150: 0 | AO150: 8 | AP150: Non-Essential Worker | AQ150: N | AU150: 26.93 | AV150: 2154.4 | AW150: 0 | AX150: 0 | AY150: 0 | AZ150: 0 | BA150: 0 | BB150: 0 | BC150: 0 | BD150: 0 | BF150: No differential | BG150: 0 | BL150: Active | BO150: N | BR150: N | BU150: 0 | BV150: 1 | BW150: 2025-04 | BX150: 2025-10 | BY150: 0 | BZ150: N | CA150: 0 | CB150: 0 | CD150: 0 | CE150: 0 | CG150: 0 | CH150: 0
A151: West Lafayette | B151: 4002 | C151: Vice Provost for Teaching & Le | D151: 4002 - Vice Provost for Teaching & Le | E151: 4002 - Vice Provost for Teaching & Le | F151: 4002 | G151: Data Processing | H151: 62010100 | I151: Center for Instructional Excellence | J151: 62010000 | K151: 62010000 - Center for Instructional Excellence | L151: U1 | M151: Undergraduate | N151: B0H - Vice Provost Teaching and Learning | O151: B0H | P151: 40001389 | Q151: Student Service - Proctor | R151: 20003261 | S151: Student (1) | T151: Non Staff | U151: Undergraduate Students | V151: Student | W151: ZA - Student Hourly | X151: Student | Y151: U005 | Z151: 7.25 | AA151: 9.28 | AB151: 11.3 | AC151: HOURLY | AD151: Bi-Weekly | AE151: Z1 | AF151: DUR - Temp/Student | AG151: NonEx-Student/Temp-Pos-Dur | AH151: Ad Hoc | AI151: AdHoc | AJ151: Y | AK151: Y | AL151: N | AN151: 0 | AO151: 10 | AP151: Non-Essential Worker | AQ151: N | AU151: 26.93 | AV151: 2154.4 | AW151: 0 | AX151: 0 | AY151: 0 | AZ151: 0 | BA151: 0 | BB151: 0 | BC151: 0 | BD151: 0 | BF151: No differential | BG151: 0 | BL151: Active | BO151: N | BR151: N | BU151: 1 | BV151: 1 | BW151: 2025-04 | BX151: 2025-10 | BY151: 0 | BZ151: N | CA151: 0 | CB151: 0 | CD151: 0 | CE151: 0 | CG151: 0 | CH151: 0
A152: West Lafayette | B152: 4002 | C152: Vice Provost for Teaching & Le | D152: 4002 - Vice Provost for Teaching & Le | E152: 4002 - Vice Provost for Teaching & Le | F152: 4002 | G152: Data Processing | H152: 62010100 | I152: Center for Instructional Excellence | J152: 62010000 | K152: 62010000 - Center for Instructional Excellence | L152: U1 | M152: Undergraduate | N152: B0H - Vice Provost Teaching and Learning | O152: B0H | P152: 40001389 | Q152: Student Service - Proctor | R152: 20003261 | S152: Student (1) | T152: Non Staff | U152: Undergraduate Students | V152: Student | W152: ZA - Student Hourly | X152: Student | Y152: U005 | Z152: 7.25 | AA152: 9.28 | AB152: 11.3 | AC152: HOURLY | AD152: Bi-Weekly | AE152: Z1 | AF152: DUR - Temp/Student | AG152: NonEx-Student/Temp-Pos-Dur | AH152: Ad Hoc | AI152: AdHoc | AJ152: N | AK152: Y | AL152: N | AN152: 0 | AO152: 10 | AP152: Non-Essential Worker | AQ152: N | AU152: 26.93 | AV152: 2154.4 | AW152: 0 | AX152: 0 | AY152: 0 | AZ152: 0 | BA152: 0 | BB152: 0 | BC152: 0 | BD152: 0 | BF152: No differential | BG152: 0 | BL152: Active | BO152: N | BR152: N | BU152: 0 | BV152: 1 | BW152: 2025-04 | BX152: 2025-10 | BY152: 0 | BZ152: N | CA152: 0 | CB152: 0 | CD152: 0 | CE152: 0 | CG152: 0 | CH152: 0
A153: West Lafayette | B153: 4002 | C153: Vice Provost for Teaching & Le | D153: 4002 - Vice Provost for Teaching & Le | E153: 4002 - Vice Provost for Teaching & Le | F153: 4002 | G153: Data Processing | H153: 62010100 | I153: Center for Instructional Excellence | J153: 62010000 | K153: 62010000 - Center for Instructional Excellence | L153: U1 | M153: Undergraduate | N153: B0H - Vice Provost Teaching and Learning | O153: B0H | P153: 40001389 | Q153: Student Service - Proctor | R153: 20003261 | S153: Student (1) | T153: Non Staff | U153: Undergraduate Students | V153: Student | W153: ZA - Student Hourly | X153: Student | Y153: U005 | Z153: 7.25 | AA153: 9.28 | AB153: 11.3 | AC153: HOURLY | AD153: Bi-Weekly | AE153: Z1 | AF153: DUR - Temp/Student | AG153: NonEx-Student/Temp-Pos-Dur | AH153: Ad Hoc | AI153: AdHoc | AJ153: Y | AK153: Y | AL153: N | AN153: 0 | AO153: 8 | AP153: Non-Essential Worker | AQ153: N | AU153: 26.93 | AV153: 2154.4 | AW153: 0 | AX153: 0 | AY153: 0 | AZ153: 0 | BA153: 0 | BB153: 0 | BC153: 0 | BD153: 0 | BF153: No differential | BG153: 0 | BL153: Active | BO153: N | BR153: N | BU153: 1 | BV153: 1 | BW153: 2025-04 | BX153: 2025-10 | BY153: 0 | BZ153: N | CA153: 0 | CB153: 0 | CD153: 0 | CE153: 0 | CG153: 0 | CH153: 0
A154: West Lafayette | B154: 4002 | C154: Vice Provost for Teaching & Le | D154: 4002 - Vice Provost for Teaching & Le | E154: 4002 - Vice Provost for Teaching & Le | F154: 4002 | G154: Data Processing | H154: 62010100 | I154: Center for Instructional Excellence | J154: 62010000 | K154: 62010000 - Center for Instructional Excellence | L154: U1 | M154: Undergraduate | N154: B0H - Vice Provost Teaching and Learning | O154: B0H | P154: 40001389 | Q154: Student Service - Proctor | R154: 20003261 | S154: Student (1) | T154: Non Staff | U154: Undergraduate Students | V154: Student | W154: ZA - Student Hourly | X154: Student | Y154: U005 | Z154: 7.25 | AA154: 9.28 | AB154: 11.3 | AC154: HOURLY | AD154: Bi-Weekly | AE154: Z1 | AF154: DUR - Temp/Student | AG154: NonEx-Student/Temp-Pos-Dur | AH154: Ad Hoc | AI154: AdHoc | AJ154: N | AK154: Y | AL154: N | AN154: 0 | AO154: 10 | AP154: Non-Essential Worker | AQ154: N | AU154: 26.93 | AV154: 2154.4 | AW154: 0 | AX154: 0 | AY154: 0 | AZ154: 0 | BA154: 0 | BB154: 0 | BC154: 0 | BD154: 0 | BF154: No differential | BG154: 0 | BL154: Active | BO154: N | BR154: N | BU154: 0 | BV154: 1 | BW154: 2025-04 | BX154: 2025-10 | BY154: 0 | BZ154: N | CA154: 0 | CB154: 0 | CD154: 0 | CE154: 0 | CG154: 0 | CH154: 0
A155: West Lafayette | B155: 4002 | C155: Vice Provost for Teaching & Le | D155: 4002 - Vice Provost for Teaching & Le | E155: 4002 - Vice Provost for Teaching & Le | F155: 4002 | G155: Data Processing | H155: 62010100 | I155: Center for Instructional Excellence | J155: 62010000 | K155: 62010000 - Center for Instructional Excellence | L155: U1 | M155: Undergraduate | N155: B0H - Vice Provost Teaching and Learning | O155: B0H | P155: 40001389 | Q155: Student Service - Proctor | R155: 20003261 | S155: Student (1) | T155: Non Staff | U155: Undergraduate Students | V155: Student | W155: ZA - Student Hourly | X155: Student | Y155: U005 | Z155: 7.25 | AA155: 9.28 | AB155: 11.3 | AC155: HOURLY | AD155: Bi-Weekly | AE155: Z1 | AF155: DUR - Temp/Student | AG155: NonEx-Student/Temp-Pos-Dur | AH155: Ad Hoc | AI155: AdHoc | AJ155: N | AK155: Y | AL155: N | AN155: 0 | AO155: 10 | AP155: Non-Essential Worker | AQ155: N | AU155: 26.93 | AV155: 2154.4 | AW155: 0 | AX155: 0 | AY155: 0 | AZ155: 0 | BA155: 0 | BB155: 0 | BC155: 0 | BD155: 0 | BF155: No differential | BG155: 0 | BL155: Active | BO155: N | BR155: N | BU155: 0 | BV155: 1 | BW155: 2025-04 | BX155: 2025-10 | BY155: 0 | BZ155: N | CA155: 0 | CB155: 0 | CD155: 0 | CE155: 0 | CG155: 0 | CH155: 0
A156: West Lafayette | B156: 4002 | C156: Vice Provost for Teaching & Le | D156: 4002 - Vice Provost for Teaching & Le | E156: 4002 - Vice Provost for Teaching & Le | F156: 4002 | G156: Data Processing | H156: 62010100 | I156: Center for Instructional Excellence | J156: 62010000 | K156: 62010000 - Center for Instructional Excellence | L156: U1 | M156: Undergraduate | N156: B0H - Vice Provost Teaching and Learning | O156: B0H | P156: 40001389 | Q156: Student Service - Proctor | R156: 20003261 | S156: Student (1) | T156: Non Staff | U156: Undergraduate Students | V156: Student | W156: ZA - Student Hourly | X156: Student | Y156: U005 | Z156: 7.25 | AA156: 9.28 | AB156: 11.3 | AC156: HOURLY | AD156: Bi-Weekly | AE156: Z1 | AF156: DUR - Temp/Student | AG156: NonEx-Student/Temp-Pos-Dur | AH156: Ad Hoc | AI156: AdHoc | AJ156: N | AK156: Y | AL156: N | AN156: 0 | AO156: 8 | AP156: Non-Essential Worker | AQ156: N | AU156: 26.93 | AV156: 2154.4 | AW156: 0 | AX156: 0 | AY156: 0 | AZ156: 0 | BA156: 0 | BB156: 0 | BC156: 0 | BD156: 0 | BF156: No differential | BG156: 0 | BL156: Active | BO156: N | BR156: N | BU156: 0 | BV156: 1 | BW156: 2025-04 | BX156: 2025-10 | BY156: 0 | BZ156: N | CA156: 0 | CB156: 0 | CD156: 0 | CE156: 0 | CG156: 0 | CH156: 0
A157: West Lafayette | B157: 4002 | C157: Vice Provost for Teaching & Le | D157: 4002 - Vice Provost for Teaching & Le | E157: 4002 - Vice Provost for Teaching & Le | F157: 4002 | G157: Data Processing | H157: 62010100 | I157: Center for Instructional Excellence | J157: 62010000 | K157: 62010000 - Center for Instructional Excellence | L157: U1 | M157: Undergraduate | N157: B0H - Vice Provost Teaching and Learning | O157: B0H | P157: 40001389 | Q157: Student Service - Proctor | R157: 20003261 | S157: Student (1) | T157: Non Staff | U157: Undergraduate Students | V157: Student | W157: ZA - Student Hourly | X157: Student | Y157: U005 | Z157: 7.25 | AA157: 9.28 | AB157: 11.3 | AC157: HOURLY | AD157: Bi-Weekly | AE157: Z1 | AF157: DUR - Temp/Student | AG157: NonEx-Student/Temp-Pos-Dur | AH157: Ad Hoc | AI157: AdHoc | AJ157: N | AK157: Y | AL157: N | AN157: 0 | AO157: 8 | AP157: Non-Essential Worker | AQ157: N | AU157: 26.93 | AV157: 2154.4 | AW157: 0 | AX157: 0 | AY157: 0 | AZ157: 0 | BA157: 0 | BB157: 0 | BC157: 0 | BD157: 0 | BF157: No differential | BG157: 0 | BL157: Active | BO157: N | BR157: N | BU157: 0 | BV157: 1 | BW157: 2025-04 | BX157: 2025-10 | BY157: 0 | BZ157: N | CA157: 0 | CB157: 0 | CD157: 0 | CE157: 0 | CG157: 0 | CH157: 0
A158: West Lafayette | B158: 4002 | C158: Vice Provost for Teaching & Le | D158: 4002 - Vice Provost for Teaching & Le | E158: 4002 - Vice Provost for Teaching & Le | F158: 4002 | G158: Data Processing | H158: 62010100 | I158: Center for Instructional Excellence | J158: 62010000 | K158: 62010000 - Center for Instructional Excellence | L158: U1 | M158: Undergraduate | N158: B0H - Vice Provost Teaching and Learning | O158: B0H | P158: 40001389 | Q158: Student Service - Proctor | R158: 20003261 | S158: Student (1) | T158: Non Staff | U158: Undergraduate Students | V158: Student | W158: ZA - Student Hourly | X158: Student | Y158: U005 | Z158: 7.25 | AA158: 9.28 | AB158: 11.3 | AC158: HOURLY | AD158: Bi-Weekly | AE158: Z1 | AF158: DUR - Temp/Student | AG158: NonEx-Student/Temp-Pos-Dur | AH158: Ad Hoc | AI158: AdHoc | AJ158: N | AK158: Y | AL158: N | AN158: 0 | AO158: 8 | AP158: Non-Essential Worker | AQ158: N | AU158: 26.93 | AV158: 2154.4 | AW158: 0 | AX158: 0 | AY158: 0 | AZ158: 0 | BA158: 0 | BB158: 0 | BC158: 0 | BD158: 0 | BF158: No differential | BG158: 0 | BL158: Active | BO158: N | BR158: N | BU158: 0 | BV158: 1 | BW158: 2025-04 | BX158: 2025-10 | BY158: 0 | BZ158: N | CA158: 0 | CB158: 0 | CD158: 0 | CE158: 0 | CG158: 0 | CH158: 0
A159: West Lafayette | B159: 4002 | C159: Vice Provost for Teaching & Le | D159: 4002 - Vice Provost for Teaching & Le | E159: 4002 - Vice Provost for Teaching & Le | F159: 4002 | G159: Data Processing | H159: 62010100 | I159: Center for Instructional Excellence | J159: 62010000 | K159: 62010000 - Center for Instructional Excellence | L159: U1 | M159: Undergraduate | N159: B0H - Vice Provost Teaching and Learning | O159: B0H | P159: 40001389 | Q159: Student Service - Proctor | R159: 20003261 | S159: Student (1) | T159: Non Staff | U159: Undergraduate Students | V159: Student | W159: ZA - Student Hourly | X159: Student | Y159: U005 | Z159: 7.25 | AA159: 9.28 | AB159: 11.3 | AC159: HOURLY | AD159: Bi-Weekly | AE159: Z1 | AF159: DUR - Temp/Student | AG159: NonEx-Student/Temp-Pos-Dur | AH159: Ad Hoc | AI159: AdHoc | AJ159: N | AK159: Y | AL159: N | AN159: 0 | AO159: 10 | AP159: Non-Essential Worker | AQ159: N | AU159: 26.93 | AV159: 2154.4 | AW159: 0 | AX159: 0 | AY159: 0 | AZ159: 0 | BA159: 0 | BB159: 0 | BC159: 0 | BD159: 0 | BF159: No differential | BG159: 0 | BL159: Active | BO159: N | BR159: N | BU159: 0 | BV159: 1 | BW159: 2025-04 | BX159: 2025-10 | BY159: 22000 | BZ159: N | CA159: 22000.1 | CB159: 0.5 | CC159: Part Time | CD159: 0 | CE159: 0 | CG159: 0 | CH159: 0
A160: West Lafayette | B160: 4002 | C160: Vice Provost for Teaching & Le | D160: 4002 - Vice Provost for Teaching & Le | E160: 4002 - Vice Provost for Teaching & Le | F160: 4002 | G160: Data Processing | H160: 62010100 | I160: Center for Instructional Excellence | J160: 62010000 | K160: 62010000 - Center for Instructional Excellence | L160: U1 | M160: Undergraduate | N160: B0H - Vice Provost Teaching and Learning | O160: B0H | P160: 40001389 | Q160: Student Service - Proctor | R160: 20003261 | S160: Student (1) | T160: Non Staff | U160: Undergraduate Students | V160: Student | W160: ZA - Student Hourly | X160: Student | Y160: U005 | Z160: 7.25 | AA160: 9.28 | AB160: 11.3 | AC160: HOURLY | AD160: Bi-Weekly | AE160: Z1 | AF160: DUR - Temp/Student | AG160: NonEx-Student/Temp-Pos-Dur | AH160: Ad Hoc | AI160: AdHoc | AJ160: N | AK160: Y | AL160: N | AN160: 0 | AO160: 7 | AP160: Non-Essential Worker | AQ160: N | AU160: 26.93 | AV160: 2154.4 | AW160: 0 | AX160: 0 | AY160: 0 | AZ160: 0 | BA160: 0 | BB160: 0 | BC160: 0 | BD160: 0 | BF160: No differential | BG160: 0 | BL160: Active | BO160: N | BR160: N | BU160: 0 | BV160: 1 | BW160: 2025-04 | BX160: 2025-10 | BY160: 0 | BZ160: N | CA160: 0 | CB160: 0 | CD160: 0 | CE160: 0 | CG160: 0 | CH160: 0
A161: West Lafayette | B161: 4002 | C161: Vice Provost for Teaching & Le | D161: 4002 - Vice Provost for Teaching & Le | E161: 4002 - Vice Provost for Teaching & Le | F161: 4002 | G161: Data Processing | H161: 62010100 | I161: Center for Instructional Excellence | J161: 62010000 | K161: 62010000 - Center for Instructional Excellence | L161: U1 | M161: Undergraduate | N161: B0H - Vice Provost Teaching and Learning | O161: B0H | P161: 40001389 | Q161: Student Service - Proctor | R161: 20003261 | S161: Student (1) | T161: Non Staff | U161: Undergraduate Students | V161: Student | W161: ZA - Student Hourly | X161: Student | Y161: U005 | Z161: 7.25 | AA161: 9.28 | AB161: 11.3 | AC161: HOURLY | AD161: Bi-Weekly | AE161: Z1 | AF161: DUR - Temp/Student | AG161: NonEx-Student/Temp-Pos-Dur | AH161: Ad Hoc | AI161: AdHoc | AJ161: N | AK161: Y | AL161: N | AN161: 0 | AO161: 7 | AP161: Non-Essential Worker | AQ161: N | AU161: 26.93 | AV161: 2154.4 | AW161: 0 | AX161: 0 | AY161: 0 | AZ161: 0 | BA161: 0 | BB161: 0 | BC161: 0 | BD161: 0 | BF161: No differential | BG161: 0 | BL161: Active | BO161: N | BR161: N | BU161: 0 | BV161: 1 | BW161: 2025-04 | BX161: 2025-10 | BY161: 0 | BZ161: N | CA161: 0 | CB161: 0 | CD161: 0 | CE161: 0 | CG161: 0 | CH161: 0
A162: West Lafayette | B162: 4002 | C162: Vice Provost for Teaching & Le | D162: 4002 - Vice Provost for Teaching & Le | E162: 4002 - Vice Provost for Teaching & Le | F162: 4002 | G162: Data Processing | H162: 62010100 | I162: Center for Instructional Excellence | J162: 62010000 | K162: 62010000 - Center for Instructional Excellence | L162: U1 | M162: Undergraduate | N162: B0H - Vice Provost Teaching and Learning | O162: B0H | P162: 40001389 | Q162: Student Service - Proctor | R162: 20003261 | S162: Student (1) | T162: Non Staff | U162: Undergraduate Students | V162: Student | W162: ZA - Student Hourly | X162: Student | Y162: U005 | Z162: 7.25 | AA162: 9.28 | AB162: 11.3 | AC162: HOURLY | AD162: Bi-Weekly | AE162: Z1 | AF162: DUR - Temp/Student | AG162: NonEx-Student/Temp-Pos-Dur | AH162: Ad Hoc | AI162: AdHoc | AJ162: Y | AK162: Y | AL162: N | AN162: 0 | AO162: 10 | AP162: Non-Essential Worker | AQ162: N | AU162: 26.93 | AV162: 2154.4 | AW162: 0 | AX162: 0 | AY162: 0 | AZ162: 0 | BA162: 0 | BB162: 0 | BC162: 0 | BD162: 0 | BF162: No differential | BG162: 0 | BL162: Active | BO162: N | BR162: N | BU162: 1 | BV162: 1 | BW162: 2025-04 | BX162: 2025-10 | BY162: 0 | BZ162: N | CA162: 0 | CB162: 0 | CD162: 0 | CE162: 0 | CG162: 0 | CH162: 0
A163: West Lafayette | B163: 4002 | C163: Vice Provost for Teaching & Le | D163: 4002 - Vice Provost for Teaching & Le | E163: 4002 - Vice Provost for Teaching & Le | F163: 4002 | G163: Data Processing | H163: 62010100 | I163: Center for Instructional Excellence | J163: 62010000 | K163: 62010000 - Center for Instructional Excellence | L163: U1 | M163: Undergraduate | N163: B0H - Vice Provost Teaching and Learning | O163: B0H | P163: 40001389 | Q163: Student Service - Proctor | R163: 20003261 | S163: Student (1) | T163: Non Staff | U163: Undergraduate Students | V163: Student | W163: ZA - Student Hourly | X163: Student | Y163: U005 | Z163: 7.25 | AA163: 9.28 | AB163: 11.3 | AC163: HOURLY | AD163: Bi-Weekly | AE163: Z1 | AF163: DUR - Temp/Student | AG163: NonEx-Student/Temp-Pos-Dur | AH163: Ad Hoc | AI163: AdHoc | AJ163: N | AK163: Y | AL163: N | AN163: 0 | AO163: 10 | AP163: Non-Essential Worker | AQ163: N | AU163: 26.93 | AV163: 2154.4 | AW163: 0 | AX163: 0 | AY163: 0 | AZ163: 0 | BA163: 0 | BB163: 0 | BC163: 0 | BD163: 0 | BF163: No differential | BG163: 0 | BL163: Active | BO163: N | BR163: N | BU163: 0 | BV163: 1 | BW163: 2025-04 | BX163: 2025-10 | BY163: 0 | BZ163: N | CA163: 0 | CB163: 0 | CD163: 0 | CE163: 0 | CG163: 0 | CH163: 0
A164: West Lafayette | B164: 4002 | C164: Vice Provost for Teaching & Le | D164: 4002 - Vice Provost for Teaching & Le | E164: 4002 - Vice Provost for Teaching & Le | F164: 4002 | G164: Data Processing | H164: 62010100 | I164: Center for Instructional Excellence | J164: 62010000 | K164: 62010000 - Center for Instructional Excellence | L164: U1 | M164: Undergraduate | N164: B0H - Vice Provost Teaching and Learning | O164: B0H | P164: 40001389 | Q164: Student Service - Proctor | R164: 20003261 | S164: Student (1) | T164: Non Staff | U164: Undergraduate Students | V164: Student | W164: ZA - Student Hourly | X164: Student | Y164: U005 | Z164: 7.25 | AA164: 9.28 | AB164: 11.3 | AC164: HOURLY | AD164: Bi-Weekly | AE164: Z1 | AF164: DUR - Temp/Student | AG164: NonEx-Student/Temp-Pos-Dur | AH164: Ad Hoc | AI164: AdHoc | AJ164: N | AK164: Y | AL164: N | AN164: 0 | AO164: 10 | AP164: Non-Essential Worker | AQ164: N | AU164: 26.93 | AV164: 2154.4 | AW164: 0 | AX164: 0 | AY164: 0 | AZ164: 0 | BA164: 0 | BB164: 0 | BC164: 0 | BD164: 0 | BF164: No differential | BG164: 0 | BL164: Active | BO164: N | BR164: N | BU164: 0 | BV164: 1 | BW164: 2025-04 | BX164: 2025-10 | BY164: 0 | BZ164: N | CA164: 0 | CB164: 0 | CD164: 0 | CE164: 0 | CG164: 0 | CH164: 0
A165: West Lafayette | B165: 4002 | C165: Vice Provost for Teaching & Le | D165: 4002 - Vice Provost for Teaching & Le | E165: 4002 - Vice Provost for Teaching & Le | F165: 4002 | G165: Data Processing | H165: 62010100 | I165: Center for Instructional Excellence | J165: 62010000 | K165: 62010000 - Center for Instructional Excellence | L165: U1 | M165: Undergraduate | N165: B0H - Vice Provost Teaching and Learning | O165: B0H | P165: 40001389 | Q165: Student Service - Proctor | R165: 20003261 | S165: Student (1) | T165: Non Staff | U165: Undergraduate Students | V165: Student | W165: ZA - Student Hourly | X165: Student | Y165: U005 | Z165: 7.25 | AA165: 9.28 | AB165: 11.3 | AC165: HOURLY | AD165: Bi-Weekly | AE165: Z1 | AF165: DUR - Temp/Student | AG165: NonEx-Student/Temp-Pos-Dur | AH165: Ad Hoc | AI165: AdHoc | AJ165: N | AK165: Y | AL165: N | AN165: 0 | AO165: 9 | AP165: Non-Essential Worker | AQ165: N | AU165: 26.93 | AV165: 2154.4 | AW165: 0 | AX165: 0 | AY165: 0 | AZ165: 0 | BA165: 0 | BB165: 0 | BC165: 0 | BD165: 0 | BF165: No differential | BG165: 0 | BL165: Active | BO165: N | BR165: N | BU165: 0 | BV165: 1 | BW165: 2025-04 | BX165: 2025-10 | BY165: 0 | BZ165: N | CA165: 0 | CB165: 0 | CD165: 0 | CE165: 0 | CG165: 0 | CH165: 0
A166: West Lafayette | B166: 4002 | C166: Vice Provost for Teaching & Le | D166: 4002 - Vice Provost for Teaching & Le | E166: 4002 - Vice Provost for Teaching & Le | F166: 4002 | G166: Data Processing | H166: 62010100 | I166: Center for Instructional Excellence | J166: 62010000 | K166: 62010000 - Center for Instructional Excellence | L166: U1 | M166: Undergraduate | N166: B0H - Vice Provost Teaching and Learning | O166: B0H | P166: 40001389 | Q166: Student Service - Proctor | R166: 20003261 | S166: Student (1) | T166: Non Staff | U166: Undergraduate Students | V166: Student | W166: ZA - Student Hourly | X166: Student | Y166: U005 | Z166: 7.25 | AA166: 9.28 | AB166: 11.3 | AC166: HOURLY | AD166: Bi-Weekly | AE166: Z1 | AF166: DUR - Temp/Student | AG166: NonEx-Student/Temp-Pos-Dur | AH166: Ad Hoc | AI166: AdHoc | AJ166: Y | AK166: Y | AL166: N | AN166: 0 | AO166: 9 | AP166: Non-Essential Worker | AQ166: N | AU166: 26.93 | AV166: 2154.4 | AW166: 0 | AX166: 0 | AY166: 0 | AZ166: 0 | BA166: 0 | BB166: 0 | BC166: 0 | BD166: 0 | BF166: No differential | BG166: 0 | BL166: Active | BO166: N | BR166: N | BU166: 1 | BV166: 1 | BW166: 2025-04 | BX166: 2025-10 | BY166: 0 | BZ166: N | CA166: 0 | CB166: 0 | CD166: 0 | CE166: 0 | CG166: 0 | CH166: 0
A167: West Lafayette | B167: 4002 | C167: Vice Provost for Teaching & Le | D167: 4002 - Vice Provost for Teaching & Le | E167: 4002 - Vice Provost for Teaching & Le | F167: 4002 | G167: Data Processing | H167: 62010100 | I167: Center for Instructional Excellence | J167: 62010000 | K167: 62010000 - Center for Instructional Excellence | L167: U1 | M167: Undergraduate | N167: B0H - Vice Provost Teaching and Learning | O167: B0H | P167: 40001389 | Q167: Student Service - Proctor | R167: 20003261 | S167: Student (1) | T167: Non Staff | U167: Undergraduate Students | V167: Student | W167: ZA - Student Hourly | X167: Student | Y167: U005 | Z167: 7.25 | AA167: 9.28 | AB167: 11.3 | AC167: HOURLY | AD167: Bi-Weekly | AE167: Z1 | AF167: DUR - Temp/Student | AG167: NonEx-Student/Temp-Pos-Dur | AH167: Ad Hoc | AI167: AdHoc | AJ167: Y | AK167: N | AL167: N | AN167: 0 | AO167: 5 | AP167: Non-Essential Worker | AQ167: N | AU167: 26.93 | AV167: 2154.4 | AW167: 0 | AX167: 0 | AY167: 0 | AZ167: 0 | BA167: 0 | BB167: 0 | BC167: 0 | BD167: 0 | BF167: No differential | BG167: 0 | BL167: Active | BO167: N | BR167: N | BU167: 1 | BV167: 1 | BW167: 2025-04 | BX167: 2025-10 | BY167: 0 | BZ167: N | CA167: 0 | CB167: 0 | CD167: 0 | CE167: 0 | CG167: 0 | CH167: 0
A168: West Lafayette | B168: 4002 | C168: Vice Provost for Teaching & Le | D168: 4002 - Vice Provost for Teaching & Le | E168: 4002 - Vice Provost for Teaching & Le | F168: 4002 | G168: Data Processing | H168: 62010100 | I168: Center for Instructional Excellence | J168: 62010000 | K168: 62010000 - Center for Instructional Excellence | L168: U1 | M168: Undergraduate | N168: B0H - Vice Provost Teaching and Learning | O168: B0H | P168: 40001389 | Q168: Student Service - Proctor | R168: 20003261 | S168: Student (1) | T168: Non Staff | U168: Undergraduate Students | V168: Student | W168: ZA - Student Hourly | X168: Student | Y168: U005 | Z168: 7.25 | AA168: 9.28 | AB168: 11.3 | AC168: HOURLY | AD168: Bi-Weekly | AE168: Z1 | AF168: DUR - Temp/Student | AG168: NonEx-Student/Temp-Pos-Dur | AH168: Ad Hoc | AI168: AdHoc | AJ168: N | AK168: Y | AL168: N | AN168: 0 | AO168: 5 | AP168: Non-Essential Worker | AQ168: N | AU168: 26.93 | AV168: 2154.4 | AW168: 0 | AX168: 0 | AY168: 0 | AZ168: 0 | BA168: 0 | BB168: 0 | BC168: 0 | BD168: 0 | BF168: No differential | BG168: 0 | BL168: Active | BO168: N | BR168: N | BU168: 0 | BV168: 1 | BW168: 2025-04 | BX168: 2025-10 | BY168: 0 | BZ168: N | CA168: 0 | CB168: 0 | CD168: 0 | CE168: 0 | CG168: 0 | CH168: 0
A169: West Lafayette | B169: 4002 | C169: Vice Provost for Teaching & Le | D169: 4002 - Vice Provost for Teaching & Le | E169: 4002 - Vice Provost for Teaching & Le | F169: 4002 | G169: Data Processing | H169: 62010100 | I169: Center for Instructional Excellence | J169: 62010000 | K169: 62010000 - Center for Instructional Excellence | L169: U1 | M169: Undergraduate | N169: B0H - Vice Provost Teaching and Learning | O169: B0H | P169: 40001389 | Q169: Student Service - Proctor | R169: 20003261 | S169: Student (1) | T169: Non Staff | U169: Undergraduate Students | V169: Student | W169: ZA - Student Hourly | X169: Student | Y169: U005 | Z169: 7.25 | AA169: 9.28 | AB169: 11.3 | AC169: HOURLY | AD169: Bi-Weekly | AE169: Z1 | AF169: DUR - Temp/Student | AG169: NonEx-Student/Temp-Pos-Dur | AH169: Ad Hoc | AI169: AdHoc | AJ169: Y | AK169: Y | AL169: N | AN169: 0 | AO169: 5 | AP169: Non-Essential Worker | AQ169: N | AU169: 26.93 | AV169: 2154.4 | AW169: 0 | AX169: 0 | AY169: 0 | AZ169: 0 | BA169: 0 | BB169: 0 | BC169: 0 | BD169: 0 | BF169: No differential | BG169: 0 | BL169: Active | BO169: N | BR169: N | BU169: 1 | BV169: 1 | BW169: 2025-04 | BX169: 2025-10 | BY169: 0 | BZ169: N | CA169: 0 | CB169: 0 | CD169: 0 | CE169: 0 | CG169: 0 | CH169: 0
A170: West Lafayette | B170: 4002 | C170: Vice Provost for Teaching & Le | D170: 4002 - Vice Provost for Teaching & Le | E170: 4002 - Vice Provost for Teaching & Le | F170: 4002 | G170: Data Processing | H170: 62010100 | I170: Center for Instructional Excellence | J170: 62010000 | K170: 62010000 - Center for Instructional Excellence | L170: U1 | M170: Undergraduate | N170: B0H - Vice Provost Teaching and Learning | O170: B0H | P170: 40001389 | Q170: Student Service - Proctor | R170: 20003261 | S170: Student (1) | T170: Non Staff | U170: Undergraduate Students | V170: Student | W170: ZA - Student Hourly | X170: Student | Y170: U005 | Z170: 7.25 | AA170: 9.28 | AB170: 11.3 | AC170: HOURLY | AD170: Bi-Weekly | AE170: Z1 | AF170: DUR - Temp/Student | AG170: NonEx-Student/Temp-Pos-Dur | AH170: Ad Hoc | AI170: AdHoc | AJ170: N | AK170: Y | AL170: N | AN170: 0 | AO170: 5 | AP170: Non-Essential Worker | AQ170: N | AU170: 26.93 | AV170: 2154.4 | AW170: 0 | AX170: 0 | AY170: 0 | AZ170: 0 | BA170: 0 | BB170: 0 | BC170: 0 | BD170: 0 | BF170: No differential | BG170: 0 | BL170: Active | BO170: N | BR170: N | BU170: 0 | BV170: 1 | BW170: 2025-04 | BX170: 2025-10 | BY170: 0 | BZ170: N | CA170: 0 | CB170: 0 | CD170: 0 | CE170: 0 | CG170: 0 | CH170: 0
A171: West Lafayette | B171: 4002 | C171: Vice Provost for Teaching & Le | D171: 4002 - Vice Provost for Teaching & Le | E171: 4002 - Vice Provost for Teaching & Le | F171: 4002 | G171: Data Processing | H171: 62010100 | I171: Center for Instructional Excellence | J171: 62010000 | K171: 62010000 - Center for Instructional Excellence | L171: U1 | M171: Undergraduate | N171: B0H - Vice Provost Teaching and Learning | O171: B0H | P171: 40001389 | Q171: Student Service - Proctor | R171: 20003261 | S171: Student (1) | T171: Non Staff | U171: Undergraduate Students | V171: Student | W171: ZA - Student Hourly | X171: Student | Y171: U005 | Z171: 7.25 | AA171: 9.28 | AB171: 11.3 | AC171: HOURLY | AD171: Bi-Weekly | AE171: Z1 | AF171: DUR - Temp/Student | AG171: NonEx-Student/Temp-Pos-Dur | AH171: Ad Hoc | AI171: AdHoc | AJ171: N | AK171: Y | AL171: N | AN171: 0 | AO171: 5 | AP171: Non-Essential Worker | AQ171: N | AU171: 26.93 | AV171: 2154.4 | AW171: 0 | AX171: 0 | AY171: 0 | AZ171: 0 | BA171: 0 | BB171: 0 | BC171: 0 | BD171: 0 | BF171: No differential | BG171: 0 | BL171: Active | BO171: N | BR171: N | BU171: 0 | BV171: 1 | BW171: 2025-04 | BX171: 2025-10 | BY171: 0 | BZ171: N | CA171: 0 | CB171: 0 | CD171: 0 | CE171: 0 | CG171: 0 | CH171: 0
A172: West Lafayette | B172: 4002 | C172: Vice Provost for Teaching & Le | D172: 4002 - Vice Provost for Teaching & Le | E172: 4002 - Vice Provost for Teaching & Le | F172: 4002 | G172: Data Processing | H172: 62010100 | I172: Center for Instructional Excellence | J172: 62010000 | K172: 62010000 - Center for Instructional Excellence | L172: U1 | M172: Undergraduate | N172: B0H - Vice Provost Teaching and Learning | O172: B0H | P172: 40001389 | Q172: Student Service - Proctor | R172: 20003261 | S172: Student (1) | T172: Non Staff | U172: Undergraduate Students | V172: Student | W172: ZA - Student Hourly | X172: Student | Y172: U005 | Z172: 7.25 | AA172: 9.28 | AB172: 11.3 | AC172: HOURLY | AD172: Bi-Weekly | AE172: Z1 | AF172: DUR - Temp/Student | AG172: NonEx-Student/Temp-Pos-Dur | AH172: Ad Hoc | AI172: AdHoc | AJ172: N | AK172: Y | AL172: N | AN172: 0 | AO172: 5 | AP172: Non-Essential Worker | AQ172: N | AU172: 26.93 | AV172: 2154.4 | AW172: 0 | AX172: 0 | AY172: 0 | AZ172: 0 | BA172: 0 | BB172: 0 | BC172: 0 | BD172: 0 | BF172: No differential | BG172: 0 | BL172: Active | BO172: N | BR172: N | BU172: 0 | BV172: 1 | BW172: 2025-04 | BX172: 2025-10 | BY172: 0 | BZ172: N | CA172: 0 | CB172: 0 | CD172: 0 | CE172: 0 | CG172: 0 | CH172: 0
A173: West Lafayette | B173: 4002 | C173: Vice Provost for Teaching & Le | D173: 4002 - Vice Provost for Teaching & Le | E173: 4002 - Vice Provost for Teaching & Le | F173: 4002 | G173: Data Processing | H173: 62010100 | I173: Center for Instructional Excellence | J173: 62010000 | K173: 62010000 - Center for Instructional Excellence | L173: U1 | M173: Undergraduate | N173: B0H - Vice Provost Teaching and Learning | O173: B0H | P173: 40001389 | Q173: Student Service - Proctor | R173: 20003261 | S173: Student (1) | T173: Non Staff | U173: Undergraduate Students | V173: Student | W173: ZA - Student Hourly | X173: Student | Y173: U005 | Z173: 7.25 | AA173: 9.28 | AB173: 11.3 | AC173: HOURLY | AD173: Bi-Weekly | AE173: Z1 | AF173: DUR - Temp/Student | AG173: NonEx-Student/Temp-Pos-Dur | AH173: Ad Hoc | AI173: AdHoc | AJ173: N | AK173: Y | AL173: N | AN173: 0 | AO173: 5 | AP173: Non-Essential Worker | AQ173: N | AU173: 26.93 | AV173: 2154.4 | AW173: 0 | AX173: 0 | AY173: 0 | AZ173: 0 | BA173: 0 | BB173: 0 | BC173: 0 | BD173: 0 | BF173: No differential | BG173: 0 | BL173: Active | BO173: N | BR173: N | BU173: 0 | BV173: 1 | BW173: 2025-04 | BX173: 2025-10 | BY173: 0 | BZ173: N | CA173: 0 | CB173: 0 | CD173: 0 | CE173: 0 | CG173: 0 | CH173: 0
A174: West Lafayette | B174: 4002 | C174: Vice Provost for Teaching & Le | D174: 4002 - Vice Provost for Teaching & Le | E174: 4002 - Vice Provost for Teaching & Le | F174: 4002 | G174: Data Processing | H174: 62010100 | I174: Center for Instructional Excellence | J174: 62010000 | K174: 62010000 - Center for Instructional Excellence | L174: U1 | M174: Undergraduate | N174: B0H - Vice Provost Teaching and Learning | O174: B0H | P174: 40001389 | Q174: Student Service - Proctor | R174: 20003261 | S174: Student (1) | T174: Non Staff | U174: Undergraduate Students | V174: Student | W174: ZA - Student Hourly | X174: Student | Y174: U005 | Z174: 7.25 | AA174: 9.28 | AB174: 11.3 | AC174: HOURLY | AD174: Bi-Weekly | AE174: Z1 | AF174: DUR - Temp/Student | AG174: NonEx-Student/Temp-Pos-Dur | AH174: Ad Hoc | AI174: AdHoc | AJ174: N | AK174: Y | AL174: N | AN174: 0 | AO174: 5 | AP174: Non-Essential Worker | AQ174: N | AU174: 26.93 | AV174: 2154.4 | AW174: 0 | AX174: 0 | AY174: 0 | AZ174: 0 | BA174: 0 | BB174: 0 | BC174: 0 | BD174: 0 | BF174: No differential | BG174: 0 | BL174: Active | BO174: N | BR174: N | BU174: 0 | BV174: 1 | BW174: 2025-04 | BX174: 2025-10 | BY174: 0 | BZ174: N | CA174: 0 | CB174: 0 | CD174: 0 | CE174: 0 | CG174: 0 | CH174: 0
A175: West Lafayette | B175: 4002 | C175: Vice Provost for Teaching & Le | D175: 4002 - Vice Provost for Teaching & Le | E175: 4002 - Vice Provost for Teaching & Le | F175: 4002 | G175: Data Processing | H175: 62010100 | I175: Center for Instructional Excellence | J175: 62010000 | K175: 62010000 - Center for Instructional Excellence | L175: U1 | M175: Undergraduate | N175: B0H - Vice Provost Teaching and Learning | O175: B0H | P175: 40001389 | Q175: Student Service - Proctor | R175: 20003261 | S175: Student (1) | T175: Non Staff | U175: Undergraduate Students | V175: Student | W175: ZA - Student Hourly | X175: Student | Y175: U005 | Z175: 7.25 | AA175: 9.28 | AB175: 11.3 | AC175: HOURLY | AD175: Bi-Weekly | AE175: Z1 | AF175: DUR - Temp/Student | AG175: NonEx-Student/Temp-Pos-Dur | AH175: Ad Hoc | AI175: AdHoc | AJ175: N | AK175: Y | AL175: N | AN175: 0 | AO175: 5 | AP175: Non-Essential Worker | AQ175: N | AU175: 26.93 | AV175: 2154.4 | AW175: 0 | AX175: 0 | AY175: 0 | AZ175: 0 | BA175: 0 | BB175: 0 | BC175: 0 | BD175: 0 | BF175: No differential | BG175: 0 | BL175: Active | BO175: N | BR175: N | BU175: 0 | BV175: 1 | BW175: 2025-04 | BX175: 2025-10 | BY175: 0 | BZ175: N | CA175: 0 | CB175: 0 | CD175: 0 | CE175: 0 | CG175: 0 | CH175: 0
A176: West Lafayette | B176: 4002 | C176: Vice Provost for Teaching & Le | D176: 4002 - Vice Provost for Teaching & Le | E176: 4002 - Vice Provost for Teaching & Le | F176: 4002 | G176: Data Processing | H176: 62010100 | I176: Center for Instructional Excellence | J176: 62010000 | K176: 62010000 - Center for Instructional Excellence | L176: U1 | M176: Undergraduate | N176: B0H - Vice Provost Teaching and Learning | O176: B0H | P176: 40001389 | Q176: Student Service - Proctor | R176: 20003261 | S176: Student (1) | T176: Non Staff | U176: Undergraduate Students | V176: Student | W176: ZA - Student Hourly | X176: Student | Y176: U005 | Z176: 7.25 | AA176: 9.28 | AB176: 11.3 | AC176: HOURLY | AD176: Bi-Weekly | AE176: Z1 | AF176: DUR - Temp/Student | AG176: NonEx-Student/Temp-Pos-Dur | AH176: Ad Hoc | AI176: AdHoc | AJ176: N | AK176: Y | AL176: N | AN176: 0 | AO176: 5 | AP176: Non-Essential Worker | AQ176: N | AU176: 26.93 | AV176: 2154.4 | AW176: 0 | AX176: 0 | AY176: 0 | AZ176: 0 | BA176: 0 | BB176: 0 | BC176: 0 | BD176: 0 | BF176: No differential | BG176: 0 | BL176: Active | BO176: N | BR176: N | BU176: 0 | BV176: 1 | BW176: 2025-04 | BX176: 2025-10 | BY176: 0 | BZ176: N | CA176: 0 | CB176: 0 | CD176: 0 | CE176: 0 | CG176: 0 | CH176: 0
A177: West Lafayette | B177: 4002 | C177: Vice Provost for Teaching & Le | D177: 4002 - Vice Provost for Teaching & Le | E177: 4002 - Vice Provost for Teaching & Le | F177: 4002 | G177: Data Processing | H177: 62010100 | I177: Center for Instructional Excellence | J177: 62010000 | K177: 62010000 - Center for Instructional Excellence | L177: U1 | M177: Undergraduate | N177: B0H - Vice Provost Teaching and Learning | O177: B0H | P177: 40001389 | Q177: Student Service - Proctor | R177: 20003261 | S177: Student (1) | T177: Non Staff | U177: Undergraduate Students | V177: Student | W177: ZA - Student Hourly | X177: Student | Y177: U005 | Z177: 7.25 | AA177: 9.28 | AB177: 11.3 | AC177: HOURLY | AD177: Bi-Weekly | AE177: Z1 | AF177: DUR - Temp/Student | AG177: NonEx-Student/Temp-Pos-Dur | AH177: Ad Hoc | AI177: AdHoc | AJ177: N | AK177: Y | AL177: N | AN177: 0 | AO177: 5 | AP177: Non-Essential Worker | AQ177: N | AU177: 26.93 | AV177: 2154.4 | AW177: 0 | AX177: 0 | AY177: 0 | AZ177: 0 | BA177: 0 | BB177: 0 | BC177: 0 | BD177: 0 | BF177: No differential | BG177: 0 | BL177: Active | BO177: N | BR177: N | BU177: 0 | BV177: 1 | BW177: 2025-04 | BX177: 2025-10 | BY177: 0 | BZ177: N | CA177: 0 | CB177: 0 | CD177: 0 | CE177: 0 | CG177: 0 | CH177: 0
A178: West Lafayette | B178: 4002 | C178: Vice Provost for Teaching & Le | D178: 4002 - Vice Provost for Teaching & Le | E178: 4002 - Vice Provost for Teaching & Le | F178: 4002 | G178: Data Processing | H178: 62010100 | I178: Center for Instructional Excellence | J178: 62010000 | K178: 62010000 - Center for Instructional Excellence | L178: U1 | M178: Undergraduate | N178: B0H - Vice Provost Teaching and Learning | O178: B0H | P178: 40001389 | Q178: Student Service - Proctor | R178: 20003261 | S178: Student (1) | T178: Non Staff | U178: Undergraduate Students | V178: Student | W178: ZA - Student Hourly | X178: Student | Y178: U005 | Z178: 7.25 | AA178: 9.28 | AB178: 11.3 | AC178: HOURLY | AD178: Bi-Weekly | AE178: Z1 | AF178: DUR - Temp/Student | AG178: NonEx-Student/Temp-Pos-Dur | AH178: Ad Hoc | AI178: AdHoc | AJ178: N | AK178: Y | AL178: N | AN178: 0 | AO178: 3 | AP178: Non-Essential Worker | AQ178: N | AU178: 26.93 | AV178: 2154.4 | AW178: 0 | AX178: 0 | AY178: 0 | AZ178: 0 | BA178: 0 | BB178: 0 | BC178: 0 | BD178: 0 | BF178: No differential | BG178: 0 | BL178: Active | BO178: N | BR178: N | BU178: 0 | BV178: 1 | BW178: 2025-04 | BX178: 2025-10 | BY178: 0 | BZ178: N | CA178: 0 | CB178: 0 | CD178: 0 | CE178: 0 | CG178: 0 | CH178: 0
A179: West Lafayette | B179: 4002 | C179: Vice Provost for Teaching & Le | D179: 4002 - Vice Provost for Teaching & Le | E179: 4002 - Vice Provost for Teaching & Le | F179: 4002 | G179: Data Processing | H179: 62010100 | I179: Center for Instructional Excellence | J179: 62010000 | K179: 62010000 - Center for Instructional Excellence | L179: U1 | M179: Undergraduate | N179: B0H - Vice Provost Teaching and Learning | O179: B0H | P179: 40001389 | Q179: Student Service - Proctor | R179: 20003261 | S179: Student (1) | T179: Non Staff | U179: Undergraduate Students | V179: Student | W179: ZA - Student Hourly | X179: Student | Y179: U005 | Z179: 7.25 | AA179: 9.28 | AB179: 11.3 | AC179: HOURLY | AD179: Bi-Weekly | AE179: Z1 | AF179: DUR - Temp/Student | AG179: NonEx-Student/Temp-Pos-Dur | AH179: Ad Hoc | AI179: AdHoc | AJ179: N | AK179: Y | AL179: N | AN179: 0 | AO179: 5 | AP179: Non-Essential Worker | AQ179: N | AU179: 26.93 | AV179: 2154.4 | AW179: 0 | AX179: 0 | AY179: 0 | AZ179: 0 | BA179: 0 | BB179: 0 | BC179: 0 | BD179: 0 | BF179: No differential | BG179: 0 | BL179: Active | BO179: N | BR179: N | BU179: 0 | BV179: 1 | BW179: 2025-04 | BX179: 2025-10 | BY179: 0 | BZ179: N | CA179: 0 | CB179: 0 | CD179: 0 | CE179: 0 | CG179: 0 | CH179: 0
A180: West Lafayette | B180: 4002 | C180: Vice Provost for Teaching & Le | D180: 4002 - Vice Provost for Teaching & Le | E180: 4002 - Vice Provost for Teaching & Le | F180: 4002 | G180: Data Processing | H180: 62010100 | I180: Center for Instructional Excellence | J180: 62010000 | K180: 62010000 - Center for Instructional Excellence | L180: U1 | M180: Undergraduate | N180: B0H - Vice Provost Teaching and Learning | O180: B0H | P180: 40001389 | Q180: Student Service - Proctor | R180: 20003261 | S180: Student (1) | T180: Non Staff | U180: Undergraduate Students | V180: Student | W180: ZA - Student Hourly | X180: Student | Y180: U005 | Z180: 7.25 | AA180: 9.28 | AB180: 11.3 | AC180: HOURLY | AD180: Bi-Weekly | AE180: Z1 | AF180: DUR - Temp/Student | AG180: NonEx-Student/Temp-Pos-Dur | AH180: Ad Hoc | AI180: AdHoc | AJ180: N | AK180: Y | AL180: N | AN180: 0 | AO180: 5 | AP180: Non-Essential Worker | AQ180: N | AU180: 26.93 | AV180: 2154.4 | AW180: 0 | AX180: 0 | AY180: 0 | AZ180: 0 | BA180: 0 | BB180: 0 | BC180: 0 | BD180: 0 | BF180: No differential | BG180: 0 | BL180: Active | BO180: N | BR180: N | BU180: 0 | BV180: 1 | BW180: 2025-04 | BX180: 2025-10 | BY180: 0 | BZ180: N | CA180: 0 | CB180: 0 | CD180: 0 | CE180: 0 | CG180: 0 | CH180: 0
A181: West Lafayette | B181: 4002 | C181: Vice Provost for Teaching & Le | D181: 4002 - Vice Provost for Teaching & Le | E181: 4002 - Vice Provost for Teaching & Le | F181: 4002 | G181: Data Processing | H181: 62010100 | I181: Center for Instructional Excellence | J181: 62010000 | K181: 62010000 - Center for Instructional Excellence | L181: U1 | M181: Undergraduate | N181: B0H - Vice Provost Teaching and Learning | O181: B0H | P181: 40001389 | Q181: Student Service - Proctor | R181: 20003261 | S181: Student (1) | T181: Non Staff | U181: Undergraduate Students | V181: Student | W181: ZA - Student Hourly | X181: Student | Y181: U005 | Z181: 7.25 | AA181: 9.28 | AB181: 11.3 | AC181: HOURLY | AD181: Bi-Weekly | AE181: Z1 | AF181: DUR - Temp/Student | AG181: NonEx-Student/Temp-Pos-Dur | AH181: Ad Hoc | AI181: AdHoc | AJ181: N | AK181: Y | AL181: N | AN181: 0 | AO181: 0 | AP181: Non-Essential Worker | AQ181: N | AU181: 20 | AV181: 1600 | AW181: 0 | AX181: 0 | AY181: 0 | AZ181: 0 | BA181: 0 | BB181: 0 | BC181: 0 | BD181: 0 | BF181: No differential | BG181: 0 | BL181: Active | BO181: N | BR181: N | BU181: 0 | BV181: 1 | BW181: 2025-04 | BX181: 2025-10 | BY181: 0 | BZ181: N | CA181: 0 | CB181: 0 | CD181: 0 | CE181: 0 | CG181: 0 | CH181: 0
A182: West Lafayette | B182: 4002 | C182: Vice Provost for Teaching & Le | D182: 4002 - Vice Provost for Teaching & Le | E182: 4002 - Vice Provost for Teaching & Le | F182: 4002 | G182: Data Processing | H182: 62010100 | I182: Center for Instructional Excellence | J182: 62010000 | K182: 62010000 - Center for Instructional Excellence | L182: M1 | M182: Management | N182: B0H - Vice Provost Teaching and Learning | O182: B0H | P182: 40002128 | Q182: Operations Administrator | R182: 20003762 | S182: Instruction, Supervisor | T182: Learning Support | U182: Instruction | V182: Management | W182: Z4 - 12 Month Salaried | X182: Staff | Y182: S060 | Z182: 46800 | AA182: 65100 | AB182: 83400 | AC182: MON | AD182: Monthly | AE182: Z2 | AF182: DUR - Exempt - FY | AG182: Exempt-Neg-Dur | AH182: Exempt - Monday to Friday - 8hrs | AI182: NORM | AJ182: Y | AK182: N | AL182: N | AN182: 1 | AO182: 78 | AP182: Non-Essential Worker | AQ182: Y | AU182: 0 | AV182: 4928.7 | AW182: 59144.4 | AX182: 59144.4 | AY182: 59144.4 | AZ182: 46286.41 | BA182: 46286.41 | BB182: 59144.4 | BC182: 0 | BD182: 0 | BE182: Day_Shft | BF182: First Shift-no differential | BG182: 0 | BL182: Active | BO182: N | BR182: N | BU182: 1 | BV182: 1 | BW182: 2025-04 | BX182: 2025-10 | BY182: 59144 | BZ182: N | CA182: 59144.4 | CB182: 1 | CC182: Full Time | CD182: 0 | CE182: 0 | CG182: 0 | CH182: 0
A183: West Lafayette | B183: 4002 | C183: Vice Provost for Teaching & Le | D183: 4002 - Vice Provost for Teaching & Le | E183: 4002 - Vice Provost for Teaching & Le | F183: 4002 | G183: Global Faculty Development | H183: 62010200 | I183: Center for Instructional Excellence | J183: 62010000 | K183: 62010000 - Center for Instructional Excellence | L183: P4 | M183: Professional | N183: B0H - Vice Provost Teaching and Learning | O183: B0H | P183: 40011672 | Q183: Asst Dir-Global Faculty Development | R183: 20002088 | S183: Program Administration Specialist, Lead | T183: Administration | U183: Program Administration | V183: M/P Professional | W183: Z4 - 12 Month Salaried | X183: Staff | Y183: S075 | Z183: 71200 | AA183: 99000 | AB183: 126800 | AC183: MON | AD183: Monthly | AE183: Z2 | AF183: DUR - Exempt - FY | AG183: Exempt-Neg-Dur | AH183: Exempt - Monday to Friday - 8hrs | AI183: NORM | AJ183: Y | AK183: N | AL183: N | AN183: 1 | AO183: 78 | AP183: Non-Essential Worker | AQ183: Y | AU183: 0 | AV183: 7885.67 | AW183: 94628.04 | AX183: 94628.04 | AY183: 94628.04 | AZ183: 74055.9 | BA183: 74055.9 | BB183: 94628.04 | BC183: 0 | BD183: 0 | BE183: Day_Shft | BF183: First Shift-no differential | BG183: 0 | BL183: Active | BO183: N | BR183: N | BU183: 1 | BV183: 1 | BW183: 2025-04 | BX183: 2025-10 | BY183: 94628 | BZ183: N | CA183: 94628.04 | CB183: 1 | CC183: Full Time | CD183: 0 | CE183: 0 | CG183: 0 | CH183: 0
A184: West Lafayette | B184: 4002 | C184: Vice Provost for Teaching & Le | D184: 4002 - Vice Provost for Teaching & Le | E184: 4002 - Vice Provost for Teaching & Le | F184: 4002 | G184: IMPACT - CIE | H184: 62010300 | I184: Center for Instructional Excellence | J184: 62010000 | K184: 62010000 - Center for Instructional Excellence | L184: P1 | M184: Professional | N184: B0H - Vice Provost Teaching and Learning | O184: B0H | P184: 40056796 | Q184: Associate Instructional Developer - Researcher | R184: 20003158 | S184: Instructional Designer, Associate | T184: Learning Support | U184: Instructional Design and Technology | V184: Professional | W184: Z4 - 12 Month Salaried | X184: Staff | Y184: S055 | Z184: 42700 | AA184: 59300 | AB184: 75900 | AC184: MON | AD184: Monthly | AE184: Z2 | AF184: DUR - Exempt - FY | AG184: Exempt-Neg-Dur | AH184: Exempt - Monday to Friday - 8hrs | AI184: NORM | AJ184: Y | AK184: N | AL184: N | AN184: 1 | AO184: 13 | AP184: Non-Essential Worker | AQ184: Y | AU184: 0 | AV184: 4583.34 | AW184: 55000.08 | AX184: 55000.08 | AY184: 55000.08 | AZ184: 43043.06 | BA184: 43043.06 | BB184: 55000.08 | BC184: 0 | BD184: 0 | BE184: Day_Shft | BF184: First Shift-no differential | BG184: 0 | BL184: Active | BO184: N | BR184: N | BU184: 1 | BV184: 1 | BW184: 2025-04 | BX184: 2025-10 | BY184: 55000 | BZ184: N | CA184: 55000.08 | CB184: 1 | CC184: Full Time | CD184: 0 | CE184: 0 | CG184: 0 | CH184: 0
A185: West Lafayette | B185: 4002 | C185: Vice Provost for Teaching & Le | D185: 4002 - Vice Provost for Teaching & Le | E185: 4002 - Vice Provost for Teaching & Le | F185: 4002 | G185: IMPACT - CIE | H185: 62010300 | I185: Center for Instructional Excellence | J185: 62010000 | K185: 62010000 - Center for Instructional Excellence | L185: P1 | M185: Professional | N185: B0H - Vice Provost Teaching and Learning | O185: B0H | P185: 40058440 | Q185: Associate Instructional Developer | R185: 20003158 | S185: Instructional Designer, Associate | T185: Learning Support | U185: Instructional Design and Technology | V185: Professional | W185: Z4 - 12 Month Salaried | X185: Staff | Y185: S055 | Z185: 42700 | AA185: 59300 | AB185: 75900 | AC185: MON | AD185: Monthly | AE185: Z2 | AF185: DUR - Exempt - FY | AG185: Exempt-Neg-Dur | AH185: Exempt - Monday to Friday - 8hrs | AI185: NORM | AJ185: Y | AK185: N | AL185: N | AN185: 1 | AO185: 5 | AP185: Non-Essential Worker | AQ185: Y | AU185: 0 | AV185: 4166.67 | AW185: 50000.04 | AX185: 50000.04 | AY185: 50000.04 | AZ185: 39130.03 | BA185: 39130.03 | BB185: 50000.04 | BC185: 0 | BD185: 0 | BE185: Day_Shft | BF185: First Shift-no differential | BG185: 0 | BL185: Active | BO185: N | BR185: N | BU185: 1 | BV185: 1 | BW185: 2025-04 | BX185: 2025-10 | BY185: 50000 | BZ185: N | CA185: 50000.04 | CB185: 1 | CC185: Full Time | CD185: 0 | CE185: 0 | CG185: 0 | CH185: 0
A186: West Lafayette | B186: 4002 | C186: Vice Provost for Teaching & Le | D186: 4002 - Vice Provost for Teaching & Le | E186: 4002 - Vice Provost for Teaching & Le | F186: 4002 | G186: IMPACT - CIE | H186: 62010300 | I186: Center for Instructional Excellence | J186: 62010000 | K186: 62010000 - Center for Instructional Excellence | L186: U3 | M186: Undergraduate | N186: B0H - Vice Provost Teaching and Learning | O186: B0H | P186: 40080621 | Q186: Undergrad Student Researcher- Student Clerical | R186: 20003263 | S186: Student (3) | T186: Non Staff | U186: Undergraduate Students | V186: Student | W186: ZA - Student Hourly | X186: Student | Y186: U015 | Z186: 10.89 | AA186: 13.34 | AB186: 15.79 | AC186: HOURLY | AD186: Bi-Weekly | AE186: Z1 | AF186: DUR - Temp/Student | AG186: NonEx-Student/Temp-Pos-Dur | AH186: Ad Hoc | AI186: AdHoc | AJ186: N | AK186: Y | AL186: N | AN186: 0 | AO186: 12 | AP186: Non-Essential Worker | AQ186: N | AU186: 15 | AV186: 1200 | AW186: 0 | AX186: 0 | AY186: 0 | AZ186: 0 | BA186: 0 | BB186: 0 | BC186: 0 | BD186: 0 | BF186: No differential | BG186: 0 | BL186: Active | BO186: N | BR186: N | BU186: 0 | BV186: 1 | BW186: 2025-04 | BX186: 2025-10 | BY186: 0 | BZ186: N | CA186: 0 | CB186: 0 | CD186: 0 | CE186: 0 | CG186: 0 | CH186: 0
A187: West Lafayette | B187: 4002 | C187: Vice Provost for Teaching & Le | D187: 4002 - Vice Provost for Teaching & Le | E187: 4002 - Vice Provost for Teaching & Le | F187: 4002 | G187: IMPACT - CIE | H187: 62010300 | I187: Center for Instructional Excellence | J187: 62010000 | K187: 62010000 - Center for Instructional Excellence | L187: U3 | M187: Undergraduate | N187: B0H - Vice Provost Teaching and Learning | O187: B0H | P187: 40080621 | Q187: Undergrad Student Researcher- Student Clerical | R187: 20003263 | S187: Student (3) | T187: Non Staff | U187: Undergraduate Students | V187: Student | W187: ZA - Student Hourly | X187: Student | Y187: U015 | Z187: 10.89 | AA187: 13.34 | AB187: 15.79 | AC187: HOURLY | AD187: Bi-Weekly | AE187: Z1 | AF187: DUR - Temp/Student | AG187: NonEx-Student/Temp-Pos-Dur | AH187: Ad Hoc | AI187: AdHoc | AJ187: Y | AK187: N | AL187: N | AN187: 0 | AO187: 12 | AP187: Non-Essential Worker | AQ187: N | AU187: 15 | AV187: 1200 | AW187: 0 | AX187: 0 | AY187: 0 | AZ187: 0 | BA187: 0 | BB187: 0 | BC187: 0 | BD187: 0 | BF187: No differential | BG187: 0 | BL187: Active | BO187: N | BR187: N | BU187: 1 | BV187: 1 | BW187: 2025-04 | BX187: 2025-10 | BY187: 0 | BZ187: N | CA187: 0 | CB187: 0 | CD187: 0 | CE187: 0 | CG187: 0 | CH187: 0
A188: West Lafayette | B188: 4002 | C188: Vice Provost for Teaching & Le | D188: 4002 - Vice Provost for Teaching & Le | E188: 4002 - Vice Provost for Teaching & Le | F188: 4002 | G188: Exploratory Studies | H188: 62020000 | I188: Exploratory Studies | J188: 62020000 | K188: 62020000 - Exploratory Studies | L188: M4 | M188: Management | N188: B0H - Vice Provost Teaching and Learning | O188: B0H | P188: 40003385 | Q188: Associate Director | R188: 20003481 | S188: Academic Advising, Assistant Director | T188: Academic and Student Affairs | U188: Student Advising | V188: M/P Management | W188: Z4 - 12 Month Salaried | X188: Staff | Y188: S075 | Z188: 71200 | AA188: 99000 | AB188: 126800 | AC188: MON | AD188: Monthly | AE188: Z2 | AF188: DUR - Exempt - FY | AG188: Exempt-Neg-Dur | AH188: Exempt - Monday to Friday - 8hrs | AI188: NORM | AJ188: Y | AK188: N | AL188: N | AN188: 1 | AO188: 48 | AP188: Non-Essential Worker | AQ188: Y | AU188: 0 | AV188: 7725 | AW188: 92700 | AX188: 92700 | AY188: 92700 | AZ188: 72547.02 | BA188: 72547.02 | BB188: 92700 | BC188: 0 | BD188: 0 | BE188: Day_Shft | BF188: First Shift-no differential | BG188: 0 | BL188: Active | BO188: N | BR188: N | BU188: 1 | BV188: 1 | BW188: 2025-04 | BX188: 2025-10 | BY188: 92700 | BZ188: N | CA188: 92700 | CB188: 1 | CC188: Full Time | CD188: 0 | CE188: 0 | CG188: 0 | CH188: 0
A189: West Lafayette | B189: 4002 | C189: Vice Provost for Teaching & Le | D189: 4002 - Vice Provost for Teaching & Le | E189: 4002 - Vice Provost for Teaching & Le | F189: 4002 | G189: Exploratory Studies | H189: 62020000 | I189: Exploratory Studies | J189: 62020000 | K189: 62020000 - Exploratory Studies | L189: M5 | M189: Management | N189: B0H - Vice Provost Teaching and Learning | O189: B0H | P189: 40008416 | Q189: Executive Director, Exploratory Studies | R189: 20002579 | S189: Program Administration, Director | T189: Administration | U189: Program Administration | V189: M/P Management | W189: Z4 - 12 Month Salaried | X189: Staff | Y189: S085 | Z189: 94200 | AA189: 131000 | AB189: 167800 | AC189: MON | AD189: Monthly | AE189: Z2 | AF189: DUR - Exempt - FY | AG189: Exempt-Neg-Dur | AH189: Exempt - Monday to Friday - 8hrs | AI189: NORM | AJ189: Y | AK189: N | AL189: N | AN189: 1 | AO189: 78 | AP189: Non-Essential Worker | AQ189: Y | AU189: 0 | AV189: 11306.71 | AW189: 135680.52 | AX189: 135680.52 | AY189: 135680.52 | AZ189: 106183.57 | BA189: 106183.57 | BB189: 135680.52 | BC189: 0 | BD189: 0 | BE189: Day_Shft | BF189: First Shift-no differential | BG189: 0 | BL189: Active | BO189: N | BR189: N | BU189: 1 | BV189: 1 | BW189: 2025-04 | BX189: 2025-10 | BY189: 135681 | BZ189: N | CA189: 135680.52 | CB189: 1 | CC189: Full Time | CD189: 0 | CE189: 0 | CG189: 0 | CH189: 0
A190: West Lafayette | B190: 4002 | C190: Vice Provost for Teaching & Le | D190: 4002 - Vice Provost for Teaching & Le | E190: 4002 - Vice Provost for Teaching & Le | F190: 4002 | G190: Exploratory Studies | H190: 62020000 | I190: Exploratory Studies | J190: 62020000 | K190: 62020000 - Exploratory Studies | L190: P2 | M190: Professional | N190: B0H - Vice Provost Teaching and Learning | O190: B0H | P190: 40050160 | Q190: Academic Advisor | R190: 20002152 | S190: Academic Advisor | T190: Academic and Student Affairs | U190: Student Advising | V190: Professional | W190: Z4 - 12 Month Salaried | X190: Staff | Y190: S055 | Z190: 42700 | AA190: 59300 | AB190: 75900 | AC190: MON | AD190: Monthly | AE190: Z2 | AF190: DUR - Exempt - FY | AG190: Exempt-Neg-Dur | AH190: Exempt - Monday to Friday - 8hrs | AI190: NORM | AJ190: Y | AK190: N | AL190: N | AN190: 1 | AO190: 46 | AP190: Non-Essential Worker | AQ190: Y | AU190: 0 | AV190: 4291.67 | AW190: 51500.04 | AX190: 51500.04 | AY190: 51500.04 | AZ190: 40303.93 | BA190: 40303.93 | BB190: 51500.04 | BC190: 0 | BD190: 0 | BE190: Day_Shft | BF190: First Shift-no differential | BG190: 0 | BL190: Active | BO190: N | BR190: N | BU190: 1 | BV190: 1 | BW190: 2025-04 | BX190: 2025-10 | BY190: 51500 | BZ190: N | CA190: 51500.04 | CB190: 1 | CC190: Full Time | CD190: 0 | CE190: 0 | CG190: 0 | CH190: 0
A191: West Lafayette | B191: 4002 | C191: Vice Provost for Teaching & Le | D191: 4002 - Vice Provost for Teaching & Le | E191: 4002 - Vice Provost for Teaching & Le | F191: 4002 | G191: Exploratory Studies | H191: 62020000 | I191: Exploratory Studies | J191: 62020000 | K191: 62020000 - Exploratory Studies | L191: P3 | M191: Professional | N191: B0H - Vice Provost Teaching and Learning | O191: B0H | P191: 40027342 | Q191: Academic Advisor, Senior | R191: 20002153 | S191: Academic Advisor, Senior | T191: Academic and Student Affairs | U191: Student Advising | V191: Professional | W191: Z4 - 12 Month Salaried | X191: Staff | Y191: S060 | Z191: 46800 | AA191: 65100 | AB191: 83400 | AC191: MON | AD191: Monthly | AE191: Z2 | AF191: DUR - Exempt - FY | AG191: Exempt-Neg-Dur | AH191: Exempt - Monday to Friday - 8hrs | AI191: NORM | AJ191: Y | AK191: N | AL191: N | AN191: 1 | AO191: 43 | AP191: Non-Essential Worker | AQ191: Y | AU191: 0 | AV191: 4720.84 | AW191: 56650.08 | AX191: 56650.08 | AY191: 56650.08 | AZ191: 44334.35 | BA191: 44334.35 | BB191: 56650.08 | BC191: 0 | BD191: 0 | BE191: Day_Shft | BF191: First Shift-no differential | BG191: 0 | BL191: Active | BO191: N | BR191: N | BU191: 1 | BV191: 1 | BW191: 2025-04 | BX191: 2025-10 | BY191: 56650 | BZ191: N | CA191: 56650.08 | CB191: 1 | CC191: Full Time | CD191: 0 | CE191: 0 | CG191: 0 | CH191: 0
A192: West Lafayette | B192: 4002 | C192: Vice Provost for Teaching & Le | D192: 4002 - Vice Provost for Teaching & Le | E192: 4002 - Vice Provost for Teaching & Le | F192: 4002 | G192: Exploratory Studies | H192: 62020000 | I192: Exploratory Studies | J192: 62020000 | K192: 62020000 - Exploratory Studies | L192: P3 | M192: Professional | N192: B0H - Vice Provost Teaching and Learning | O192: B0H | P192: 40003047 | Q192: Senior Academic Advisor | R192: 20002153 | S192: Academic Advisor, Senior | T192: Academic and Student Affairs | U192: Student Advising | V192: Professional | W192: Z4 - 12 Month Salaried | X192: Staff | Y192: S060 | Z192: 46800 | AA192: 65100 | AB192: 83400 | AC192: MON | AD192: Monthly | AE192: Z2 | AF192: DUR - Exempt - FY | AG192: Exempt-Neg-Dur | AH192: Exempt - Monday to Friday - 8hrs | AI192: NORM | AJ192: Y | AK192: N | AL192: N | AN192: 1 | AO192: 45 | AP192: Non-Essential Worker | AQ192: Y | AU192: 0 | AV192: 4771.52 | AW192: 57258.24 | AX192: 57258.24 | AY192: 57258.24 | AZ192: 44810.3 | BA192: 44810.3 | BB192: 57258.24 | BC192: 0 | BD192: 0 | BE192: Day_Shft | BF192: First Shift-no differential | BG192: 0 | BL192: Active | BO192: N | BR192: N | BU192: 1 | BV192: 1 | BW192: 2025-04 | BX192: 2025-10 | BY192: 57258 | BZ192: N | CA192: 57258.24 | CB192: 1 | CC192: Full Time | CD192: 0 | CE192: 0 | CG192: 0 | CH192: 0
A193: West Lafayette | B193: 4002 | C193: Vice Provost for Teaching & Le | D193: 4002 - Vice Provost for Teaching & Le | E193: 4002 - Vice Provost for Teaching & Le | F193: 4002 | G193: Exploratory Studies | H193: 62020000 | I193: Exploratory Studies | J193: 62020000 | K193: 62020000 - Exploratory Studies | L193: P2 | M193: Professional | N193: B0H - Vice Provost Teaching and Learning | O193: B0H | P193: 40008716 | Q193: Academic Advisor | R193: 20002152 | S193: Academic Advisor | T193: Academic and Student Affairs | U193: Student Advising | V193: Professional | W193: Z4 - 12 Month Salaried | X193: Staff | Y193: S055 | Z193: 42700 | AA193: 59300 | AB193: 75900 | AC193: MON | AD193: Monthly | AE193: Z2 | AF193: DUR - Exempt - FY | AG193: Exempt-Neg-Dur | AH193: Exempt - Monday to Friday - 8hrs | AI193: NORM | AJ193: Y | AK193: N | AL193: N | AN193: 1 | AO193: 78 | AP193: Non-Essential Worker | AQ193: Y | AU193: 0 | AV193: 4463.33 | AW193: 53559.96 | AX193: 53559.96 | AY193: 53559.96 | AZ193: 41916.02 | BA193: 41916.02 | BB193: 53559.96 | BC193: 0 | BD193: 0 | BE193: Day_Shft | BF193: First Shift-no differential | BG193: 0 | BL193: Active | BO193: N | BR193: N | BU193: 1 | BV193: 1 | BW193: 2025-04 | BX193: 2025-10 | BY193: 53560 | BZ193: N | CA193: 53559.96 | CB193: 1 | CC193: Full Time | CD193: 0 | CE193: 0 | CG193: 0 | CH193: 0
A194: West Lafayette | B194: 4002 | C194: Vice Provost for Teaching & Le | D194: =B194&" - "&C194 -> 4002 - Vice Provost for Teaching & Le | E194: 4002 - Vice Provost for Teaching & Le | F194: 4002 | G194: Exploratory Studies | H194: 62020000 | I194: Exploratory Studies | J194: 62020000 | K194: =J194&" - "&I194 -> 62020000 - Exploratory Studies | L194: P3 | M194: Professional | N194: B0H - Vice Provost Teaching and Learning | O194: B0H | P194: 40005540 | Q194: Academic Advisor, Senior | R194: 20002153 | S194: Academic Advisor, Senior | T194: Academic and Student Affairs | U194: Student Advising | V194: Professional | W194: Z4 - 12 Month Salaried | X194: Staff | Y194: S060 | Z194: 46800 | AA194: 65100 | AB194: 83400 | AC194: MON | AD194: Monthly | AE194: Z2 | AF194: DUR - Exempt - FY | AG194: Exempt-Neg-Dur | AH194: Exempt - Monday to Friday - 8hrs | AI194: NORM | AJ194: Y | AK194: N | AL194: N | AN194: 1 | AO194: 20 | AP194: Non-Essential Worker | AQ194: Y | AU194: 0 | AV194: 4683.93 | AW194: 56207.16 | AX194: 56207.16 | AY194: 56207.16 | AZ194: 43987.72 | BA194: 43987.72 | BB194: 56207.16 | BC194: 0 | BD194: 0 | BE194: Day_Shft | BF194: First Shift-no differential | BG194: 0 | BL194: Active | BO194: N | BR194: N | BU194: 1 | BV194: 1 | BW194: 2025-04 | BX194: 2025-10 | BY194: 56207 | BZ194: N | CA194: 56207.16 | CB194: 1 | CC194: Full Time | CD194: 0 | CE194: 0 | CG194: 0 | CH194: 0
A195: West Lafayette | B195: 4002 | C195: Vice Provost for Teaching & Le | D195: 4002 - Vice Provost for Teaching & Le | E195: 4002 - Vice Provost for Teaching & Le | F195: 4002 | G195: Exploratory Studies | H195: 62020000 | I195: Exploratory Studies | J195: 62020000 | K195: 62020000 - Exploratory Studies | L195: P2 | M195: Professional | N195: B0H - Vice Provost Teaching and Learning | O195: B0H | P195: 40016067 | Q195: Academic Advisor | R195: 20002152 | S195: Academic Advisor | T195: Academic and Student Affairs | U195: Student Advising | V195: Professional | W195: Z4 - 12 Month Salaried | X195: Staff | Y195: S055 | Z195: 42700 | AA195: 59300 | AB195: 75900 | AC195: MON | AD195: Monthly | AE195: Z2 | AF195: DUR - Exempt - FY | AG195: Exempt-Neg-Dur | AH195: Exempt - Monday to Friday - 8hrs | AI195: NORM | AJ195: Y | AK195: N | AL195: N | AN195: 1 | AO195: 18 | AP195: Non-Essential Worker | AQ195: Y | AU195: 0 | AV195: 3936.84 | AW195: 47242.08 | AX195: 47242.08 | AY195: 47242.08 | AZ195: 36971.65 | BA195: 36971.65 | BB195: 47242.08 | BC195: 0 | BD195: 0 | BE195: Day_Shft | BF195: First Shift-no differential | BG195: 0 | BL195: Active | BO195: N | BR195: N | BU195: 1 | BV195: 1 | BW195: 2025-04 | BX195: 2025-10 | BY195: 47242 | BZ195: N | CA195: 47242.08 | CB195: 1 | CC195: Full Time | CD195: 0 | CE195: 0 | CG195: 0 | CH195: 0
A196: West Lafayette | B196: 4002 | C196: Vice Provost for Teaching & Le | D196: 4002 - Vice Provost for Teaching & Le | E196: 4002 - Vice Provost for Teaching & Le | F196: 4002 | G196: Exploratory Studies | H196: 62020000 | I196: Exploratory Studies | J196: 62020000 | K196: 62020000 - Exploratory Studies | L196: P3 | M196: Professional | N196: B0H - Vice Provost Teaching and Learning | O196: B0H | P196: 40038565 | Q196: Senior Recruitment Manager | R196: 20003023 | S196: Admissions Recruiter, Senior | T196: Academic and Student Affairs | U196: Admissions | V196: Professional | W196: Z4 - 12 Month Salaried | X196: Staff | Y196: S060 | Z196: 46800 | AA196: 65100 | AB196: 83400 | AC196: MON | AD196: Monthly | AE196: Z2 | AF196: DUR - Exempt - FY | AG196: Exempt-Neg-Dur | AH196: Exempt - Monday to Friday - 8hrs | AI196: NORM | AJ196: Y | AK196: N | AL196: N | AN196: 1 | AO196: 20 | AP196: Non-Essential Worker | AQ196: Y | AU196: 0 | AV196: 4291.67 | AW196: 51500.04 | AX196: 51500.04 | AY196: 51500.04 | AZ196: 40303.93 | BA196: 40303.93 | BB196: 51500.04 | BC196: 0 | BD196: 0 | BE196: Day_Shft | BF196: First Shift-no differential | BG196: 0 | BL196: Active | BO196: N | BR196: N | BU196: 1 | BV196: 1 | BW196: 2025-04 | BX196: 2025-10 | BY196: 51500 | BZ196: N | CA196: 51500.04 | CB196: 1 | CC196: Full Time | CD196: 0 | CE196: 0 | CG196: 0 | CH196: 0
A197: West Lafayette | B197: 4002 | C197: Vice Provost for Teaching & Le | D197: 4002 - Vice Provost for Teaching & Le | E197: 4002 - Vice Provost for Teaching & Le | F197: 4002 | G197: Exploratory Studies | H197: 62020000 | I197: Exploratory Studies | J197: 62020000 | K197: 62020000 - Exploratory Studies | L197: P2 | M197: Professional | N197: B0H - Vice Provost Teaching and Learning | O197: B0H | P197: 40018096 | Q197: Academic Advisor | R197: 20002152 | S197: Academic Advisor | T197: Academic and Student Affairs | U197: Student Advising | V197: Professional | W197: Z4 - 12 Month Salaried | X197: Staff | Y197: S055 | Z197: 42700 | AA197: 59300 | AB197: 75900 | AC197: MON | AD197: Monthly | AE197: Z2 | AF197: DUR - Exempt - FY | AG197: Exempt-Neg-Dur | AH197: Exempt - Monday to Friday - 8hrs | AI197: NORM | AJ197: Y | AK197: N | AL197: N | AN197: 1 | AO197: 18 | AP197: Non-Essential Worker | AQ197: Y | AU197: 0 | AV197: 3936.84 | AW197: 47242.08 | AX197: 47242.08 | AY197: 47242.08 | AZ197: 36971.65 | BA197: 36971.65 | BB197: 47242.08 | BC197: 0 | BD197: 0 | BE197: Day_Shft | BF197: First Shift-no differential | BG197: 0 | BL197: Active | BO197: N | BR197: N | BU197: 1 | BV197: 1 | BW197: 2025-04 | BX197: 2025-10 | BY197: 47242 | BZ197: N | CA197: 47242.08 | CB197: 1 | CC197: Full Time | CD197: 0 | CE197: 0 | CG197: 0 | CH197: 0
A198: West Lafayette | B198: 4002 | C198: Vice Provost for Teaching & Le | D198: 4002 - Vice Provost for Teaching & Le | E198: 4002 - Vice Provost for Teaching & Le | F198: 4002 | G198: Exploratory Studies | H198: 62020000 | I198: Exploratory Studies | J198: 62020000 | K198: 62020000 - Exploratory Studies | L198: S1 | M198: Administrative and Operational Support | N198: B0H - Vice Provost Teaching and Learning | O198: B0H | P198: 40056790 | Q198: Administrative Assistant | R198: 20002329 | S198: Administrative Assistant, Associate | T198: Administration | U198: Administrative Operations | V198: Support | W198: Z8 - 12 Month Hourly | X198: Staff | Y198: S035 | Z198: 29100 | AA198: 40500 | AB198: 51900 | AC198: HOURLY | AD198: Bi-Weekly | AE198: Z1 | AF198: DUR - Non-Exempt - Negative | AG198: Neg-NonExempt-Dur | AH198: Non-Exempt - Monday to Friday - 8Hrs | AI198: NEMF08 | AJ198: Y | AK198: N | AL198: N | AN198: 1 | AO198: 13 | AP198: Non-Essential Worker | AQ198: Y | AU198: 16 | AV198: 1280 | AW198: 33280 | AX198: 33280 | AY198: 33280 | AZ198: 26044.93 | BA198: 26044.93 | BB198: 33280 | BC198: 0 | BD198: 0 | BF198: No differential | BG198: 0 | BL198: Active | BO198: N | BR198: N | BU198: 1 | BV198: 1 | BW198: 2025-04 | BX198: 2025-10 | BY198: 33280 | BZ198: N | CA198: 33280 | CB198: 1 | CC198: Full Time | CD198: 0 | CE198: 0 | CG198: 0 | CH198: 0
A199: West Lafayette | B199: 4002 | C199: Vice Provost for Teaching & Le | D199: 4002 - Vice Provost for Teaching & Le | E199: 4002 - Vice Provost for Teaching & Le | F199: 4002 | G199: Exploratory Studies | H199: 62020000 | I199: Exploratory Studies | J199: 62020000 | K199: 62020000 - Exploratory Studies | L199: M3 | M199: Management | N199: B0H - Vice Provost Teaching and Learning | O199: B0H | P199: 40005608 | Q199: Assistant Director | R199: 20003483 | S199: Academic Advising, Senior Manager | T199: Academic and Student Affairs | U199: Student Advising | V199: M/P Management | W199: Z4 - 12 Month Salaried | X199: Staff | Y199: S070 | Z199: 62000 | AA199: 86100 | AB199: 110200 | AC199: MON | AD199: Monthly | AE199: Z2 | AF199: DUR - Exempt - FY | AG199: Exempt-Neg-Dur | AH199: Exempt - Monday to Friday - 8hrs | AI199: NORM | AJ199: Y | AK199: N | AL199: N | AN199: 1 | AO199: 46 | AP199: Non-Essential Worker | AQ199: Y | AU199: 0 | AV199: 6066.67 | AW199: 72800.04 | AX199: 72800.04 | AY199: 72800.04 | AZ199: 56973.31 | BA199: 56973.31 | BB199: 72800.04 | BC199: 0 | BD199: 0 | BE199: Day_Shft | BF199: First Shift-no differential | BG199: 0 | BL199: Active | BO199: N | BR199: N | BU199: 1 | BV199: 1 | BW199: 2025-04 | BX199: 2025-10 | BY199: 72800 | BZ199: N | CA199: 72800.04 | CB199: 1 | CC199: Full Time | CD199: 0 | CE199: 0 | CG199: 0 | CH199: 0
A200: West Lafayette | B200: 4002 | C200: Vice Provost for Teaching & Le | D200: 4002 - Vice Provost for Teaching & Le | E200: 4002 - Vice Provost for Teaching & Le | F200: 4002 | G200: Exploratory Studies | H200: 62020000 | I200: Exploratory Studies | J200: 62020000 | K200: 62020000 - Exploratory Studies | L200: P3 | M200: Professional | N200: B0H - Vice Provost Teaching and Learning | O200: B0H | P200: 40003930 | Q200: Senior Academic Advisor | R200: 20002153 | S200: Academic Advisor, Senior | T200: Academic and Student Affairs | U200: Student Advising | V200: Professional | W200: Z4 - 12 Month Salaried | X200: Staff | Y200: S060 | Z200: 46800 | AA200: 65100 | AB200: 83400 | AC200: MON | AD200: Monthly | AE200: Z2 | AF200: DUR - Exempt - FY | AG200: Exempt-Neg-Dur | AH200: Exempt - Monday to Friday - 8hrs | AI200: NORM | AJ200: Y | AK200: N | AL200: N | AN200: 1 | AO200: 78 | AP200: Non-Essential Worker | AQ200: Y | AU200: 0 | AV200: 5329.2 | AW200: 63950.4 | AX200: 63950.4 | AY200: 63950.4 | AZ200: 50047.58 | BA200: 50047.58 | BB200: 63950.4 | BC200: 0 | BD200: 0 | BE200: Day_Shft | BF200: First Shift-no differential | BG200: 0 | BL200: Active | BO200: N | BR200: N | BU200: 1 | BV200: 1 | BW200: 2025-04 | BX200: 2025-10 | BY200: 63950 | BZ200: N | CA200: 63950.4 | CB200: 1 | CC200: Full Time | CD200: 0 | CE200: 0 | CG200: 0 | CH200: 0
... 925 more rows
